Workbook

Sheet Formulario
B5: INGRESE LOS DATOS PARA SIMULAR EL VALOR TOTAL UNIFICADO DEL CRÉDITO HIPOTECARIO
B8: Elija el uso del inmueble | C8: Comercial
B9: Elija el tipo de vivienda | C9: Nueva
B10: Elija el rango de edad del deudor | C10: De 18 a 50 años
B11: Digite el valor del inmueble | C11: 150000000
B12: Digite el valor del crédito | C12: 30874000
B13: Con garantía hipotecaria | C13: Si
B14: Tipo de inmueble (de la garantía) | C14: Casa
B15: Valor del avalúo comercial del inmueble | C15: 100000000
B16: Elija la categoría de la vivienda | C16: No VIS
B17: Digite el Plazo | C17: 180
B19: Elija el sistema de crédito | C19: UVR
B20: Elija el sistema de amortización | C20: Cuota fija
B22: Tasa Si es UVR, digite los puntos adicionales a la UVR. Si es Pesos, digite la Tasa E.A. | C22: 0.065
B26: Nota:
B27: Si el valor de su inmueble es inferior a 150 SMMLV puede ingresar a la categoría VIS (Vivienda de Interés Social). Recuerda que el plazo máximo para este producto es de 240 meses.

Sheet Variables (hidden)
B2: LISTA DESPLEGABLE | E2: TARIFAS | H2: FACTOR MENSUAL PARA COBRO DE SEGUROS
E3: TARIFARIO A partir del 05 de Junio de 2023 | F3: IVA INCLUIDO | H3: Hipotecarios: | K3: VALOR DEL SEGURO
B4: Uso del inmueble | D4: 13300 | E4: Certificaciones | F4: =D4*1.19 -> 15827 | H4: Edad | I4: Con garantía hipotecaria | J4: Sin garantía hipotecaria | K4: Con garantía hipotecaria | L4: Sin garantía hipotecaria
B5: Vivienda | D5: 59900 | E5: Gastos de documentación | F5: =D5*1.19 -> 71281 | H5: Entre 18 y 51 años | I5: 0.00044 | J5: 0.000695 | K5: =Formulario!$C$12*Variables!$I5 -> 13584.56 | L5: =Formulario!$C$12*Variables!$J5 -> 21457.43
B6: Comercial | D6: 112500 | E6: Estudio de Créditos - VIS | F6: 133875 | H6: Entre 51 y 60 años | I6: 0.00044 | J6: 0.000899 | K6: =Formulario!$C$12*Variables!$I6 -> 13584.56 | L6: =Formulario!$C$12*Variables!$J6 -> 27755.726
D7: 181750 | E7: Estudio de Créditos - No VIS | F7: 216282.5 | H7: Entre 61 y 70 años | I7: 0.00044 | J7: 0.000928 | K7: =Formulario!$C$12*Variables!$I7 -> 13584.56 | L7: =Formulario!$C$12*Variables!$J7 -> 28651.072
B8: Tipo de Vivienda | D8: 86500 | E8: Levantamiento de hipoteca (elaboración de la minuta y otros) | F8: 102935 | H8: Entre 71 y 75 años | I8: 0.00044 | J8: 0.002714 | K8: =Formulario!$C$12*Variables!$I8 -> 13584.56 | L8: =Formulario!$C$12*Variables!$J8 -> 83792.036
B9: Nueva | D9: 329450 | E9: Estudio de títulos - Tarifa máxima | F9: 392045.5 | H9: Entre 76 y 80 años | I9: 0.00044 | J9: 0.006518 | K9: =Formulario!$C$12*Variables!$I9 -> 13584.56 | L9: =Formulario!$C$12*Variables!$J9 -> 201236.732
B10: Usada | H10: 81 años en adelante | I10: 0.00044 | J10: 0.010725 | K10: =Formulario!$C$12*Variables!$I10 -> 13584.56 | L10: =Formulario!$C$12*Variables!$J10 -> 331123.65
B12: Categoría de la vivienda | H12: Consumo, educativo, libranza: | K12: VALOR DEL SEGURO
B13: VIS | H13: Edad | I13: Con garantía hipotecaria | J13: Sin garantía hipotecaria | K13: Con garantía hipotecaria | L13: Sin garantía hipotecaria
B14: No VIS | H14: Entre 18 y 51 años | I14: 0.00044 | J14: 0.000695 | K14: 0 | L14: 0
H15: Entre 51 y 60 años | I15: 0.00044 | J15: 0.000899 | K15: 0 | L15: 0
B16: Sistema de crédito | H16: Entre 61 y 70 años | I16: 0.00044 | J16: 0.000928 | K16: 0 | L16: 0
B17: Pesos | H17: Entre 71 y 75 años | I17: 0.00044 | J17: 0.002714 | K17: 0 | L17: 0
B18: UVR | H18: Entre 76 y 80 años | I18: 0.00044 | J18: 0.006518 | K18: 0 | L18: 0
H19: 81 años en adelante | I19: 0.00044 | J19: 0.010725 | K19: 0 | L19: 0
B20: Sistema de amortización | K20: VALOR DEL SEGURO
B21: Cuota fija | K21: Con garantía hipotecaria | L21: Sin garantía hipotecaria
H22: Incendio y terremoto | I22: 0.00015 | J22: 0 | K22: =VLOOKUP(Formulario!$C$14,Variables!$B$28:$D$38,3,0)*$I$22 -> 12750 | L22: 0
B23: Con garantía hipotecaria | H23: Aplica si tiene garantía hipotecaria
B24: Si
B25: No
B27: Tipo de inmueble | C27: % Destructible | D27: Base de liquidación
B28: Casa | C28: 0.85 | D28: =IF(Formulario!$C$13="No",0,Variables!$C28*Formulario!$C$15) -> 85000000
B29: Apartamento | C29: 0.95 | D29: =IF(Formulario!$C$13="No",0,Variables!$C29*Formulario!$C$15) -> 95000000
B30: Consultorio | C30: 0.95 | D30: =IF(Formulario!$C$13="No",0,Variables!$C30*Formulario!$C$15) -> 95000000
B31: Oficina | C31: 0.95 | D31: =IF(Formulario!$C$13="No",0,Variables!$C31*Formulario!$C$15) -> 95000000
B32: Bodega | C32: 0.85 | D32: =IF(Formulario!$C$13="No",0,Variables!$C32*Formulario!$C$15) -> 85000000
B33: Local | C33: 0.95 | D33: =IF(Formulario!$C$13="No",0,Variables!$C33*Formulario!$C$15) -> 95000000
B34: Lote | C34: 0 | D34: =IF(Formulario!$C$13="No",0,Variables!$C34*Formulario!$C$15) -> 0
B35: Deposito | C35: 0.85 | D35: =IF(Formulario!$C$13="No",0,Variables!$C35*Formulario!$C$15) -> 85000000
B36: Garaje | C36: 0.85 | D36: =IF(Formulario!$C$13="No",0,Variables!$C36*Formulario!$C$15) -> 85000000
B37: Otro | C37: 0.95 | D37: =IF(Formulario!$C$13="No",0,Variables!$C37*Formulario!$C$15) -> 95000000
B38: N/A | C38: 0 | D38: =IF(Formulario!$C$13="No",0,Variables!$C38*Formulario!$C$15) -> 0
B40: Edad
B41: Entre 18 y 51 años
B42: Entre 51 y 60 años
B43: Entre 61 y 70 años
B44: Entre 71 y 75 años
B45: Entre 76 y 80 años
B46: 81 años en adelante

Sheet Simulador (hidden)
X1: los % de seguros sale de la tabla seguros productos | Y1: TASA MENSUAL EN % POR RANGOS DE EDAD PARA COBRO DE SEGURO DE VIDA
U2: Certificaciones | V2: 15600 | Y2: CON GARANTIA HIPO | Z2: SI | AA2: NO
Y3: De 18 a 50 años | Z3: 0.041 | AA3: 0.0695
U4: Estudio de Créditos - VIS | V4: VIS | W4: 130300 | Y4: De 51 a 60 años | Z4: 0.041 | AA4: 0.0899
B5: SIMULACIÓN VALOR TOTAL UNIFICADO DEL CRÉDITO HIPOTECARIO | U5: Estudio de Créditos - No VIS | V5: No VIS | W5: 211300 | Y5: De 61 a 70 años | Z5: 0.041 | AA5: 0.0928
U6: Gastos de Documentación | W6: 89850 | Y6: De 71 a 75 años | Z6: 0.041 | AA6: 0.2714
C7: =TODAY() -> 2025-10-17 | J7: Actualizar datos | U7: Estudio de títulos - Tarifa máxima | W7: 382950 | Y7: De 76 a 80 años | Z7: 0.041 | AA7: 0.6518
B8: Uso del inmueble | C8: =Formulario!C8 -> Comercial | R8: % A TENER EN CUENTA PARA COSTO AVALUO | U8: ACTUALIZADO TARIFAS 4 SEPTIEMBRE 2025 | Y8: Desde 81 años | Z8: 0.041 | AA8: 1.0725
B9: Tipo de Vivienda | C9: =Formulario!C9 -> Nueva | J9: TEA | K9: TNM | L9: CUOTA
B10: Rango de edad del deudor | C10: =Formulario!C10 -> De 18 a 50 años | I10: Valor UVR | J10: 372.3458 | K10: https://www.banrep.gov.co/es/estadisticas/unidad-valor-real-uvr | R10: VIS | S10: 0.8 | V10: Etiquetas de fila | W10: % DEL VALOR TOTAL | X10: Máx. de POND AVA OK
B11: Valor Inmueble | C11: =Formulario!C11 -> 150000000 | I11: IPC Ult 12 meses | J11: 0.0716 | K11: =(1+J11)^(1/12)-1 -> 0.005779374742 | R11: NO VIS | S11: 0.7 | V11: No Vis_Pesos | W11: =+S11 -> 0.7 | X11: 0.0026 | Y11: TIPO DE SEGURO
B12: Desembolso | C12: =Formulario!C12 -> 30874000 | I12: Tasa UVR | J12: =Formulario!C22 -> 0.065 | K12: =(1+J12)^(1/12)-1 -> 0.005261694277 | L12: =PMT(K12,Formulario!$C$17,-Simulador!$N$21) -> 713.8509682 | Q12: =+CONCATENATE(C16,"_",C18) -> No VIS_UVR | R12: =+VLOOKUP(C16,$R$10:$S$11,2,0) -> 0.7 | S12: =+VLOOKUP(Q12,$V$10:$X$14,3,0) -> 0.0022 | V12: No Vis_UVR | W12: =+S11 -> 0.7 | X12: 0.0022 | Y12: Incendio | Z12: 0.00065
B13: Con garantía hipotecaria | C13: =Formulario!C13 -> Si | I13: Tasa EA Pesos | J13: =Formulario!C22 -> 0.065 | K13: =(1+J13)^(1/12)-1 -> 0.005261694277 | L13: =PMT(K13,Formulario!$C$17,-Simulador!$N$21) -> 713.8509682 | V13: Vis_Pesos | W13: =+S10 -> 0.8 | X13: 0.0031 | Y13: Terremoto | Z13: 0.01235
B14: Tipo de inmueble (de la garantía) | C14: =Formulario!C14 -> Casa | V14: Vis_UVR | W14: =+S10 -> 0.8 | X14: 0.0115 | Y14: IN+TERR | Z14: =SUM(Z12:Z13)/100 -> 0.00013
B15: Valor del avalúo comercial del inmueble | C15: =Formulario!C15 -> 100000000 | V15: Total general
B16: Categoría de la vivienda | C16: =Formulario!C16 -> No VIS | AB16: VTUA% | AC16: =IRR(AD21:AD321) -> 0.01199553498
B17: Plazo (meses) | C17: =Formulario!C17 -> 180
B18: Sistema de Crédito | C18: =Formulario!C19 -> UVR | I18: FLUJO DEL CRÉDITO | P18: FLUJO EN $ | U18: FLUJO DEL CLIENTE
B19: Sistema de amortización | C19: =Formulario!C20 -> Cuota fija | Z19: =+INDEX($Y$2:$AA$8,MATCH(C10,Y2:Y8,0),MATCH(C13,Y2:AA2,0)) -> 0.041
B20: =IF(C18="Pesos"," Tasa en Pesos E.A."," Tasa: Spread sobre la UVR") -> Tasa: Spread sobre la UVR | C20: =Formulario!C22 -> 0.065 | I20: Periodo | J20: Capital | K20: Intereses | L20: Abono a Capital | M20: Cuota | N20: Saldo | P20: Valor UVR | Q20: Interés $ | R20: Cuota $ | S20: Saldo $ | U20: Desembolso | V20: Cuota | W20: Certificaciones | X20: Gastos de documentación | Y20: Estudio de crédito | Z20: Estudio de títulos | AA20: costo Avaluo | AB20: Seguro de vida | AC20: Seguro de incendio y terremoto | AD20: Saldo cliente
B21: =IF(C18=AJ17," Cuota Mensual sin Seguros"," Valor 1ra. Cuota sin Seguros") -> Valor 1ra. Cuota sin Seguros | C21: =$R$22 -> 267335.5642 | I21: 0 | N21: =IF(Formulario!$C$19="UVR",Formulario!$C$12/J10,IF(Formulario!C19="PESOS",Formulario!$C$12,"Error")) -> 82917.546 | S21: =IF(Formulario!$C$19="UVR",$J$10*N21,IF(Formulario!$C$19="PESOS",N21,"Error")) -> 30874000 | U21: =S21 -> 30874000 | V21: 0 | W21: =-V2 -> -15600 | X21: =-W6 -> -89850 | Y21: =VLOOKUP(C16,$V$4:$W$5,2,0)*-1 -> -211300 | Z21: =-W7 -> -382950 | AA21: =-((C15*R12)*S12) -> -154000 | AB21: 0 | AC21: 0 | AD21: =SUM(U21:AC21) -> 30020300
I22: 1 | J22: =N21 -> 82917.546 | K22: =IF(Formulario!$C$19="UVR",J22*$K$12,IF(Formulario!$C$19="PESOS",J22*$K$13,"Error")) -> 436.2867772 | L22: =IF(I22<>0,M22-K22,0) -> 277.5641909 | M22: =IF(I22<>0,IF(Formulario!$C$19="UVR",Simulador!$L$12,IF(Formulario!$C$19="PESOS",Simulador!$L$13,"Error")),0) -> 713.8509682 | N22: =J22-L22 -> 82639.98181 | P22: =IF(I22<>0,IF(Formulario!$C$19="UVR",($J$10*(1+$K$11)),IF(Formulario!$C$19="PESOS",1,"Error")),0) -> 374.4977259 | Q22: =P22*$K22 -> 163388.4059 | R22: =P22*$M22 -> 267335.5642 | S22: =IF(Formulario!$C$19="UVR",P22*N22,IF(Formulario!$C$19="PESOS",N22,"Error")) -> 30948485.26 | U22: 0 | V22: =-R22 -> -267335.5642 | W22: 0 | X22: 0 | Y22: 0 | Z22: 0 | AB22: =(S21*($Z$19/100))*-1 -> -12658.34 | AC22: =($Z$14*S21)*-1 -> -4013.62 | AD22: -284007.5242
I23: =IF(AND(I22+1<=Formulario!$C$17,I22<>0),I22+1,0) -> 2 | J23: =IF(I23<>0,N22,0) -> 82639.98181 | K23: =IF(Formulario!$C$19="UVR",J23*$K$12,IF(Formulario!$C$19="PESOS",J23*$K$13,"Error")) -> 434.8263193 | L23: =IF(I23<>0,M23-K23,0) -> 279.0246488 | M23: =IF(I23<>0,IF(Formulario!$C$19="UVR",Simulador!$L$12,IF(Formulario!$C$19="PESOS",Simulador!$L$13,"Error")),0) -> 713.8509682 | N23: =J23-L23 -> 82360.95716 | P23: =IF(I23<>0,IF(Formulario!$C$19="UVR",(P22*(1+$K$11)),IF(Formulario!$C$19="PESOS",1,"Error")),0) -> 376.6620886 | Q23: =P23*$K23 -> 163782.5896 | R23: =P23*$M23 -> 268880.5966 | S23: =IF(Formulario!$C$19="UVR",P23*N23,IF(Formulario!$C$19="PESOS",N23,"Error")) -> 31022250.14 | U23: 0 | V23: =-R23 -> -268880.5966 | W23: 0 | X23: 0 | Y23: 0 | Z23: 0 | AB23: =(S22*($Z$19/100))*-1 -> -12688.87896 | AC23: =($Z$14*S22)*-1 -> -4023.303083 | AD23: -285592.7787
B24: VALOR TOTAL UNIFICADO | I24: =IF(AND(I23+1<=Formulario!$C$17,I23<>0),I23+1,0) -> 3 | J24: =IF(I24<>0,N23,0) -> 82360.95716 | K24: =IF(Formulario!$C$19="UVR",J24*$K$12,IF(Formulario!$C$19="PESOS",J24*$K$13,"Error")) -> 433.3581769 | L24: 280.4927912 | M24: =IF(I24<>0,IF(Formulario!$C$19="UVR",Simulador!$L$12,IF(Formulario!$C$19="PESOS",Simulador!$L$13,"Error")),0) -> 713.8509682 | N24: 82080.46437 | P24: =IF(I24<>0,IF(Formulario!$C$19="UVR",(P23*(1+$K$11)),IF(Formulario!$C$19="PESOS",1,"Error")),0) -> 378.83896 | Q24: 164172.961 | R24: =P24*$M24 -> 270434.5584 | S24: =IF(Formulario!$C$19="UVR",P24*N24,IF(Formulario!$C$19="PESOS",N24,"Error")) -> 31095277.76 | U24: 0 | V24: -270434.5584 | W24: 0 | X24: 0 | Y24: 0 | Z24: 0 | AB24: -12719.12256 | AC24: -4032.892519 | AD24: -287186.5734
B25: Valor Total Unificado % | C25: =(1+AC16)^12-1 -> 0.1538335328 | I25: =IF(AND(I24+1<=Formulario!$C$17,I24<>0),I24+1,0) -> 4 | J25: 82080.46437 | K25: =IF(Formulario!$C$19="UVR",J25*$K$12,IF(Formulario!$C$19="PESOS",J25*$K$13,"Error")) -> 431.8823096 | L25: 281.9686586 | M25: =IF(I25<>0,IF(Formulario!$C$19="UVR",Simulador!$L$12,IF(Formulario!$C$19="PESOS",Simulador!$L$13,"Error")),0) -> 713.8509682 | N25: 81798.49571 | P25: =IF(I25<>0,IF(Formulario!$C$19="UVR",(P24*(1+$K$11)),IF(Formulario!$C$19="PESOS",1,"Error")),0) -> 381.0284123 | Q25: 164559.4307 | R25: 271997.501 | S25: =IF(Formulario!$C$19="UVR",P25*N25,IF(Formulario!$C$19="PESOS",N25,"Error")) -> 31167550.95 | U25: 0 | V25: -271997.501 | W25: 0 | X25: 0 | Y25: 0 | Z25: 0 | AB25: -12749.06388 | AC25: -4042.386108 | AD25: -288788.951
B26: Valor Total Unificado $ | C26: =SUM(Q22:Q321)-SUM(W21:AC321) -> 28975740.85 | I26: =IF(AND(I25+1<=Formulario!$C$17,I25<>0),I25+1,0) -> 5 | J26: =IF(I26<>0,N25,0) -> 81798.49571 | K26: =IF(Formulario!$C$19="UVR",J26*$K$12,IF(Formulario!$C$19="PESOS",J26*$K$13,"Error")) -> 430.3986767 | L26: 283.4522914 | M26: =IF(I26<>0,IF(Formulario!$C$19="UVR",Simulador!$L$12,IF(Formulario!$C$19="PESOS",Simulador!$L$13,"Error")),0) -> 713.8509682 | N26: =J26-L26 -> 81515.04342 | P26: =IF(I26<>0,IF(Formulario!$C$19="UVR",(P25*(1+$K$11)),IF(Formulario!$C$19="PESOS",1,"Error")),0) -> 383.2305183 | Q26: 164941.908 | R26: 273569.4765 | S26: =IF(Formulario!$C$19="UVR",P26*N26,IF(Formulario!$C$19="PESOS",N26,"Error")) -> 31239052.34 | U26: 0 | V26: -273569.4765 | W26: 0 | X26: 0 | Y26: 0 | Z26: 0 | AB26: -12778.69589 | AC26: -4051.781623 | AD26: -290399.954
B27: Intereses | C27: =SUM($Q$22:$Q$321) -> 25518194.42 | I27: =IF(AND(I26+1<=Formulario!$C$17,I26<>0),I26+1,0) -> 6 | J27: 81515.04342 | K27: =IF(Formulario!$C$19="UVR",J27*$K$12,IF(Formulario!$C$19="PESOS",J27*$K$13,"Error")) -> 428.9072374 | L27: 284.9437307 | M27: =IF(I27<>0,IF(Formulario!$C$19="UVR",Simulador!$L$12,IF(Formulario!$C$19="PESOS",Simulador!$L$13,"Error")),0) -> 713.8509682 | N27: 81230.09969 | P27: =IF(I27<>0,IF(Formulario!$C$19="UVR",(P26*(1+$K$11)),IF(Formulario!$C$19="PESOS",1,"Error")),0) -> 385.445351 | Q27: 165320.3007 | R27: 275150.537 | S27: =IF(Formulario!$C$19="UVR",P27*N27,IF(Formulario!$C$19="PESOS",N27,"Error")) -> 31309764.29 | U27: 0 | V27: -275150.537 | W27: 0 | X27: 0 | Y27: 0 | Z27: 0 | AB27: -12808.01146 | AC27: -4061.076804 | AD27: -292019.6253
B28: Certificaciones | C28: =-W21 -> 15600 | I28: =IF(AND(I27+1<=Formulario!$C$17,I27<>0),I27+1,0) -> 7 | J28: 81230.09969 | K28: =IF(Formulario!$C$19="UVR",J28*$K$12,IF(Formulario!$C$19="PESOS",J28*$K$13,"Error")) -> 427.4079506 | L28: 286.4430175 | M28: =IF(I28<>0,IF(Formulario!$C$19="UVR",Simulador!$L$12,IF(Formulario!$C$19="PESOS",Simulador!$L$13,"Error")),0) -> 713.8509682 | N28: 80943.65667 | P28: =IF(I28<>0,IF(Formulario!$C$19="UVR",(P27*(1+$K$11)),IF(Formulario!$C$19="PESOS",1,"Error")),0) -> 387.6729842 | Q28: 165694.5157 | R28: 276740.7351 | S28: =IF(Formulario!$C$19="UVR",P28*N28,IF(Formulario!$C$19="PESOS",N28,"Error")) -> 31379668.93 | U28: 0 | V28: -276740.7351 | W28: 0 | X28: 0 | Y28: 0 | Z28: 0 | AB28: -12837.00336 | AC28: -4070.269358 | AD28: -293648.0078
B29: Gastos de documentación | C29: =-X21 -> 89850 | I29: =IF(AND(I28+1<=Formulario!$C$17,I28<>0),I28+1,0) -> 8 | J29: 80943.65667 | K29: =IF(Formulario!$C$19="UVR",J29*$K$12,IF(Formulario!$C$19="PESOS",J29*$K$13,"Error")) -> 425.9007751 | L29: 287.9501931 | M29: =IF(I29<>0,IF(Formulario!$C$19="UVR",Simulador!$L$12,IF(Formulario!$C$19="PESOS",Simulador!$L$13,"Error")),0) -> 713.8509682 | N29: 80655.70648 | P29: =IF(I29<>0,IF(Formulario!$C$19="UVR",(P28*(1+$K$11)),IF(Formulario!$C$19="PESOS",1,"Error")),0) -> 389.9134916 | Q29: 166064.4583 | R29: 278340.1235 | S29: =IF(Formulario!$C$19="UVR",P29*N29,IF(Formulario!$C$19="PESOS",N29,"Error")) -> 31448748.13 | U29: 0 | V29: -278340.1235 | W29: 0 | X29: 0 | Y29: 0 | Z29: 0 | AB29: -12865.66426 | AC29: -4079.356961 | AD29: -295285.1447
B30: Estudio de Crédito | C30: =-Y21 -> 211300 | I30: =IF(AND(I29+1<=Formulario!$C$17,I29<>0),I29+1,0) -> 9 | J30: 80655.70648 | K30: =IF(Formulario!$C$19="UVR",J30*$K$12,IF(Formulario!$C$19="PESOS",J30*$K$13,"Error")) -> 424.3856692 | L30: 289.465299 | M30: =IF(I30<>0,IF(Formulario!$C$19="UVR",Simulador!$L$12,IF(Formulario!$C$19="PESOS",Simulador!$L$13,"Error")),0) -> 713.8509682 | N30: 80366.24118 | P30: =IF(I30<>0,IF(Formulario!$C$19="UVR",(P29*(1+$K$11)),IF(Formulario!$C$19="PESOS",1,"Error")),0) -> 392.1669478 | Q30: 166430.0326 | R30: 279948.7554 | S30: =IF(Formulario!$C$19="UVR",P30*N30,IF(Formulario!$C$19="PESOS",N30,"Error")) -> 31516983.51 | U30: 0 | V30: -279948.7554 | W30: 0 | X30: 0 | Y30: 0 | Z30: 0 | AB30: -12893.98673 | AC30: -4088.337257 | AD30: -296931.0794
B31: Estudio de Títulos | C31: =-Z21 -> 382950 | I31: =IF(AND(I30+1<=Formulario!$C$17,I30<>0),I30+1,0) -> 10 | J31: 80366.24118 | K31: =IF(Formulario!$C$19="UVR",J31*$K$12,IF(Formulario!$C$19="PESOS",J31*$K$13,"Error")) -> 422.8625913 | L31: 290.9883769 | M31: =IF(I31<>0,IF(Formulario!$C$19="UVR",Simulador!$L$12,IF(Formulario!$C$19="PESOS",Simulador!$L$13,"Error")),0) -> 713.8509682 | N31: 80075.2528 | P31: =IF(I31<>0,IF(Formulario!$C$19="UVR",(P30*(1+$K$11)),IF(Formulario!$C$19="PESOS",1,"Error")),0) -> 394.4334276 | Q31: 166791.1413 | R31: 281566.6841 | S31: =IF(Formulario!$C$19="UVR",P31*N31,IF(Formulario!$C$19="PESOS",N31,"Error")) -> 31584356.43 | U31: 0 | V31: -281566.6841 | W31: 0 | X31: 0 | Y31: 0 | Z31: 0 | AB31: -12921.96324 | AC31: -4097.207856 | AD31: -298585.8552
B32: Costo avaluo | C32: =-AA21 -> 154000 | I32: =IF(AND(I31+1<=Formulario!$C$17,I31<>0),I31+1,0) -> 11 | J32: =IF(I32<>0,N31,0) -> 80075.2528 | K32: =IF(Formulario!$C$19="UVR",J32*$K$12,IF(Formulario!$C$19="PESOS",J32*$K$13,"Error")) -> 421.3314994 | L32: 292.5194688 | M32: =IF(I32<>0,IF(Formulario!$C$19="UVR",Simulador!$L$12,IF(Formulario!$C$19="PESOS",Simulador!$L$13,"Error")),0) -> 713.8509682 | N32: 79782.73333 | P32: =IF(I32<>0,IF(Formulario!$C$19="UVR",(P31*(1+$K$11)),IF(Formulario!$C$19="PESOS",1,"Error")),0) -> 396.7130062 | Q32: =P32*$K32 -> 167147.6857 | R32: =P32*$M32 -> 283193.9635 | S32: =IF(Formulario!$C$19="UVR",P32*N32,IF(Formulario!$C$19="PESOS",N32,"Error")) -> 31650847.98 | U32: 0 | V32: -283193.9635 | W32: 0 | X32: 0 | Y32: 0 | Z32: 0 | AB32: -12949.58613 | AC32: -4105.966335 | AD32: -300249.516
B33: Seguro de vida del deudor | C33: =-SUM(AB22:AB321) -> 1976994.508 | I33: =IF(AND(I32+1<=Formulario!$C$17,I32<>0),I32+1,0) -> 12 | J33: =IF(I33<>0,N32,0) -> 79782.73333 | K33: =IF(Formulario!$C$19="UVR",J33*$K$12,IF(Formulario!$C$19="PESOS",J33*$K$13,"Error")) -> 419.7923514 | L33: 294.0586168 | M33: =IF(I33<>0,IF(Formulario!$C$19="UVR",Simulador!$L$12,IF(Formulario!$C$19="PESOS",Simulador!$L$13,"Error")),0) -> 713.8509682 | N33: 79488.67472 | P33: =IF(I33<>0,IF(Formulario!$C$19="UVR",(P32*(1+$K$11)),IF(Formulario!$C$19="PESOS",1,"Error")),0) -> 399.0057593 | Q33: 167499.5659 | R33: 284830.6476 | S33: =IF(Formulario!$C$19="UVR",P33*N33,IF(Formulario!$C$19="PESOS",N33,"Error")) -> 31716439.01 | U33: 0 | V33: -284830.6476 | W33: 0 | X33: 0 | Y33: 0 | Z33: 0 | AB33: -12976.84767 | AC33: -4114.610237 | AD33: -301922.1055
B34: Seguro de Incendio y Terremoto | C34: =-SUM(AC22:AC321) -> 626851.9172 | I34: =IF(AND(I33+1<=Formulario!$C$17,I33<>0),I33+1,0) -> 13 | J34: 79488.67472 | K34: =IF(Formulario!$C$19="UVR",J34*$K$12,IF(Formulario!$C$19="PESOS",J34*$K$13,"Error")) -> 418.2451048 | L34: 295.6058633 | M34: =IF(I34<>0,IF(Formulario!$C$19="UVR",Simulador!$L$12,IF(Formulario!$C$19="PESOS",Simulador!$L$13,"Error")),0) -> 713.8509682 | N34: 79193.06885 | P34: =IF(I34<>0,IF(Formulario!$C$19="UVR",(P33*(1+$K$11)),IF(Formulario!$C$19="PESOS",1,"Error")),0) -> 401.3117631 | Q34: 167846.6804 | R34: 286476.7906 | S34: =IF(Formulario!$C$19="UVR",P34*N34,IF(Formulario!$C$19="PESOS",N34,"Error")) -> 31781110.09 | U34: 0 | V34: -286476.7906 | W34: 0 | X34: 0 | Y34: 0 | Z34: 0 | AB34: -13003.73999 | AC34: -4123.137071 | AD34: -303603.6677
I35: =IF(AND(I34+1<=Formulario!$C$17,I34<>0),I34+1,0) -> 14 | J35: 79193.06885 | K35: =IF(Formulario!$C$19="UVR",J35*$K$12,IF(Formulario!$C$19="PESOS",J35*$K$13,"Error")) -> 416.6897172 | L35: 297.161251 | M35: =IF(I35<>0,IF(Formulario!$C$19="UVR",Simulador!$L$12,IF(Formulario!$C$19="PESOS",Simulador!$L$13,"Error")),0) -> 713.8509682 | N35: 78895.9076 | P35: =IF(I35<>0,IF(Formulario!$C$19="UVR",(P34*(1+$K$11)),IF(Formulario!$C$19="PESOS",1,"Error")),0) -> 403.6310942 | Q35: 168188.9265 | R35: 288132.4473 | S35: =IF(Formulario!$C$19="UVR",P35*N35,IF(Formulario!$C$19="PESOS",N35,"Error")) -> 31844841.51 | U35: 0 | V35: -288132.4473 | W35: 0 | X35: 0 | Y35: 0 | Z35: 0 | AB35: -13030.25514 | AC35: -4131.544311 | AD35: -305294.2468
I36: =IF(AND(I35+1<=Formulario!$C$17,I35<>0),I35+1,0) -> 15 | J36: 78895.9076 | K36: =IF(Formulario!$C$19="UVR",J36*$K$12,IF(Formulario!$C$19="PESOS",J36*$K$13,"Error")) -> 415.1261455 | L36: 298.7248227 | M36: =IF(I36<>0,IF(Formulario!$C$19="UVR",Simulador!$L$12,IF(Formulario!$C$19="PESOS",Simulador!$L$13,"Error")),0) -> 713.8509682 | N36: 78597.18278 | P36: =IF(I36<>0,IF(Formulario!$C$19="UVR",(P35*(1+$K$11)),IF(Formulario!$C$19="PESOS",1,"Error")),0) -> 405.9638295 | Q36: 168526.1998 | R36: 289797.6727 | S36: =IF(Formulario!$C$19="UVR",P36*N36,IF(Formulario!$C$19="PESOS",N36,"Error")) -> 31907613.31 | U36: 0 | V36: -289797.6727 | W36: 0 | X36: 0 | Y36: 0 | Z36: 0 | AB36: -13056.38502 | AC36: -4139.829396 | AD36: -306993.8871
B37: Nota: | I37: =IF(AND(I36+1<=Formulario!$C$17,I36<>0),I36+1,0) -> 16 | J37: 78597.18278 | K37: =IF(Formulario!$C$19="UVR",J37*$K$12,IF(Formulario!$C$19="PESOS",J37*$K$13,"Error")) -> 413.5543468 | L37: 300.2966214 | M37: =IF(I37<>0,IF(Formulario!$C$19="UVR",Simulador!$L$12,IF(Formulario!$C$19="PESOS",Simulador!$L$13,"Error")),0) -> 713.8509682 | N37: 78296.88616 | P37: =IF(I37<>0,IF(Formulario!$C$19="UVR",(P36*(1+$K$11)),IF(Formulario!$C$19="PESOS",1,"Error")),0) -> 408.3100466 | Q37: 168858.3946 | R37: 291472.5221 | S37: =IF(Formulario!$C$19="UVR",P37*N37,IF(Formulario!$C$19="PESOS",N37,"Error")) -> 31969405.24 | U37: 0 | V37: -291472.5221 | W37: 0 | X37: 0 | Y37: 0 | Z37: 0 | AB37: -13082.12146 | AC37: -4147.98973 | AD37: -308702.6333
B38: El Valor Total Unificado corresponde a una proyección de los cobros inherentes o asociados al crédito durante el plazo del crédito según la simulación. Los valores aquí presentados resultan de una proyección por lo tanto no necesariamente corresponden a los valores que va a pagar con su producto. | I38: =IF(AND(I37+1<=Formulario!$C$17,I37<>0),I37+1,0) -> 17 | J38: 78296.88616 | K38: =IF(Formulario!$C$19="UVR",J38*$K$12,IF(Formulario!$C$19="PESOS",J38*$K$13,"Error")) -> 411.9742778 | L38: 301.8766904 | M38: =IF(I38<>0,IF(Formulario!$C$19="UVR",Simulador!$L$12,IF(Formulario!$C$19="PESOS",Simulador!$L$13,"Error")),0) -> 713.8509682 | N38: 77995.00947 | P38: =IF(I38<>0,IF(Formulario!$C$19="UVR",(P37*(1+$K$11)),IF(Formulario!$C$19="PESOS",1,"Error")),0) -> 410.6698234 | Q38: 169185.4039 | R38: 293157.051 | S38: =IF(Formulario!$C$19="UVR",P38*N38,IF(Formulario!$C$19="PESOS",N38,"Error")) -> 32030196.76 | U38: 0 | V38: -293157.051 | W38: 0 | X38: 0 | Y38: 0 | Z38: 0 | AB38: -13107.45615 | AC38: -4156.022681 | AD38: -310420.5298
I39: =IF(AND(I38+1<=Formulario!$C$17,I38<>0),I38+1,0) -> 18 | J39: 77995.00947 | K39: =IF(Formulario!$C$19="UVR",J39*$K$12,IF(Formulario!$C$19="PESOS",J39*$K$13,"Error")) -> 410.3858949 | L39: 303.4650732 | M39: =IF(I39<>0,IF(Formulario!$C$19="UVR",Simulador!$L$12,IF(Formulario!$C$19="PESOS",Simulador!$L$13,"Error")),0) -> 713.8509682 | N39: 77691.5444 | P39: =IF(I39<>0,IF(Formulario!$C$19="UVR",(P38*(1+$K$11)),IF(Formulario!$C$19="PESOS",1,"Error")),0) -> 413.0432382 | Q39: 169507.119 | R39: 294851.3155 | S39: =IF(Formulario!$C$19="UVR",P39*N39,IF(Formulario!$C$19="PESOS",N39,"Error")) -> 32089967.08 | U39: 0 | V39: -294851.3155 | W39: 0 | X39: 0 | Y39: 0 | Z39: 0 | AB39: -13132.38067 | AC39: -4163.925579 | AD39: -312147.6217
I40: =IF(AND(I39+1<=Formulario!$C$17,I39<>0),I39+1,0) -> 19 | J40: 77691.5444 | K40: =IF(Formulario!$C$19="UVR",J40*$K$12,IF(Formulario!$C$19="PESOS",J40*$K$13,"Error")) -> 408.7891545 | L40: 305.0618137 | M40: =IF(I40<>0,IF(Formulario!$C$19="UVR",Simulador!$L$12,IF(Formulario!$C$19="PESOS",Simulador!$L$13,"Error")),0) -> 713.8509682 | N40: 77386.48258 | P40: =IF(I40<>0,IF(Formulario!$C$19="UVR",(P39*(1+$K$11)),IF(Formulario!$C$19="PESOS",1,"Error")),0) -> 415.4303698 | Q40: 169823.4296 | R40: 296555.3717 | S40: =IF(Formulario!$C$19="UVR",P40*N40,IF(Formulario!$C$19="PESOS",N40,"Error")) -> 32148695.08 | U40: 0 | V40: -296555.3717 | W40: 0 | X40: 0 | Y40: 0 | Z40: 0 | AB40: -13156.8865 | AC40: -4171.69572 | AD40: -313883.9539
I41: =IF(AND(I40+1<=Formulario!$C$17,I40<>0),I40+1,0) -> 20 | J41: 77386.48258 | K41: =IF(Formulario!$C$19="UVR",J41*$K$12,IF(Formulario!$C$19="PESOS",J41*$K$13,"Error")) -> 407.1840125 | L41: 306.6669557 | M41: =IF(I41<>0,IF(Formulario!$C$19="UVR",Simulador!$L$12,IF(Formulario!$C$19="PESOS",Simulador!$L$13,"Error")),0) -> 713.8509682 | N41: 77079.81563 | P41: =IF(I41<>0,IF(Formulario!$C$19="UVR",(P40*(1+$K$11)),IF(Formulario!$C$19="PESOS",1,"Error")),0) -> 417.8312976 | Q41: 170134.2243 | R41: 298269.2763 | S41: =IF(Formulario!$C$19="UVR",P41*N41,IF(Formulario!$C$19="PESOS",N41,"Error")) -> 32206359.38 | U41: 0 | V41: -298269.2763 | W41: 0 | X41: 0 | Y41: 0 | Z41: 0 | AB41: -13180.96498 | AC41: -4179.33036 | AD41: -315629.5717
I42: =IF(AND(I41+1<=Formulario!$C$17,I41<>0),I41+1,0) -> 21 | J42: 77079.81563 | K42: =IF(Formulario!$C$19="UVR",J42*$K$12,IF(Formulario!$C$19="PESOS",J42*$K$13,"Error")) -> 405.5704247 | L42: 308.2805434 | M42: =IF(I42<>0,IF(Formulario!$C$19="UVR",Simulador!$L$12,IF(Formulario!$C$19="PESOS",Simulador!$L$13,"Error")),0) -> 713.8509682 | N42: 76771.53508 | P42: =IF(I42<>0,IF(Formulario!$C$19="UVR",(P41*(1+$K$11)),IF(Formulario!$C$19="PESOS",1,"Error")),0) -> 420.2461013 | Q42: 170439.3898 | R42: 299993.0863 | S42: =IF(Formulario!$C$19="UVR",P42*N42,IF(Formulario!$C$19="PESOS",N42,"Error")) -> 32262938.31 | U42: 0 | V42: -299993.0863 | W42: 0 | X42: 0 | Y42: 0 | Z42: 0 | AB42: -13204.60735 | AC42: -4186.82672 | AD42: -317384.5203
I43: =IF(AND(I42+1<=Formulario!$C$17,I42<>0),I42+1,0) -> 22 | J43: 76771.53508 | K43: =IF(Formulario!$C$19="UVR",J43*$K$12,IF(Formulario!$C$19="PESOS",J43*$K$13,"Error")) -> 403.9483468 | L43: 309.9026214 | M43: =IF(I43<>0,IF(Formulario!$C$19="UVR",Simulador!$L$12,IF(Formulario!$C$19="PESOS",Simulador!$L$13,"Error")),0) -> 713.8509682 | N43: 76461.63246 | P43: =IF(I43<>0,IF(Formulario!$C$19="UVR",(P42*(1+$K$11)),IF(Formulario!$C$19="PESOS",1,"Error")),0) -> 422.674861 | Q43: 170738.8113 | R43: 301726.8587 | S43: =IF(Formulario!$C$19="UVR",P43*N43,IF(Formulario!$C$19="PESOS",N43,"Error")) -> 32318409.87 | U43: 0 | V43: -301726.8587 | W43: 0 | X43: 0 | Y43: 0 | Z43: 0 | AB43: -13227.80471 | AC43: -4194.18198 | AD43: -319148.8454
I44: =IF(AND(I43+1<=Formulario!$C$17,I43<>0),I43+1,0) -> 23 | J44: 76461.63246 | K44: =IF(Formulario!$C$19="UVR",J44*$K$12,IF(Formulario!$C$19="PESOS",J44*$K$13,"Error")) -> 402.3177339 | L44: 311.5332342 | M44: =IF(I44<>0,IF(Formulario!$C$19="UVR",Simulador!$L$12,IF(Formulario!$C$19="PESOS",Simulador!$L$13,"Error")),0) -> 713.8509682 | N44: 76150.09923 | P44: =IF(I44<>0,IF(Formulario!$C$19="UVR",(P43*(1+$K$11)),IF(Formulario!$C$19="PESOS",1,"Error")),0) -> 425.1176574 | Q44: 171032.3726 | R44: 303470.6513 | S44: =IF(Formulario!$C$19="UVR",P44*N44,IF(Formulario!$C$19="PESOS",N44,"Error")) -> 32372751.79 | U44: 0 | V44: -303470.6513 | W44: 0 | X44: 0 | Y44: 0 | Z44: 0 | AB44: -13250.54805 | AC44: -4201.393283 | AD44: -320922.5926
I45: =IF(AND(I44+1<=Formulario!$C$17,I44<>0),I44+1,0) -> 24 | J45: 76150.09923 | K45: =IF(Formulario!$C$19="UVR",J45*$K$12,IF(Formulario!$C$19="PESOS",J45*$K$13,"Error")) -> 400.6785413 | L45: 313.1724269 | M45: =IF(I45<>0,IF(Formulario!$C$19="UVR",Simulador!$L$12,IF(Formulario!$C$19="PESOS",Simulador!$L$13,"Error")),0) -> 713.8509682 | N45: 75836.9268 | P45: =IF(I45<>0,IF(Formulario!$C$19="UVR",(P44*(1+$K$11)),IF(Formulario!$C$19="PESOS",1,"Error")),0) -> 427.5745716 | Q45: 171319.9557 | R45: 305224.5219 | S45: =IF(Formulario!$C$19="UVR",P45*N45,IF(Formulario!$C$19="PESOS",N45,"Error")) -> 32425941.49 | U45: 0 | V45: -305224.5219 | W45: 0 | X45: 0 | Y45: 0 | Z45: 0 | AB45: -13272.82824 | AC45: -4208.457733 | AD45: -322705.8079
B46: En el caso de Créditos en UVR, la proyección parte de: | I46: =IF(AND(I45+1<=Formulario!$C$17,I45<>0),I45+1,0) -> 25 | J46: 75836.9268 | K46: =IF(Formulario!$C$19="UVR",J46*$K$12,IF(Formulario!$C$19="PESOS",J46*$K$13,"Error")) -> 399.0307237 | L46: 314.8202445 | M46: =IF(I46<>0,IF(Formulario!$C$19="UVR",Simulador!$L$12,IF(Formulario!$C$19="PESOS",Simulador!$L$13,"Error")),0) -> 713.8509682 | N46: 75522.10656 | P46: =IF(I46<>0,IF(Formulario!$C$19="UVR",(P45*(1+$K$11)),IF(Formulario!$C$19="PESOS",1,"Error")),0) -> 430.0456853 | Q46: 171601.441 | R46: 306988.5288 | S46: =IF(Formulario!$C$19="UVR",P46*N46,IF(Formulario!$C$19="PESOS",N46,"Error")) -> 32477956.07 | U46: 0 | V46: -306988.5288 | W46: 0 | X46: 0 | Y46: 0 | Z46: 0 | AB46: -13294.63601 | AC46: -4215.372394 | AD46: -324498.5372
B47: Valor UVR (Unidades): | C47: =J10 -> 372.3458 | I47: =IF(AND(I46+1<=Formulario!$C$17,I46<>0),I46+1,0) -> 26 | J47: 75522.10656 | K47: =IF(Formulario!$C$19="UVR",J47*$K$12,IF(Formulario!$C$19="PESOS",J47*$K$13,"Error")) -> 397.3742358 | L47: 316.4767323 | M47: =IF(I47<>0,IF(Formulario!$C$19="UVR",Simulador!$L$12,IF(Formulario!$C$19="PESOS",Simulador!$L$13,"Error")),0) -> 713.8509682 | N47: 75205.62982 | P47: =IF(I47<>0,IF(Formulario!$C$19="UVR",(P46*(1+$K$11)),IF(Formulario!$C$19="PESOS",1,"Error")),0) -> 432.5310805 | Q47: 171876.7076 | R47: 308762.7306 | S47: =IF(Formulario!$C$19="UVR",P47*N47,IF(Formulario!$C$19="PESOS",N47,"Error")) -> 32528772.33 | U47: 0 | V47: -308762.7306 | W47: 0 | X47: 0 | Y47: 0 | Z47: 0 | AB47: -13315.96199 | AC47: -4222.134289 | AD47: -326300.8269
B48: IPC Últimos 12 meses: | C48: =J11 -> 0.0716 | I48: =IF(AND(I47+1<=Formulario!$C$17,I47<>0),I47+1,0) -> 27 | J48: 75205.62982 | K48: =IF(Formulario!$C$19="UVR",J48*$K$12,IF(Formulario!$C$19="PESOS",J48*$K$13,"Error")) -> 395.709032 | L48: 318.1419361 | M48: =IF(I48<>0,IF(Formulario!$C$19="UVR",Simulador!$L$12,IF(Formulario!$C$19="PESOS",Simulador!$L$13,"Error")),0) -> 713.8509682 | N48: 74887.48789 | P48: =IF(I48<>0,IF(Formulario!$C$19="UVR",(P47*(1+$K$11)),IF(Formulario!$C$19="PESOS",1,"Error")),0) -> 435.0308397 | Q48: 172145.6325 | R48: 310547.1861 | S48: =IF(Formulario!$C$19="UVR",P48*N48,IF(Formulario!$C$19="PESOS",N48,"Error")) -> 32578366.74 | U48: 0 | V48: -310547.1861 | W48: 0 | X48: 0 | Y48: 0 | Z48: 0 | AB48: -13336.79665 | AC48: -4228.740403 | AD48: -328112.7232
I49: =IF(AND(I48+1<=Formulario!$C$17,I48<>0),I48+1,0) -> 28 | J49: 74887.48789 | K49: =IF(Formulario!$C$19="UVR",J49*$K$12,IF(Formulario!$C$19="PESOS",J49*$K$13,"Error")) -> 394.0350664 | L49: 319.8159017 | M49: =IF(I49<>0,IF(Formulario!$C$19="UVR",Simulador!$L$12,IF(Formulario!$C$19="PESOS",Simulador!$L$13,"Error")),0) -> 713.8509682 | N49: 74567.67199 | P49: =IF(I49<>0,IF(Formulario!$C$19="UVR",(P48*(1+$K$11)),IF(Formulario!$C$19="PESOS",1,"Error")),0) -> 437.5450459 | Q49: 172408.0912 | R49: 312341.9547 | S49: =IF(Formulario!$C$19="UVR",P49*N49,IF(Formulario!$C$19="PESOS",N49,"Error")) -> 32626715.47 | U49: 0 | V49: -312341.9547 | W49: 0 | X49: 0 | Y49: 0 | Z49: 0 | AB49: -13357.13036 | AC49: -4235.187676 | AD49: -329934.2727
I50: =IF(AND(I49+1<=Formulario!$C$17,I49<>0),I49+1,0) -> 29 | J50: 74567.67199 | K50: =IF(Formulario!$C$19="UVR",J50*$K$12,IF(Formulario!$C$19="PESOS",J50*$K$13,"Error")) -> 392.3522929 | L50: 321.4986752 | M50: =IF(I50<>0,IF(Formulario!$C$19="UVR",Simulador!$L$12,IF(Formulario!$C$19="PESOS",Simulador!$L$13,"Error")),0) -> 713.8509682 | N50: 74246.17331 | P50: =IF(I50<>0,IF(Formulario!$C$19="UVR",(P49*(1+$K$11)),IF(Formulario!$C$19="PESOS",1,"Error")),0) -> 440.0737827 | Q50: 172663.9577 | R50: 314147.0959 | S50: =IF(Formulario!$C$19="UVR",P50*N50,IF(Formulario!$C$19="PESOS",N50,"Error")) -> 32673794.34 | U50: 0 | V50: -314147.0959 | W50: 0 | X50: 0 | Y50: 0 | Z50: 0 | AB50: -13376.95334 | AC50: -4241.47301 | AD50: -331765.5222
I51: =IF(AND(I50+1<=Formulario!$C$17,I50<>0),I50+1,0) -> 30 | J51: 74246.17331 | K51: =IF(Formulario!$C$19="UVR",J51*$K$12,IF(Formulario!$C$19="PESOS",J51*$K$13,"Error")) -> 390.6606652 | L51: 323.190303 | M51: =IF(I51<>0,IF(Formulario!$C$19="UVR",Simulador!$L$12,IF(Formulario!$C$19="PESOS",Simulador!$L$13,"Error")),0) -> 713.8509682 | N51: 73922.98301 | P51: =IF(I51<>0,IF(Formulario!$C$19="UVR",(P50*(1+$K$11)),IF(Formulario!$C$19="PESOS",1,"Error")),0) -> 442.617134 | Q51: 172913.104 | R51: 315962.6697 | S51: =IF(Formulario!$C$19="UVR",P51*N51,IF(Formulario!$C$19="PESOS",N51,"Error")) -> 32719578.88 | U51: 0 | V51: -315962.6697 | W51: 0 | X51: 0 | Y51: 0 | Z51: 0 | AB51: -13396.25568 | AC51: -4247.593264 | AD51: -333606.5186
I52: =IF(AND(I51+1<=Formulario!$C$17,I51<>0),I51+1,0) -> 31 | J52: 73922.98301 | K52: =IF(Formulario!$C$19="UVR",J52*$K$12,IF(Formulario!$C$19="PESOS",J52*$K$13,"Error")) -> 388.9601366 | L52: 324.8908316 | M52: =IF(I52<>0,IF(Formulario!$C$19="UVR",Simulador!$L$12,IF(Formulario!$C$19="PESOS",Simulador!$L$13,"Error")),0) -> 713.8509682 | N52: 73598.09218 | P52: =IF(I52<>0,IF(Formulario!$C$19="UVR",(P51*(1+$K$11)),IF(Formulario!$C$19="PESOS",1,"Error")),0) -> 445.1751843 | Q52: 173155.4005 | R52: 317788.7363 | S52: =IF(Formulario!$C$19="UVR",P52*N52,IF(Formulario!$C$19="PESOS",N52,"Error")) -> 32764044.25 | U52: 0 | V52: -317788.7363 | W52: 0 | X52: 0 | Y52: 0 | Z52: 0 | AB52: -13415.02734 | AC52: -4253.545254 | AD52: -335457.3089
I53: =IF(AND(I52+1<=Formulario!$C$17,I52<>0),I52+1,0) -> 32 | J53: 73598.09218 | K53: =IF(Formulario!$C$19="UVR",J53*$K$12,IF(Formulario!$C$19="PESOS",J53*$K$13,"Error")) -> 387.2506604 | L53: 326.6003078 | M53: =IF(I53<>0,IF(Formulario!$C$19="UVR",Simulador!$L$12,IF(Formulario!$C$19="PESOS",Simulador!$L$13,"Error")),0) -> 713.8509682 | N53: 73271.49187 | P53: =IF(I53<>0,IF(Formulario!$C$19="UVR",(P52*(1+$K$11)),IF(Formulario!$C$19="PESOS",1,"Error")),0) -> 447.7480185 | Q53: 173390.7159 | R53: 319625.3565 | S53: =IF(Formulario!$C$19="UVR",P53*N53,IF(Formulario!$C$19="PESOS",N53,"Error")) -> 32807165.3 | U53: 0 | V53: -319625.3565 | W53: 0 | X53: 0 | Y53: 0 | Z53: 0 | AB53: -13433.25814 | AC53: -4259.325753 | AD53: -337317.9404
I54: =IF(AND(I53+1<=Formulario!$C$17,I53<>0),I53+1,0) -> 33 | J54: 73271.49187 | K54: =IF(Formulario!$C$19="UVR",J54*$K$12,IF(Formulario!$C$19="PESOS",J54*$K$13,"Error")) -> 385.5321894 | L54: 328.3187788 | M54: =IF(I54<>0,IF(Formulario!$C$19="UVR",Simulador!$L$12,IF(Formulario!$C$19="PESOS",Simulador!$L$13,"Error")),0) -> 713.8509682 | N54: 72943.17309 | P54: =IF(I54<>0,IF(Formulario!$C$19="UVR",(P53*(1+$K$11)),IF(Formulario!$C$19="PESOS",1,"Error")),0) -> 450.3357221 | Q54: 173618.9169 | R54: 321472.5912 | S54: =IF(Formulario!$C$19="UVR",P54*N54,IF(Formulario!$C$19="PESOS",N54,"Error")) -> 32848916.53 | U54: 0 | V54: -321472.5912 | W54: 0 | X54: 0 | Y54: 0 | Z54: 0 | AB54: -13450.93777 | AC54: -4264.931489 | AD54: -339188.4605
I55: =IF(AND(I54+1<=Formulario!$C$17,I54<>0),I54+1,0) -> 34 | J55: 72943.17309 | K55: =IF(Formulario!$C$19="UVR",J55*$K$12,IF(Formulario!$C$19="PESOS",J55*$K$13,"Error")) -> 383.8046764 | L55: 330.0462918 | M55: =IF(I55<>0,IF(Formulario!$C$19="UVR",Simulador!$L$12,IF(Formulario!$C$19="PESOS",Simulador!$L$13,"Error")),0) -> 713.8509682 | N55: 72613.1268 | P55: =IF(I55<>0,IF(Formulario!$C$19="UVR",(P54*(1+$K$11)),IF(Formulario!$C$19="PESOS",1,"Error")),0) -> 452.938381 | Q55: 173839.8687 | R55: 323330.5018 | S55: =IF(Formulario!$C$19="UVR",P55*N55,IF(Formulario!$C$19="PESOS",N55,"Error")) -> 32889272.09 | U55: 0 | V55: -323330.5018 | W55: 0 | X55: 0 | Y55: 0 | Z55: 0 | AB55: -13468.05578 | AC55: -4270.359149 | AD55: -341068.9167
I56: =IF(AND(I55+1<=Formulario!$C$17,I55<>0),I55+1,0) -> 35 | J56: 72613.1268 | K56: =IF(Formulario!$C$19="UVR",J56*$K$12,IF(Formulario!$C$19="PESOS",J56*$K$13,"Error")) -> 382.0680737 | L56: 331.7828945 | M56: =IF(I56<>0,IF(Formulario!$C$19="UVR",Simulador!$L$12,IF(Formulario!$C$19="PESOS",Simulador!$L$13,"Error")),0) -> 713.8509682 | N56: 72281.3439 | P56: =IF(I56<>0,IF(Formulario!$C$19="UVR",(P55*(1+$K$11)),IF(Formulario!$C$19="PESOS",1,"Error")),0) -> 455.5560817 | Q56: 174053.4346 | R56: 325199.15 | S56: =IF(Formulario!$C$19="UVR",P56*N56,IF(Formulario!$C$19="PESOS",N56,"Error")) -> 32928205.81 | U56: 0 | V56: -325199.15 | W56: 0 | X56: 0 | Y56: 0 | Z56: 0 | AB56: -13484.60156 | AC56: -4275.605372 | AD56: -342959.3569
I57: =IF(AND(I56+1<=Formulario!$C$17,I56<>0),I56+1,0) -> 36 | J57: 72281.3439 | K57: =IF(Formulario!$C$19="UVR",J57*$K$12,IF(Formulario!$C$19="PESOS",J57*$K$13,"Error")) -> 380.3223335 | L57: 333.5286346 | M57: =IF(I57<>0,IF(Formulario!$C$19="UVR",Simulador!$L$12,IF(Formulario!$C$19="PESOS",Simulador!$L$13,"Error")),0) -> 713.8509682 | N57: 71947.81527 | P57: =IF(I57<>0,IF(Formulario!$C$19="UVR",(P56*(1+$K$11)),IF(Formulario!$C$19="PESOS",1,"Error")),0) -> 458.188911 | Q57: 174259.4758 | R57: 327078.5977 | S57: =IF(Formulario!$C$19="UVR",P57*N57,IF(Formulario!$C$19="PESOS",N57,"Error")) -> 32965691.12 | U57: 0 | V57: -327078.5977 | W57: 0 | X57: 0 | Y57: 0 | Z57: 0 | AB57: -13500.56438 | AC57: -4280.666755 | AD57: -344859.8288
I58: =IF(AND(I57+1<=Formulario!$C$17,I57<>0),I57+1,0) -> 37 | J58: 71947.81527 | K58: =IF(Formulario!$C$19="UVR",J58*$K$12,IF(Formulario!$C$19="PESOS",J58*$K$13,"Error")) -> 378.5674078 | L58: 335.2835603 | M58: =IF(I58<>0,IF(Formulario!$C$19="UVR",Simulador!$L$12,IF(Formulario!$C$19="PESOS",Simulador!$L$13,"Error")),0) -> 713.8509682 | N58: 71612.53171 | P58: =IF(I58<>0,IF(Formulario!$C$19="UVR",(P57*(1+$K$11)),IF(Formulario!$C$19="PESOS",1,"Error")),0) -> 460.8369564 | Q58: 174457.852 | R58: 328968.9075 | S58: =IF(Formulario!$C$19="UVR",P58*N58,IF(Formulario!$C$19="PESOS",N58,"Error")) -> 33001701.15 | U58: 0 | V58: -328968.9075 | W58: 0 | X58: 0 | Y58: 0 | Z58: 0 | AB58: -13515.93336 | AC58: -4285.539846 | AD58: -346770.3807
I59: =IF(AND(I58+1<=Formulario!$C$17,I58<>0),I58+1,0) -> 38 | J59: 71612.53171 | K59: =IF(Formulario!$C$19="UVR",J59*$K$12,IF(Formulario!$C$19="PESOS",J59*$K$13,"Error")) -> 376.8032482 | L59: 337.0477199 | M59: =IF(I59<>0,IF(Formulario!$C$19="UVR",Simulador!$L$12,IF(Formulario!$C$19="PESOS",Simulador!$L$13,"Error")),0) -> 713.8509682 | N59: 71275.48399 | P59: =IF(I59<>0,IF(Formulario!$C$19="UVR",(P58*(1+$K$11)),IF(Formulario!$C$19="PESOS",1,"Error")),0) -> 463.5003059 | Q59: 174648.4208 | R59: 330870.1421 | S59: =IF(Formulario!$C$19="UVR",P59*N59,IF(Formulario!$C$19="PESOS",N59,"Error")) -> 33036208.63 | U59: 0 | V59: -330870.1421 | W59: 0 | X59: 0 | Y59: 0 | Z59: 0 | AB59: -13530.69747 | AC59: -4290.22115 | AD59: -348691.0607
I60: =IF(AND(I59+1<=Formulario!$C$17,I59<>0),I59+1,0) -> 39 | J60: 71275.48399 | K60: =IF(Formulario!$C$19="UVR",J60*$K$12,IF(Formulario!$C$19="PESOS",J60*$K$13,"Error")) -> 375.0298062 | L60: 338.821162 | M60: =IF(I60<>0,IF(Formulario!$C$19="UVR",Simulador!$L$12,IF(Formulario!$C$19="PESOS",Simulador!$L$13,"Error")),0) -> 713.8509682 | N60: 70936.66283 | P60: =IF(I60<>0,IF(Formulario!$C$19="UVR",(P59*(1+$K$11)),IF(Formulario!$C$19="PESOS",1,"Error")),0) -> 466.1790478 | Q60: 174831.0379 | R60: 332782.3646 | S60: =IF(Formulario!$C$19="UVR",P60*N60,IF(Formulario!$C$19="PESOS",N60,"Error")) -> 33069185.93 | U60: 0 | V60: -332782.3646 | W60: 0 | X60: 0 | Y60: 0 | Z60: 0 | AB60: -13544.84554 | AC60: -4294.707122 | AD60: -350621.9173
I61: =IF(AND(I60+1<=Formulario!$C$17,I60<>0),I60+1,0) -> 40 | J61: 70936.66283 | K61: =IF(Formulario!$C$19="UVR",J61*$K$12,IF(Formulario!$C$19="PESOS",J61*$K$13,"Error")) -> 373.2470328 | L61: 340.6039354 | M61: =IF(I61<>0,IF(Formulario!$C$19="UVR",Simulador!$L$12,IF(Formulario!$C$19="PESOS",Simulador!$L$13,"Error")),0) -> 713.8509682 | N61: 70596.05889 | P61: =IF(I61<>0,IF(Formulario!$C$19="UVR",(P60*(1+$K$11)),IF(Formulario!$C$19="PESOS",1,"Error")),0) -> 468.8732712 | Q61: 175005.5573 | R61: 334705.6386 | S61: =IF(Formulario!$C$19="UVR",P61*N61,IF(Formulario!$C$19="PESOS",N61,"Error")) -> 33100605.07 | U61: 0 | V61: -334705.6386 | W61: 0 | X61: 0 | Y61: 0 | Z61: 0 | AB61: -13558.36623 | AC61: -4298.994171 | AD61: -352562.999
I62: =IF(AND(I61+1<=Formulario!$C$17,I61<>0),I61+1,0) -> 41 | J62: 70596.05889 | K62: =IF(Formulario!$C$19="UVR",J62*$K$12,IF(Formulario!$C$19="PESOS",J62*$K$13,"Error")) -> 371.454879 | L62: 342.3960891 | M62: =IF(I62<>0,IF(Formulario!$C$19="UVR",Simulador!$L$12,IF(Formulario!$C$19="PESOS",Simulador!$L$13,"Error")),0) -> 713.8509682 | N62: 70253.6628 | P62: =IF(I62<>0,IF(Formulario!$C$19="UVR",(P61*(1+$K$11)),IF(Formulario!$C$19="PESOS",1,"Error")),0) -> 471.5830656 | Q62: 175171.8306 | R62: 336640.0279 | S62: =IF(Formulario!$C$19="UVR",P62*N62,IF(Formulario!$C$19="PESOS",N62,"Error")) -> 33130437.67 | U62: 0 | V62: -336640.0279 | W62: 0 | X62: 0 | Y62: 0 | Z62: 0 | AB62: -13571.24808 | AC62: -4303.078659 | AD62: -354514.3547
I63: =IF(AND(I62+1<=Formulario!$C$17,I62<>0),I62+1,0) -> 42 | J63: 70253.6628 | K63: =IF(Formulario!$C$19="UVR",J63*$K$12,IF(Formulario!$C$19="PESOS",J63*$K$13,"Error")) -> 369.6532955 | L63: 344.1976727 | M63: =IF(I63<>0,IF(Formulario!$C$19="UVR",Simulador!$L$12,IF(Formulario!$C$19="PESOS",Simulador!$L$13,"Error")),0) -> 713.8509682 | N63: 69909.46513 | P63: =IF(I63<>0,IF(Formulario!$C$19="UVR",(P62*(1+$K$11)),IF(Formulario!$C$19="PESOS",1,"Error")),0) -> 474.3085208 | Q63: 175329.7078 | R63: 338585.5968 | S63: =IF(Formulario!$C$19="UVR",P63*N63,IF(Formulario!$C$19="PESOS",N63,"Error")) -> 33158655 | U63: 0 | V63: -338585.5968 | W63: 0 | X63: 0 | Y63: 0 | Z63: 0 | AB63: -13583.47945 | AC63: -4306.956897 | AD63: -356476.0332
I64: =IF(AND(I63+1<=Formulario!$C$17,I63<>0),I63+1,0) -> 43 | J64: 69909.46513 | K64: =IF(Formulario!$C$19="UVR",J64*$K$12,IF(Formulario!$C$19="PESOS",J64*$K$13,"Error")) -> 367.8422326 | L64: 346.0087356 | M64: =IF(I64<>0,IF(Formulario!$C$19="UVR",Simulador!$L$12,IF(Formulario!$C$19="PESOS",Simulador!$L$13,"Error")),0) -> 713.8509682 | N64: 69563.45639 | P64: =IF(I64<>0,IF(Formulario!$C$19="UVR",(P63*(1+$K$11)),IF(Formulario!$C$19="PESOS",1,"Error")),0) -> 477.0497275 | Q64: 175479.0368 | R64: 340542.4099 | S64: =IF(Formulario!$C$19="UVR",P64*N64,IF(Formulario!$C$19="PESOS",N64,"Error")) -> 33185227.92 | U64: 0 | V64: -340542.4099 | W64: 0 | X64: 0 | Y64: 0 | Z64: 0 | AB64: -13595.04855 | AC64: -4310.62515 | AD64: -358448.0836
I65: =IF(AND(I64+1<=Formulario!$C$17,I64<>0),I64+1,0) -> 44 | J65: 69563.45639 | K65: =IF(Formulario!$C$19="UVR",J65*$K$12,IF(Formulario!$C$19="PESOS",J65*$K$13,"Error")) -> 366.0216404 | L65: 347.8293278 | M65: =IF(I65<>0,IF(Formulario!$C$19="UVR",Simulador!$L$12,IF(Formulario!$C$19="PESOS",Simulador!$L$13,"Error")),0) -> 713.8509682 | N65: 69215.62707 | P65: =IF(I65<>0,IF(Formulario!$C$19="UVR",(P64*(1+$K$11)),IF(Formulario!$C$19="PESOS",1,"Error")),0) -> 479.8067767 | Q65: 175619.6635 | R65: 342510.5321 | S65: =IF(Formulario!$C$19="UVR",P65*N65,IF(Formulario!$C$19="PESOS",N65,"Error")) -> 33210126.92 | U65: 0 | V65: -342510.5321 | W65: 0 | X65: 0 | Y65: 0 | Z65: 0 | AB65: -13605.94345 | AC65: -4314.079629 | AD65: -360430.5551
I66: =IF(AND(I65+1<=Formulario!$C$17,I65<>0),I65+1,0) -> 45 | J66: 69215.62707 | K66: =IF(Formulario!$C$19="UVR",J66*$K$12,IF(Formulario!$C$19="PESOS",J66*$K$13,"Error")) -> 364.1914688 | L66: 349.6594994 | M66: =IF(I66<>0,IF(Formulario!$C$19="UVR",Simulador!$L$12,IF(Formulario!$C$19="PESOS",Simulador!$L$13,"Error")),0) -> 713.8509682 | N66: 68865.96757 | P66: =IF(I66<>0,IF(Formulario!$C$19="UVR",(P65*(1+$K$11)),IF(Formulario!$C$19="PESOS",1,"Error")),0) -> 482.5797598 | Q66: 175751.4315 | R66: 344490.0288 | S66: =IF(Formulario!$C$19="UVR",P66*N66,IF(Formulario!$C$19="PESOS",N66,"Error")) -> 33233322.09 | U66: 0 | V66: -344490.0288 | W66: 0 | X66: 0 | Y66: 0 | Z66: 0 | AB66: -13616.15204 | AC66: -4317.316499 | AD66: -362423.4973
I67: =IF(AND(I66+1<=Formulario!$C$17,I66<>0),I66+1,0) -> 46 | J67: 68865.96757 | K67: =IF(Formulario!$C$19="UVR",J67*$K$12,IF(Formulario!$C$19="PESOS",J67*$K$13,"Error")) -> 362.3516674 | L67: 351.4993008 | M67: =IF(I67<>0,IF(Formulario!$C$19="UVR",Simulador!$L$12,IF(Formulario!$C$19="PESOS",Simulador!$L$13,"Error")),0) -> 713.8509682 | N67: 68514.46827 | P67: =IF(I67<>0,IF(Formulario!$C$19="UVR",(P66*(1+$K$11)),IF(Formulario!$C$19="PESOS",1,"Error")),0) -> 485.3687691 | Q67: 175874.1828 | R67: 346480.9657 | S67: =IF(Formulario!$C$19="UVR",P67*N67,IF(Formulario!$C$19="PESOS",N67,"Error")) -> 33254783.13 | U67: 0 | V67: -346480.9657 | W67: 0 | X67: 0 | Y67: 0 | Z67: 0 | AB67: -13625.66206 | AC67: -4320.331872 | AD67: -364426.9597
I68: =IF(AND(I67+1<=Formulario!$C$17,I67<>0),I67+1,0) -> 47 | J68: 68514.46827 | K68: =IF(Formulario!$C$19="UVR",J68*$K$12,IF(Formulario!$C$19="PESOS",J68*$K$13,"Error")) -> 360.5021856 | L68: 353.3487826 | M68: =IF(I68<>0,IF(Formulario!$C$19="UVR",Simulador!$L$12,IF(Formulario!$C$19="PESOS",Simulador!$L$13,"Error")),0) -> 713.8509682 | N68: 68161.11948 | P68: =IF(I68<>0,IF(Formulario!$C$19="UVR",(P67*(1+$K$11)),IF(Formulario!$C$19="PESOS",1,"Error")),0) -> 488.1738971 | Q68: 175987.7568 | R68: 348483.4091 | S68: =IF(Formulario!$C$19="UVR",P68*N68,IF(Formulario!$C$19="PESOS",N68,"Error")) -> 33274479.33 | U68: 0 | V68: -348483.4091 | W68: 0 | X68: 0 | Y68: 0 | Z68: 0 | AB68: -13634.46108 | AC68: -4323.121807 | AD68: -366440.992
I69: =IF(AND(I68+1<=Formulario!$C$17,I68<>0),I68+1,0) -> 48 | J69: 68161.11948 | K69: =IF(Formulario!$C$19="UVR",J69*$K$12,IF(Formulario!$C$19="PESOS",J69*$K$13,"Error")) -> 358.6429723 | L69: 355.2079959 | M69: =IF(I69<>0,IF(Formulario!$C$19="UVR",Simulador!$L$12,IF(Formulario!$C$19="PESOS",Simulador!$L$13,"Error")),0) -> 713.8509682 | N69: 67805.91149 | P69: =IF(I69<>0,IF(Formulario!$C$19="UVR",(P68*(1+$K$11)),IF(Formulario!$C$19="PESOS",1,"Error")),0) -> 490.995237 | Q69: 176091.9912 | R69: 350497.4253 | S69: =IF(Formulario!$C$19="UVR",P69*N69,IF(Formulario!$C$19="PESOS",N69,"Error")) -> 33292379.58 | U69: 0 | V69: -350497.4253 | W69: 0 | X69: 0 | Y69: 0 | Z69: 0 | AB69: -13642.53653 | AC69: -4325.682313 | AD69: -368465.6441
I70: =IF(AND(I69+1<=Formulario!$C$17,I69<>0),I69+1,0) -> 49 | J70: 67805.91149 | K70: =IF(Formulario!$C$19="UVR",J70*$K$12,IF(Formulario!$C$19="PESOS",J70*$K$13,"Error")) -> 356.7739764 | L70: 357.0769918 | M70: =IF(I70<>0,IF(Formulario!$C$19="UVR",Simulador!$L$12,IF(Formulario!$C$19="PESOS",Simulador!$L$13,"Error")),0) -> 713.8509682 | N70: 67448.8345 | P70: =IF(I70<>0,IF(Formulario!$C$19="UVR",(P69*(1+$K$11)),IF(Formulario!$C$19="PESOS",1,"Error")),0) -> 493.8328825 | Q70: 176186.7212 | R70: 352523.0813 | S70: =IF(Formulario!$C$19="UVR",P70*N70,IF(Formulario!$C$19="PESOS",N70,"Error")) -> 33308452.36 | U70: 0 | V70: -352523.0813 | W70: 0 | X70: 0 | Y70: 0 | Z70: 0 | AB70: -13649.87563 | AC70: -4328.009345 | AD70: -370500.9662
I71: =IF(AND(I70+1<=Formulario!$C$17,I70<>0),I70+1,0) -> 50 | J71: 67448.8345 | K71: =IF(Formulario!$C$19="UVR",J71*$K$12,IF(Formulario!$C$19="PESOS",J71*$K$13,"Error")) -> 354.8951464 | L71: 358.9558217 | M71: =IF(I71<>0,IF(Formulario!$C$19="UVR",Simulador!$L$12,IF(Formulario!$C$19="PESOS",Simulador!$L$13,"Error")),0) -> 713.8509682 | N71: 67089.87867 | P71: =IF(I71<>0,IF(Formulario!$C$19="UVR",(P70*(1+$K$11)),IF(Formulario!$C$19="PESOS",1,"Error")),0) -> 496.6869278 | Q71: 176271.78 | R71: 354560.4443 | S71: =IF(Formulario!$C$19="UVR",P71*N71,IF(Formulario!$C$19="PESOS",N71,"Error")) -> 33322665.72 | U71: 0 | V71: -354560.4443 | W71: 0 | X71: 0 | Y71: 0 | Z71: 0 | AB71: -13656.46547 | AC71: -4330.098807 | AD71: -372547.0085
I72: =IF(AND(I71+1<=Formulario!$C$17,I71<>0),I71+1,0) -> 51 | J72: 67089.87867 | K72: =IF(Formulario!$C$19="UVR",J72*$K$12,IF(Formulario!$C$19="PESOS",J72*$K$13,"Error")) -> 353.0064307 | L72: 360.8445375 | M72: =IF(I72<>0,IF(Formulario!$C$19="UVR",Simulador!$L$12,IF(Formulario!$C$19="PESOS",Simulador!$L$13,"Error")),0) -> 713.8509682 | N72: 66729.03414 | P72: =IF(I72<>0,IF(Formulario!$C$19="UVR",(P71*(1+$K$11)),IF(Formulario!$C$19="PESOS",1,"Error")),0) -> 499.5574676 | Q72: 176346.9986 | R72: 356609.5819 | S72: =IF(Formulario!$C$19="UVR",P72*N72,IF(Formulario!$C$19="PESOS",N72,"Error")) -> 33334987.31 | U72: 0 | V72: -356609.5819 | W72: 0 | X72: 0 | Y72: 0 | Z72: 0 | AB72: -13662.29295 | AC72: -4331.946544 | AD72: -374603.8214
I73: =IF(AND(I72+1<=Formulario!$C$17,I72<>0),I72+1,0) -> 52 | J73: 66729.03414 | K73: =IF(Formulario!$C$19="UVR",J73*$K$12,IF(Formulario!$C$19="PESOS",J73*$K$13,"Error")) -> 351.107777 | L73: 362.7431912 | M73: =IF(I73<>0,IF(Formulario!$C$19="UVR",Simulador!$L$12,IF(Formulario!$C$19="PESOS",Simulador!$L$13,"Error")),0) -> 713.8509682 | N73: 66366.29095 | P73: =IF(I73<>0,IF(Formulario!$C$19="UVR",(P72*(1+$K$11)),IF(Formulario!$C$19="PESOS",1,"Error")),0) -> 502.4445975 | Q73: 176412.2057 | R73: 358670.5623 | S73: =IF(Formulario!$C$19="UVR",P73*N73,IF(Formulario!$C$19="PESOS",N73,"Error")) -> 33345384.34 | U73: 0 | V73: -358670.5623 | W73: 0 | X73: 0 | Y73: 0 | Z73: 0 | AB73: -13667.3448 | AC73: -4333.54835 | AD73: -376671.4555
I74: =IF(AND(I73+1<=Formulario!$C$17,I73<>0),I73+1,0) -> 53 | J74: 66366.29095 | K74: =IF(Formulario!$C$19="UVR",J74*$K$12,IF(Formulario!$C$19="PESOS",J74*$K$13,"Error")) -> 349.1991332 | L74: 364.6518349 | M74: =IF(I74<>0,IF(Formulario!$C$19="UVR",Simulador!$L$12,IF(Formulario!$C$19="PESOS",Simulador!$L$13,"Error")),0) -> 713.8509682 | N74: 66001.63911 | P74: =IF(I74<>0,IF(Formulario!$C$19="UVR",(P73*(1+$K$11)),IF(Formulario!$C$19="PESOS",1,"Error")),0) -> 505.3484131 | Q74: 176467.2278 | R74: 360743.4539 | S74: =IF(Formulario!$C$19="UVR",P74*N74,IF(Formulario!$C$19="PESOS",N74,"Error")) -> 33353823.58 | U74: 0 | V74: -360743.4539 | W74: 0 | X74: 0 | Y74: 0 | Z74: 0 | AB74: -13671.60758 | AC74: -4334.899964 | AD74: -378749.9615
I75: =IF(AND(I74+1<=Formulario!$C$17,I74<>0),I74+1,0) -> 54 | J75: 66001.63911 | K75: =IF(Formulario!$C$19="UVR",J75*$K$12,IF(Formulario!$C$19="PESOS",J75*$K$13,"Error")) -> 347.2804468 | L75: 366.5705214 | M75: =IF(I75<>0,IF(Formulario!$C$19="UVR",Simulador!$L$12,IF(Formulario!$C$19="PESOS",Simulador!$L$13,"Error")),0) -> 713.8509682 | N75: 65635.06859 | P75: =IF(I75<>0,IF(Formulario!$C$19="UVR",(P74*(1+$K$11)),IF(Formulario!$C$19="PESOS",1,"Error")),0) -> 508.2690109 | Q75: 176511.8892 | R75: 362828.3255 | S75: =IF(Formulario!$C$19="UVR",P75*N75,IF(Formulario!$C$19="PESOS",N75,"Error")) -> 33360271.39 | U75: 0 | V75: -362828.3255 | W75: 0 | X75: 0 | Y75: 0 | Z75: 0 | AB75: -13675.06767 | AC75: -4335.997066 | AD75: -380839.3903
I76: =IF(AND(I75+1<=Formulario!$C$17,I75<>0),I75+1,0) -> 55 | J76: 65635.06859 | K76: =IF(Formulario!$C$19="UVR",J76*$K$12,IF(Formulario!$C$19="PESOS",J76*$K$13,"Error")) -> 345.3516648 | L76: 368.4993034 | M76: =IF(I76<>0,IF(Formulario!$C$19="UVR",Simulador!$L$12,IF(Formulario!$C$19="PESOS",Simulador!$L$13,"Error")),0) -> 713.8509682 | N76: 65266.56929 | P76: =IF(I76<>0,IF(Formulario!$C$19="UVR",(P75*(1+$K$11)),IF(Formulario!$C$19="PESOS",1,"Error")),0) -> 511.206488 | Q76: 176546.0117 | R76: 364925.2464 | S76: =IF(Formulario!$C$19="UVR",P76*N76,IF(Formulario!$C$19="PESOS",N76,"Error")) -> 33364693.67 | U76: 0 | V76: -364925.2464 | W76: 0 | X76: 0 | Y76: 0 | Z76: 0 | AB76: -13677.71127 | AC76: -4336.835281 | AD76: -382939.793
I77: =IF(AND(I76+1<=Formulario!$C$17,I76<>0),I76+1,0) -> 56 | J77: 65266.56929 | K77: =IF(Formulario!$C$19="UVR",J77*$K$12,IF(Formulario!$C$19="PESOS",J77*$K$13,"Error")) -> 343.4127341 | L77: 370.4382341 | M77: =IF(I77<>0,IF(Formulario!$C$19="UVR",Simulador!$L$12,IF(Formulario!$C$19="PESOS",Simulador!$L$13,"Error")),0) -> 713.8509682 | N77: 64896.13105 | P77: =IF(I77<>0,IF(Formulario!$C$19="UVR",(P76*(1+$K$11)),IF(Formulario!$C$19="PESOS",1,"Error")),0) -> 514.1609419 | Q77: 176569.4148 | R77: 367034.2862 | S77: =IF(Formulario!$C$19="UVR",P77*N77,IF(Formulario!$C$19="PESOS",N77,"Error")) -> 33367055.87 | U77: 0 | V77: -367034.2862 | W77: 0 | X77: 0 | Y77: 0 | Z77: 0 | AB77: -13679.5244 | AC77: -4337.410177 | AD77: -385051.2207
I78: =IF(AND(I77+1<=Formulario!$C$17,I77<>0),I77+1,0) -> 57 | J78: 64896.13105 | K78: =IF(Formulario!$C$19="UVR",J78*$K$12,IF(Formulario!$C$19="PESOS",J78*$K$13,"Error")) -> 341.4636013 | L78: 372.3873668 | M78: =IF(I78<>0,IF(Formulario!$C$19="UVR",Simulador!$L$12,IF(Formulario!$C$19="PESOS",Simulador!$L$13,"Error")),0) -> 713.8509682 | N78: 64523.74368 | P78: =IF(I78<>0,IF(Formulario!$C$19="UVR",(P77*(1+$K$11)),IF(Formulario!$C$19="PESOS",1,"Error")),0) -> 517.1324706 | Q78: 176581.9158 | R78: 369155.5148 | S78: =IF(Formulario!$C$19="UVR",P78*N78,IF(Formulario!$C$19="PESOS",N78,"Error")) -> 33367322.99 | U78: 0 | V78: -369155.5148 | W78: 0 | X78: 0 | Y78: 0 | Z78: 0 | AB78: -13680.4929 | AC78: -4337.717262 | AD78: -387173.725
I79: =IF(AND(I78+1<=Formulario!$C$17,I78<>0),I78+1,0) -> 58 | J79: 64523.74368 | K79: =IF(Formulario!$C$19="UVR",J79*$K$12,IF(Formulario!$C$19="PESOS",J79*$K$13,"Error")) -> 339.5042129 | L79: 374.3467553 | M79: =IF(I79<>0,IF(Formulario!$C$19="UVR",Simulador!$L$12,IF(Formulario!$C$19="PESOS",Simulador!$L$13,"Error")),0) -> 713.8509682 | N79: 64149.39693 | P79: =IF(I79<>0,IF(Formulario!$C$19="UVR",(P78*(1+$K$11)),IF(Formulario!$C$19="PESOS",1,"Error")),0) -> 520.121173 | Q79: 176583.3294 | R79: 371289.0029 | S79: =IF(Formulario!$C$19="UVR",P79*N79,IF(Formulario!$C$19="PESOS",N79,"Error")) -> 33365459.58 | U79: 0 | V79: -371289.0029 | W79: 0 | X79: 0 | Y79: 0 | Z79: 0 | AB79: -13680.60242 | AC79: -4337.751988 | AD79: -389307.3573
I80: =IF(AND(I79+1<=Formulario!$C$17,I79<>0),I79+1,0) -> 59 | J80: 64149.39693 | K80: =IF(Formulario!$C$19="UVR",J80*$K$12,IF(Formulario!$C$19="PESOS",J80*$K$13,"Error")) -> 337.5345147 | L80: 376.3164535 | M80: =IF(I80<>0,IF(Formulario!$C$19="UVR",Simulador!$L$12,IF(Formulario!$C$19="PESOS",Simulador!$L$13,"Error")),0) -> 713.8509682 | N80: 63773.08048 | P80: =IF(I80<>0,IF(Formulario!$C$19="UVR",(P79*(1+$K$11)),IF(Formulario!$C$19="PESOS",1,"Error")),0) -> 523.1271481 | Q80: 176573.4681 | R80: 373434.8212 | S80: =IF(Formulario!$C$19="UVR",P80*N80,IF(Formulario!$C$19="PESOS",N80,"Error")) -> 33361429.72 | U80: 0 | V80: -373434.8212 | W80: 0 | X80: 0 | Y80: 0 | Z80: 0 | AB80: -13679.83843 | AC80: -4337.509745 | AD80: -391452.1693
I81: =IF(AND(I80+1<=Formulario!$C$17,I80<>0),I80+1,0) -> 60 | J81: 63773.08048 | K81: =IF(Formulario!$C$19="UVR",J81*$K$12,IF(Formulario!$C$19="PESOS",J81*$K$13,"Error")) -> 335.5544526 | L81: 378.2965156 | M81: =IF(I81<>0,IF(Formulario!$C$19="UVR",Simulador!$L$12,IF(Formulario!$C$19="PESOS",Simulador!$L$13,"Error")),0) -> 713.8509682 | N81: 63394.78396 | P81: =IF(I81<>0,IF(Formulario!$C$19="UVR",(P80*(1+$K$11)),IF(Formulario!$C$19="PESOS",1,"Error")),0) -> 526.150496 | Q81: 176552.1416 | R81: 375593.041 | S81: =IF(Formulario!$C$19="UVR",P81*N81,IF(Formulario!$C$19="PESOS",N81,"Error")) -> 33355197.02 | U81: 0 | V81: -375593.041 | W81: 0 | X81: 0 | Y81: 0 | Z81: 0 | AB81: -13678.18618 | AC81: -4336.985863 | AD81: -393608.213
I82: =IF(AND(I81+1<=Formulario!$C$17,I81<>0),I81+1,0) -> 61 | J82: 63394.78396 | K82: =IF(Formulario!$C$19="UVR",J82*$K$12,IF(Formulario!$C$19="PESOS",J82*$K$13,"Error")) -> 333.5639719 | L82: 380.2869962 | M82: =IF(I82<>0,IF(Formulario!$C$19="UVR",Simulador!$L$12,IF(Formulario!$C$19="PESOS",Simulador!$L$13,"Error")),0) -> 713.8509682 | N82: 63014.49696 | P82: =IF(I82<>0,IF(Formulario!$C$19="UVR",(P81*(1+$K$11)),IF(Formulario!$C$19="PESOS",1,"Error")),0) -> 529.1913169 | Q82: 176519.1576 | R82: 377763.7339 | S82: =IF(Formulario!$C$19="UVR",P82*N82,IF(Formulario!$C$19="PESOS",N82,"Error")) -> 33346724.63 | U82: 0 | V82: -377763.7339 | W82: 0 | X82: 0 | Y82: 0 | Z82: 0 | AB82: -13675.63078 | AC82: -4336.175613 | AD82: -395775.5403
I83: =IF(AND(I82+1<=Formulario!$C$17,I82<>0),I82+1,0) -> 62 | J83: 63014.49696 | K83: =IF(Formulario!$C$19="UVR",J83*$K$12,IF(Formulario!$C$19="PESOS",J83*$K$13,"Error")) -> 331.563018 | L83: 382.2879501 | M83: =IF(I83<>0,IF(Formulario!$C$19="UVR",Simulador!$L$12,IF(Formulario!$C$19="PESOS",Simulador!$L$13,"Error")),0) -> 713.8509682 | N83: 62632.20901 | P83: =IF(I83<>0,IF(Formulario!$C$19="UVR",(P82*(1+$K$11)),IF(Formulario!$C$19="PESOS",1,"Error")),0) -> 532.2497118 | Q83: 176474.3208 | R83: 379946.9721 | S83: =IF(Formulario!$C$19="UVR",P83*N83,IF(Formulario!$C$19="PESOS",N83,"Error")) -> 33335975.2 | U83: 0 | V83: -379946.9721 | W83: 0 | X83: 0 | Y83: 0 | Z83: 0 | AB83: -13672.1571 | AC83: -4335.074202 | AD83: -397954.2034
I84: =IF(AND(I83+1<=Formulario!$C$17,I83<>0),I83+1,0) -> 63 | J84: 62632.20901 | K84: =IF(Formulario!$C$19="UVR",J84*$K$12,IF(Formulario!$C$19="PESOS",J84*$K$13,"Error")) -> 329.5515357 | L84: 384.2994325 | M84: =IF(I84<>0,IF(Formulario!$C$19="UVR",Simulador!$L$12,IF(Formulario!$C$19="PESOS",Simulador!$L$13,"Error")),0) -> 713.8509682 | N84: 62247.90958 | P84: =IF(I84<>0,IF(Formulario!$C$19="UVR",(P83*(1+$K$11)),IF(Formulario!$C$19="PESOS",1,"Error")),0) -> 535.3257823 | Q84: 176417.4337 | R84: 382142.828 | S84: =IF(Formulario!$C$19="UVR",P84*N84,IF(Formulario!$C$19="PESOS",N84,"Error")) -> 33322910.89 | U84: 0 | V84: -382142.828 | W84: 0 | X84: 0 | Y84: 0 | Z84: 0 | AB84: -13667.74983 | AC84: -4333.676775 | AD84: -400144.2546
I85: =IF(AND(I84+1<=Formulario!$C$17,I84<>0),I84+1,0) -> 64 | J85: 62247.90958 | K85: =IF(Formulario!$C$19="UVR",J85*$K$12,IF(Formulario!$C$19="PESOS",J85*$K$13,"Error")) -> 327.5294696 | L85: 386.3214986 | M85: =IF(I85<>0,IF(Formulario!$C$19="UVR",Simulador!$L$12,IF(Formulario!$C$19="PESOS",Simulador!$L$13,"Error")),0) -> 713.8509682 | N85: 61861.58808 | P85: =IF(I85<>0,IF(Formulario!$C$19="UVR",(P84*(1+$K$11)),IF(Formulario!$C$19="PESOS",1,"Error")),0) -> 538.4196306 | Q85: 176348.296 | R85: 384351.3746 | S85: =IF(Formulario!$C$19="UVR",P85*N85,IF(Formulario!$C$19="PESOS",N85,"Error")) -> 33307493.41 | U85: 0 | V85: -384351.3746 | W85: 0 | X85: 0 | Y85: 0 | Z85: 0 | AB85: -13662.39347 | AC85: -4331.978416 | AD85: =SUM(U85:AC85) -> -402345.7465
I86: =IF(AND(I85+1<=Formulario!$C$17,I85<>0),I85+1,0) -> 65 | J86: 61861.58808 | K86: =IF(Formulario!$C$19="UVR",J86*$K$12,IF(Formulario!$C$19="PESOS",J86*$K$13,"Error")) -> 325.496764 | L86: 388.3542042 | M86: =IF(I86<>0,IF(Formulario!$C$19="UVR",Simulador!$L$12,IF(Formulario!$C$19="PESOS",Simulador!$L$13,"Error")),0) -> 713.8509682 | N86: 61473.23388 | P86: =IF(I86<>0,IF(Formulario!$C$19="UVR",(P85*(1+$K$11)),IF(Formulario!$C$19="PESOS",1,"Error")),0) -> 541.5313594 | Q86: 176266.7051 | R86: 386572.6852 | S86: =IF(Formulario!$C$19="UVR",P86*N86,IF(Formulario!$C$19="PESOS",N86,"Error")) -> 33289683.91 | U86: 0 | V86: -386572.6852 | W86: 0 | X86: 0 | Y86: 0 | Z86: 0 | AB86: -13656.0723 | AC86: -4329.974143 | AD86: -404558.7317
I87: =IF(AND(I86+1<=Formulario!$C$17,I86<>0),I86+1,0) -> 66 | J87: 61473.23388 | K87: =IF(Formulario!$C$19="UVR",J87*$K$12,IF(Formulario!$C$19="PESOS",J87*$K$13,"Error")) -> 323.4533629 | L87: =IF(I87<>0,M87-K87,0) -> 390.3976053 | M87: =IF(I87<>0,IF(Formulario!$C$19="UVR",Simulador!$L$12,IF(Formulario!$C$19="PESOS",Simulador!$L$13,"Error")),0) -> 713.8509682 | N87: 61082.83627 | P87: =IF(I87<>0,IF(Formulario!$C$19="UVR",(P86*(1+$K$11)),IF(Formulario!$C$19="PESOS",1,"Error")),0) -> 544.6610721 | Q87: =P87*$K87 -> 176172.4554 | R87: 388806.8336 | S87: =IF(Formulario!$C$19="UVR",P87*N87,IF(Formulario!$C$19="PESOS",N87,"Error")) -> 33269443.09 | U87: 0 | V87: =-R87 -> -388806.8336 | W87: 0 | X87: 0 | Y87: 0 | Z87: 0 | AB87: =(S86*($Z$19/100))*-1 -> -13648.7704 | AC87: =($Z$14*S86)*-1 -> -4327.658909 | AD87: -406783.263
I88: =IF(AND(I87+1<=Formulario!$C$17,I87<>0),I87+1,0) -> 67 | J88: 61082.83627 | K88: =IF(Formulario!$C$19="UVR",J88*$K$12,IF(Formulario!$C$19="PESOS",J88*$K$13,"Error")) -> 321.39921 | L88: 392.4517581 | M88: =IF(I88<>0,IF(Formulario!$C$19="UVR",Simulador!$L$12,IF(Formulario!$C$19="PESOS",Simulador!$L$13,"Error")),0) -> 713.8509682 | N88: 60690.38451 | P88: =IF(I88<>0,IF(Formulario!$C$19="UVR",(P87*(1+$K$11)),IF(Formulario!$C$19="PESOS",1,"Error")),0) -> 547.8088725 | Q88: 176065.3389 | R88: =P88*$M88 -> 391053.894 | S88: =IF(Formulario!$C$19="UVR",P88*N88,IF(Formulario!$C$19="PESOS",N88,"Error")) -> 33246731.12 | U88: 0 | V88: -391053.894 | W88: 0 | X88: 0 | Y88: 0 | Z88: 0 | AB88: -13640.47167 | AC88: -4325.027602 | AD88: -409019.3933
I89: =IF(AND(I88+1<=Formulario!$C$17,I88<>0),I88+1,0) -> 68 | J89: 60690.38451 | K89: =IF(Formulario!$C$19="UVR",J89*$K$12,IF(Formulario!$C$19="PESOS",J89*$K$13,"Error")) -> 319.3342489 | L89: 394.5167193 | M89: =IF(I89<>0,IF(Formulario!$C$19="UVR",Simulador!$L$12,IF(Formulario!$C$19="PESOS",Simulador!$L$13,"Error")),0) -> 713.8509682 | N89: 60295.8678 | P89: =IF(I89<>0,IF(Formulario!$C$19="UVR",(P88*(1+$K$11)),IF(Formulario!$C$19="PESOS",1,"Error")),0) -> 550.9748653 | Q89: 175945.1448 | R89: 393313.941 | S89: =IF(Formulario!$C$19="UVR",P89*N89,IF(Formulario!$C$19="PESOS",N89,"Error")) -> 33221507.64 | U89: 0 | V89: -393313.941 | W89: 0 | X89: 0 | Y89: 0 | Z89: 0 | AB89: -13631.15976 | AC89: -4322.075045 | AD89: -411267.1758
I90: =IF(AND(I89+1<=Formulario!$C$17,I89<>0),I89+1,0) -> 69 | J90: =IF(I90<>0,N89,0) -> 60295.8678 | K90: =IF(Formulario!$C$19="UVR",J90*$K$12,IF(Formulario!$C$19="PESOS",J90*$K$13,"Error")) -> 317.2584225 | L90: 396.5925457 | M90: =IF(I90<>0,IF(Formulario!$C$19="UVR",Simulador!$L$12,IF(Formulario!$C$19="PESOS",Simulador!$L$13,"Error")),0) -> 713.8509682 | N90: =J90-L90 -> 59899.27525 | P90: =IF(I90<>0,IF(Formulario!$C$19="UVR",(P89*(1+$K$11)),IF(Formulario!$C$19="PESOS",1,"Error")),0) -> 554.1591555 | Q90: 175811.6595 | R90: 395587.0497 | S90: =IF(Formulario!$C$19="UVR",P90*N90,IF(Formulario!$C$19="PESOS",N90,"Error")) -> 33193731.79 | U90: 0 | V90: -395587.0497 | W90: 0 | X90: 0 | Y90: 0 | Z90: 0 | AB90: -13620.81813 | AC90: -4318.795993 | AD90: -413526.6638
I91: =IF(AND(I90+1<=Formulario!$C$17,I90<>0),I90+1,0) -> 70 | J91: 59899.27525 | K91: =IF(Formulario!$C$19="UVR",J91*$K$12,IF(Formulario!$C$19="PESOS",J91*$K$13,"Error")) -> 315.1716738 | L91: 398.6792944 | M91: =IF(I91<>0,IF(Formulario!$C$19="UVR",Simulador!$L$12,IF(Formulario!$C$19="PESOS",Simulador!$L$13,"Error")),0) -> 713.8509682 | N91: 59500.59596 | P91: =IF(I91<>0,IF(Formulario!$C$19="UVR",(P90*(1+$K$11)),IF(Formulario!$C$19="PESOS",1,"Error")),0) -> 557.361849 | Q91: 175664.6668 | R91: 397873.2955 | S91: =IF(Formulario!$C$19="UVR",P91*N91,IF(Formulario!$C$19="PESOS",N91,"Error")) -> 33163362.18 | U91: 0 | V91: -397873.2955 | W91: 0 | X91: 0 | Y91: 0 | Z91: 0 | AB91: -13609.43003 | AC91: -4315.185133 | AD91: -415797.9107
I92: =IF(AND(I91+1<=Formulario!$C$17,I91<>0),I91+1,0) -> 71 | J92: 59500.59596 | K92: =IF(Formulario!$C$19="UVR",J92*$K$12,IF(Formulario!$C$19="PESOS",J92*$K$13,"Error")) -> 313.0739452 | L92: 400.777023 | M92: =IF(I92<>0,IF(Formulario!$C$19="UVR",Simulador!$L$12,IF(Formulario!$C$19="PESOS",Simulador!$L$13,"Error")),0) -> 713.8509682 | N92: 59099.81893 | P92: =IF(I92<>0,IF(Formulario!$C$19="UVR",(P91*(1+$K$11)),IF(Formulario!$C$19="PESOS",1,"Error")),0) -> 560.5830519 | Q92: 175503.9477 | R92: 400172.7544 | S92: =IF(Formulario!$C$19="UVR",P92*N92,IF(Formulario!$C$19="PESOS",N92,"Error")) -> 33130356.87 | U92: 0 | V92: -400172.7544 | W92: 0 | X92: 0 | Y92: 0 | Z92: 0 | AB92: -13596.97849 | AC92: -4311.237083 | AD92: -418080.9699
I93: =IF(AND(I92+1<=Formulario!$C$17,I92<>0),I92+1,0) -> 72 | J93: 59099.81893 | K93: =IF(Formulario!$C$19="UVR",J93*$K$12,IF(Formulario!$C$19="PESOS",J93*$K$13,"Error")) -> 310.965179 | L93: 402.8857891 | M93: =IF(I93<>0,IF(Formulario!$C$19="UVR",Simulador!$L$12,IF(Formulario!$C$19="PESOS",Simulador!$L$13,"Error")),0) -> 713.8509682 | N93: 58696.93314 | P93: =IF(I93<>0,IF(Formulario!$C$19="UVR",(P92*(1+$K$11)),IF(Formulario!$C$19="PESOS",1,"Error")),0) -> 563.8228715 | Q93: 175329.2802 | R93: 402485.5027 | S93: =IF(Formulario!$C$19="UVR",P93*N93,IF(Formulario!$C$19="PESOS",N93,"Error")) -> 33094673.39 | U93: 0 | V93: -402485.5027 | W93: 0 | X93: 0 | Y93: 0 | Z93: 0 | AB93: -13583.44632 | AC93: -4306.946393 | AD93: -420375.8954
I94: =IF(AND(I93+1<=Formulario!$C$17,I93<>0),I93+1,0) -> 73 | J94: 58696.93314 | K94: =IF(Formulario!$C$19="UVR",J94*$K$12,IF(Formulario!$C$19="PESOS",J94*$K$13,"Error")) -> 308.8453172 | L94: 405.005651 | M94: =IF(I94<>0,IF(Formulario!$C$19="UVR",Simulador!$L$12,IF(Formulario!$C$19="PESOS",Simulador!$L$13,"Error")),0) -> 713.8509682 | N94: 58291.92749 | P94: =IF(I94<>0,IF(Formulario!$C$19="UVR",(P93*(1+$K$11)),IF(Formulario!$C$19="PESOS",1,"Error")),0) -> 567.0814151 | Q94: 175140.4395 | R94: 404811.6172 | S94: =IF(Formulario!$C$19="UVR",P94*N94,IF(Formulario!$C$19="PESOS",N94,"Error")) -> 33056268.73 | U94: 0 | V94: -404811.6172 | W94: 0 | X94: 0 | Y94: 0 | Z94: 0 | AB94: -13568.81609 | AC94: -4302.307541 | AD94: -422682.7409
I95: =IF(AND(I94+1<=Formulario!$C$17,I94<>0),I94+1,0) -> 74 | J95: 58291.92749 | K95: =IF(Formulario!$C$19="UVR",J95*$K$12,IF(Formulario!$C$19="PESOS",J95*$K$13,"Error")) -> 306.7143013 | L95: 407.1366669 | M95: =IF(I95<>0,IF(Formulario!$C$19="UVR",Simulador!$L$12,IF(Formulario!$C$19="PESOS",Simulador!$L$13,"Error")),0) -> 713.8509682 | N95: 57884.79083 | P95: =IF(I95<>0,IF(Formulario!$C$19="UVR",(P94*(1+$K$11)),IF(Formulario!$C$19="PESOS",1,"Error")),0) -> 570.3587912 | Q95: 174937.1981 | R95: 407151.1753 | S95: =IF(Formulario!$C$19="UVR",P95*N95,IF(Formulario!$C$19="PESOS",N95,"Error")) -> 33015099.32 | U95: 0 | V95: -407151.1753 | W95: 0 | X95: 0 | Y95: 0 | Z95: 0 | AB95: -13553.07018 | AC95: -4297.314935 | AD95: -425001.5604
I96: =IF(AND(I95+1<=Formulario!$C$17,I95<>0),I95+1,0) -> 75 | J96: 57884.79083 | K96: =IF(Formulario!$C$19="UVR",J96*$K$12,IF(Formulario!$C$19="PESOS",J96*$K$13,"Error")) -> 304.5720726 | L96: 409.2788956 | M96: =IF(I96<>0,IF(Formulario!$C$19="UVR",Simulador!$L$12,IF(Formulario!$C$19="PESOS",Simulador!$L$13,"Error")),0) -> 713.8509682 | N96: 57475.51193 | P96: =IF(I96<>0,IF(Formulario!$C$19="UVR",(P95*(1+$K$11)),IF(Formulario!$C$19="PESOS",1,"Error")),0) -> 573.6551083 | Q96: 174719.3253 | R96: 409504.2545 | S96: =IF(Formulario!$C$19="UVR",P96*N96,IF(Formulario!$C$19="PESOS",N96,"Error")) -> 32971121.02 | U96: 0 | V96: -409504.2545 | W96: 0 | X96: 0 | Y96: 0 | Z96: 0 | AB96: -13536.19072 | AC96: -4291.962912 | AD96: -427332.4081
I97: =IF(AND(I96+1<=Formulario!$C$17,I96<>0),I96+1,0) -> 76 | J97: 57475.51193 | K97: =IF(Formulario!$C$19="UVR",J97*$K$12,IF(Formulario!$C$19="PESOS",J97*$K$13,"Error")) -> 302.4185722 | L97: 411.432396 | M97: =IF(I97<>0,IF(Formulario!$C$19="UVR",Simulador!$L$12,IF(Formulario!$C$19="PESOS",Simulador!$L$13,"Error")),0) -> 713.8509682 | N97: 57064.07953 | P97: =IF(I97<>0,IF(Formulario!$C$19="UVR",(P96*(1+$K$11)),IF(Formulario!$C$19="PESOS",1,"Error")),0) -> 576.9704762 | Q97: 174486.5876 | R97: 411870.933 | S97: =IF(Formulario!$C$19="UVR",P97*N97,IF(Formulario!$C$19="PESOS",N97,"Error")) -> 32924289.14 | U97: 0 | V97: -411870.933 | W97: 0 | X97: 0 | Y97: 0 | Z97: 0 | AB97: -13518.15962 | AC97: -4286.245733 | AD97: -429675.3384
I98: =IF(AND(I97+1<=Formulario!$C$17,I97<>0),I97+1,0) -> 77 | J98: 57064.07953 | K98: =IF(Formulario!$C$19="UVR",J98*$K$12,IF(Formulario!$C$19="PESOS",J98*$K$13,"Error")) -> 300.2537407 | L98: 413.5972275 | M98: =IF(I98<>0,IF(Formulario!$C$19="UVR",Simulador!$L$12,IF(Formulario!$C$19="PESOS",Simulador!$L$13,"Error")),0) -> 713.8509682 | N98: 56650.48231 | P98: =IF(I98<>0,IF(Formulario!$C$19="UVR",(P97*(1+$K$11)),IF(Formulario!$C$19="PESOS",1,"Error")),0) -> 580.3050048 | Q98: 174238.7484 | R98: 414251.2895 | S98: =IF(Formulario!$C$19="UVR",P98*N98,IF(Formulario!$C$19="PESOS",N98,"Error")) -> 32874558.41 | U98: 0 | V98: -414251.2895 | W98: 0 | X98: 0 | Y98: 0 | Z98: 0 | AB98: -13498.95855 | AC98: -4280.157588 | AD98: -432030.4056
I99: =IF(AND(I98+1<=Formulario!$C$17,I98<>0),I98+1,0) -> 78 | J99: 56650.48231 | K99: =IF(Formulario!$C$19="UVR",J99*$K$12,IF(Formulario!$C$19="PESOS",J99*$K$13,"Error")) -> 298.0775185 | L99: 415.7734496 | M99: =IF(I99<>0,IF(Formulario!$C$19="UVR",Simulador!$L$12,IF(Formulario!$C$19="PESOS",Simulador!$L$13,"Error")),0) -> 713.8509682 | N99: 56234.70886 | P99: =IF(I99<>0,IF(Formulario!$C$19="UVR",(P98*(1+$K$11)),IF(Formulario!$C$19="PESOS",1,"Error")),0) -> 583.6588049 | Q99: 173975.5682 | R99: 416645.4029 | S99: =IF(Formulario!$C$19="UVR",P99*N99,IF(Formulario!$C$19="PESOS",N99,"Error")) -> 32821882.96 | U99: 0 | V99: -416645.4029 | W99: 0 | X99: 0 | Y99: 0 | Z99: 0 | AB99: -13478.56895 | AC99: -4273.692593 | AD99: -434397.6645
I100: =IF(AND(I99+1<=Formulario!$C$17,I99<>0),I99+1,0) -> 79 | J100: 56234.70886 | K100: =IF(Formulario!$C$19="UVR",J100*$K$12,IF(Formulario!$C$19="PESOS",J100*$K$13,"Error")) -> 295.8898458 | L100: 417.9611224 | M100: =IF(I100<>0,IF(Formulario!$C$19="UVR",Simulador!$L$12,IF(Formulario!$C$19="PESOS",Simulador!$L$13,"Error")),0) -> 713.8509682 | N100: 55816.74773 | P100: =IF(I100<>0,IF(Formulario!$C$19="UVR",(P99*(1+$K$11)),IF(Formulario!$C$19="PESOS",1,"Error")),0) -> 587.0319878 | Q100: 173696.8043 | R100: 419053.3529 | S100: =IF(Formulario!$C$19="UVR",P100*N100,IF(Formulario!$C$19="PESOS",N100,"Error")) -> 32766216.38 | U100: 0 | V100: -419053.3529 | W100: 0 | X100: 0 | Y100: 0 | Z100: 0 | AB100: -13456.97202 | AC100: -4266.844785 | AD100: -436777.1697
I101: =IF(AND(I100+1<=Formulario!$C$17,I100<>0),I100+1,0) -> 80 | J101: 55816.74773 | K101: =IF(Formulario!$C$19="UVR",J101*$K$12,IF(Formulario!$C$19="PESOS",J101*$K$13,"Error")) -> 293.6906621 | L101: 420.1603061 | M101: =IF(I101<>0,IF(Formulario!$C$19="UVR",Simulador!$L$12,IF(Formulario!$C$19="PESOS",Simulador!$L$13,"Error")),0) -> 713.8509682 | N101: 55396.58743 | P101: =IF(I101<>0,IF(Formulario!$C$19="UVR",(P100*(1+$K$11)),IF(Formulario!$C$19="PESOS",1,"Error")),0) -> 590.4246657 | Q101: 173402.211 | R101: 421475.2192 | S101: =IF(Formulario!$C$19="UVR",P101*N101,IF(Formulario!$C$19="PESOS",N101,"Error")) -> 32707511.61 | U101: 0 | V101: -421475.2192 | W101: 0 | X101: 0 | Y101: 0 | Z101: 0 | AB101: -13434.14871 | AC101: -4259.608129 | AD101: -439168.9761
I102: =IF(AND(I101+1<=Formulario!$C$17,I101<>0),I101+1,0) -> 81 | J102: 55396.58743 | K102: =IF(Formulario!$C$19="UVR",J102*$K$12,IF(Formulario!$C$19="PESOS",J102*$K$13,"Error")) -> 291.479907 | L102: 422.3710611 | M102: =IF(I102<>0,IF(Formulario!$C$19="UVR",Simulador!$L$12,IF(Formulario!$C$19="PESOS",Simulador!$L$13,"Error")),0) -> 713.8509682 | N102: 54974.21637 | P102: =IF(I102<>0,IF(Formulario!$C$19="UVR",(P101*(1+$K$11)),IF(Formulario!$C$19="PESOS",1,"Error")),0) -> 593.8369511 | Q102: 173091.5393 | R102: 423911.0825 | S102: =IF(Formulario!$C$19="UVR",P102*N102,IF(Formulario!$C$19="PESOS",N102,"Error")) -> 32645721.03 | U102: 0 | V102: -423911.0825 | W102: 0 | X102: 0 | Y102: 0 | Z102: 0 | AB102: -13410.07976 | AC102: -4251.97651 | AD102: -441573.1387
I103: =IF(AND(I102+1<=Formulario!$C$17,I102<>0),I102+1,0) -> 82 | J103: 54974.21637 | K103: =IF(Formulario!$C$19="UVR",J103*$K$12,IF(Formulario!$C$19="PESOS",J103*$K$13,"Error")) -> 289.2575196 | L103: 424.5934485 | M103: =IF(I103<>0,IF(Formulario!$C$19="UVR",Simulador!$L$12,IF(Formulario!$C$19="PESOS",Simulador!$L$13,"Error")),0) -> 713.8509682 | N103: 54549.62292 | P103: =IF(I103<>0,IF(Formulario!$C$19="UVR",(P102*(1+$K$11)),IF(Formulario!$C$19="PESOS",1,"Error")),0) -> 597.2689573 | Q103: 172764.5372 | R103: 426361.0235 | S103: =IF(Formulario!$C$19="UVR",P103*N103,IF(Formulario!$C$19="PESOS",N103,"Error")) -> 32580796.4 | U103: 0 | V103: -426361.0235 | W103: 0 | X103: 0 | Y103: 0 | Z103: 0 | AB103: -13384.74562 | AC103: -4243.943735 | AD103: -443989.7128
I104: =IF(AND(I103+1<=Formulario!$C$17,I103<>0),I103+1,0) -> 83 | J104: 54549.62292 | K104: =IF(Formulario!$C$19="UVR",J104*$K$12,IF(Formulario!$C$19="PESOS",J104*$K$13,"Error")) -> 287.0234387 | L104: 426.8275295 | M104: =IF(I104<>0,IF(Formulario!$C$19="UVR",Simulador!$L$12,IF(Formulario!$C$19="PESOS",Simulador!$L$13,"Error")),0) -> 713.8509682 | N104: 54122.79539 | P104: =IF(I104<>0,IF(Formulario!$C$19="UVR",(P103*(1+$K$11)),IF(Formulario!$C$19="PESOS",1,"Error")),0) -> 600.7207985 | Q104: 172420.9493 | R104: 428825.1236 | S104: =IF(Formulario!$C$19="UVR",P104*N104,IF(Formulario!$C$19="PESOS",N104,"Error")) -> 32512688.86 | U104: 0 | V104: -428825.1236 | W104: 0 | X104: 0 | Y104: 0 | Z104: 0 | AB104: -13358.12653 | AC104: -4235.503533 | AD104: -446418.7536
I105: =IF(AND(I104+1<=Formulario!$C$17,I104<>0),I104+1,0) -> 84 | J105: 54122.79539 | K105: =IF(Formulario!$C$19="UVR",J105*$K$12,IF(Formulario!$C$19="PESOS",J105*$K$13,"Error")) -> 284.7776027 | L105: 429.0733654 | M105: =IF(I105<>0,IF(Formulario!$C$19="UVR",Simulador!$L$12,IF(Formulario!$C$19="PESOS",Simulador!$L$13,"Error")),0) -> 713.8509682 | N105: 53693.72202 | P105: =IF(I105<>0,IF(Formulario!$C$19="UVR",(P104*(1+$K$11)),IF(Formulario!$C$19="PESOS",1,"Error")),0) -> 604.1925891 | Q105: 172060.5171 | R105: 431303.4647 | S105: =IF(Formulario!$C$19="UVR",P105*N105,IF(Formulario!$C$19="PESOS",N105,"Error")) -> 32441348.93 | U105: 0 | V105: -431303.4647 | W105: 0 | X105: 0 | Y105: 0 | Z105: 0 | AB105: -13330.20243 | AC105: -4226.649552 | AD105: -448860.3167
I106: =IF(AND(I105+1<=Formulario!$C$17,I105<>0),I105+1,0) -> 85 | J106: 53693.72202 | K106: =IF(Formulario!$C$19="UVR",J106*$K$12,IF(Formulario!$C$19="PESOS",J106*$K$13,"Error")) -> 282.5199499 | L106: 431.3310183 | M106: =IF(I106<>0,IF(Formulario!$C$19="UVR",Simulador!$L$12,IF(Formulario!$C$19="PESOS",Simulador!$L$13,"Error")),0) -> 713.8509682 | N106: 53262.39101 | P106: =IF(I106<>0,IF(Formulario!$C$19="UVR",(P105*(1+$K$11)),IF(Formulario!$C$19="PESOS",1,"Error")),0) -> 607.6844445 | Q106: 171682.9788 | R106: 433796.129 | S106: =IF(Formulario!$C$19="UVR",P106*N106,IF(Formulario!$C$19="PESOS",N106,"Error")) -> 32366726.49 | U106: 0 | V106: -433796.129 | W106: 0 | X106: 0 | Y106: 0 | Z106: 0 | AB106: -13300.95306 | AC106: -4217.37536 | AD106: -451314.4574
I107: =IF(AND(I106+1<=Formulario!$C$17,I106<>0),I106+1,0) -> 86 | J107: 53262.39101 | K107: =IF(Formulario!$C$19="UVR",J107*$K$12,IF(Formulario!$C$19="PESOS",J107*$K$13,"Error")) -> 280.2504179 | L107: 433.6005502 | M107: =IF(I107<>0,IF(Formulario!$C$19="UVR",Simulador!$L$12,IF(Formulario!$C$19="PESOS",Simulador!$L$13,"Error")),0) -> 713.8509682 | N107: 52828.79046 | P107: =IF(I107<>0,IF(Formulario!$C$19="UVR",(P106*(1+$K$11)),IF(Formulario!$C$19="PESOS",1,"Error")),0) -> 611.1964806 | Q107: 171288.0691 | R107: 436303.1994 | S107: =IF(Formulario!$C$19="UVR",P107*N107,IF(Formulario!$C$19="PESOS",N107,"Error")) -> 32288770.8 | U107: 0 | V107: -436303.1994 | W107: 0 | X107: 0 | Y107: 0 | Z107: 0 | AB107: -13270.35786 | AC107: -4207.674444 | AD107: -453781.2317
I108: =IF(AND(I107+1<=Formulario!$C$17,I107<>0),I107+1,0) -> 87 | J108: 52828.79046 | K108: =IF(Formulario!$C$19="UVR",J108*$K$12,IF(Formulario!$C$19="PESOS",J108*$K$13,"Error")) -> 277.9689444 | L108: 435.8820238 | M108: =IF(I108<>0,IF(Formulario!$C$19="UVR",Simulador!$L$12,IF(Formulario!$C$19="PESOS",Simulador!$L$13,"Error")),0) -> 713.8509682 | N108: 52392.90843 | P108: =IF(I108<>0,IF(Formulario!$C$19="UVR",(P107*(1+$K$11)),IF(Formulario!$C$19="PESOS",1,"Error")),0) -> 614.7288141 | Q108: 170875.5195 | R108: 438824.7591 | S108: =IF(Formulario!$C$19="UVR",P108*N108,IF(Formulario!$C$19="PESOS",N108,"Error")) -> 32207430.47 | U108: 0 | V108: -438824.7591 | W108: 0 | X108: 0 | Y108: 0 | Z108: 0 | AB108: -13238.39603 | AC108: -4197.540204 | AD108: -456260.6953
I109: =IF(AND(I108+1<=Formulario!$C$17,I108<>0),I108+1,0) -> 88 | J109: 52392.90843 | K109: =IF(Formulario!$C$19="UVR",J109*$K$12,IF(Formulario!$C$19="PESOS",J109*$K$13,"Error")) -> 275.6754664 | L109: 438.1755017 | M109: =IF(I109<>0,IF(Formulario!$C$19="UVR",Simulador!$L$12,IF(Formulario!$C$19="PESOS",Simulador!$L$13,"Error")),0) -> 713.8509682 | N109: 51954.73293 | P109: =IF(I109<>0,IF(Formulario!$C$19="UVR",(P108*(1+$K$11)),IF(Formulario!$C$19="PESOS",1,"Error")),0) -> 618.2815623 | Q109: 170445.0581 | R109: 441360.8918 | S109: =IF(Formulario!$C$19="UVR",P109*N109,IF(Formulario!$C$19="PESOS",N109,"Error")) -> 32122653.44 | U109: 0 | V109: -441360.8918 | W109: 0 | X109: 0 | Y109: 0 | Z109: 0 | AB109: -13205.04649 | AC109: -4186.965961 | AD109: -458752.9043
I110: =IF(AND(I109+1<=Formulario!$C$17,I109<>0),I109+1,0) -> 89 | J110: 51954.73293 | K110: =IF(Formulario!$C$19="UVR",J110*$K$12,IF(Formulario!$C$19="PESOS",J110*$K$13,"Error")) -> 273.3699209 | L110: 440.4810473 | M110: =IF(I110<>0,IF(Formulario!$C$19="UVR",Simulador!$L$12,IF(Formulario!$C$19="PESOS",Simulador!$L$13,"Error")),0) -> 713.8509682 | N110: 51514.25188 | P110: =IF(I110<>0,IF(Formulario!$C$19="UVR",(P109*(1+$K$11)),IF(Formulario!$C$19="PESOS",1,"Error")),0) -> 621.8548431 | Q110: 169996.4093 | R110: 443911.6818 | S110: =IF(Formulario!$C$19="UVR",P110*N110,IF(Formulario!$C$19="PESOS",N110,"Error")) -> 32034387.02 | U110: 0 | V110: -443911.6818 | W110: 0 | X110: 0 | Y110: 0 | Z110: 0 | AB110: -13170.28791 | AC110: -4175.944948 | AD110: -461257.9147
I111: =IF(AND(I110+1<=Formulario!$C$17,I110<>0),I110+1,0) -> 90 | J111: 51514.25188 | K111: =IF(Formulario!$C$19="UVR",J111*$K$12,IF(Formulario!$C$19="PESOS",J111*$K$13,"Error")) -> 271.0522443 | L111: 442.7987239 | M111: =IF(I111<>0,IF(Formulario!$C$19="UVR",Simulador!$L$12,IF(Formulario!$C$19="PESOS",Simulador!$L$13,"Error")),0) -> 713.8509682 | N111: 51071.45316 | P111: =IF(I111<>0,IF(Formulario!$C$19="UVR",(P110*(1+$K$11)),IF(Formulario!$C$19="PESOS",1,"Error")),0) -> 625.4487753 | Q111: 169529.2942 | R111: 446477.2138 | S111: =IF(Formulario!$C$19="UVR",P111*N111,IF(Formulario!$C$19="PESOS",N111,"Error")) -> 31942577.83 | U111: 0 | V111: -446477.2138 | W111: 0 | X111: 0 | Y111: 0 | Z111: 0 | AB111: -13134.09868 | AC111: -4164.470313 | AD111: -463775.7828
I112: =IF(AND(I111+1<=Formulario!$C$17,I111<>0),I111+1,0) -> 91 | J112: 51071.45316 | K112: =IF(Formulario!$C$19="UVR",J112*$K$12,IF(Formulario!$C$19="PESOS",J112*$K$13,"Error")) -> 268.7223728 | L112: 445.1285954 | M112: =IF(I112<>0,IF(Formulario!$C$19="UVR",Simulador!$L$12,IF(Formulario!$C$19="PESOS",Simulador!$L$13,"Error")),0) -> 713.8509682 | N112: 50626.32456 | P112: =IF(I112<>0,IF(Formulario!$C$19="UVR",(P111*(1+$K$11)),IF(Formulario!$C$19="PESOS",1,"Error")),0) -> 629.0634782 | Q112: 169043.4305 | R112: 449057.5729 | S112: =IF(Formulario!$C$19="UVR",P112*N112,IF(Formulario!$C$19="PESOS",N112,"Error")) -> 31847171.82 | U112: 0 | V112: -449057.5729 | W112: 0 | X112: 0 | Y112: 0 | Z112: 0 | AB112: -13096.45691 | AC112: -4152.535118 | AD112: -466306.5649
I113: =IF(AND(I112+1<=Formulario!$C$17,I112<>0),I112+1,0) -> 92 | J113: 50626.32456 | K113: =IF(Formulario!$C$19="UVR",J113*$K$12,IF(Formulario!$C$19="PESOS",J113*$K$13,"Error")) -> 266.3802422 | L113: 447.470726 | M113: =IF(I113<>0,IF(Formulario!$C$19="UVR",Simulador!$L$12,IF(Formulario!$C$19="PESOS",Simulador!$L$13,"Error")),0) -> 713.8509682 | N113: 50178.85384 | P113: =IF(I113<>0,IF(Formulario!$C$19="UVR",(P112*(1+$K$11)),IF(Formulario!$C$19="PESOS",1,"Error")),0) -> 632.6990717 | Q113: 168538.532 | R113: 451652.8449 | S113: =IF(Formulario!$C$19="UVR",P113*N113,IF(Formulario!$C$19="PESOS",N113,"Error")) -> 31748114.24 | U113: 0 | V113: -451652.8449 | W113: 0 | X113: 0 | Y113: 0 | Z113: 0 | AB113: -13057.34044 | AC113: -4140.132336 | AD113: -468850.3177
I114: =IF(AND(I113+1<=Formulario!$C$17,I113<>0),I113+1,0) -> 93 | J114: 50178.85384 | K114: =IF(Formulario!$C$19="UVR",J114*$K$12,IF(Formulario!$C$19="PESOS",J114*$K$13,"Error")) -> 264.0257881 | L114: 449.8251801 | M114: =IF(I114<>0,IF(Formulario!$C$19="UVR",Simulador!$L$12,IF(Formulario!$C$19="PESOS",Simulador!$L$13,"Error")),0) -> 713.8509682 | N114: 49729.02866 | P114: =IF(I114<>0,IF(Formulario!$C$19="UVR",(P113*(1+$K$11)),IF(Formulario!$C$19="PESOS",1,"Error")),0) -> 636.3556768 | Q114: 168014.309 | R114: 454263.116 | S114: =IF(Formulario!$C$19="UVR",P114*N114,IF(Formulario!$C$19="PESOS",N114,"Error")) -> 31645349.69 | U114: 0 | V114: -454263.116 | W114: 0 | X114: 0 | Y114: 0 | Z114: 0 | AB114: -13016.72684 | AC114: -4127.254852 | AD114: -471407.0976
I115: =IF(AND(I114+1<=Formulario!$C$17,I114<>0),I114+1,0) -> 94 | J115: 49729.02866 | K115: =IF(Formulario!$C$19="UVR",J115*$K$12,IF(Formulario!$C$19="PESOS",J115*$K$13,"Error")) -> 261.6589455 | L115: 452.1920227 | M115: =IF(I115<>0,IF(Formulario!$C$19="UVR",Simulador!$L$12,IF(Formulario!$C$19="PESOS",Simulador!$L$13,"Error")),0) -> 713.8509682 | N115: 49276.83663 | P115: =IF(I115<>0,IF(Formulario!$C$19="UVR",(P114*(1+$K$11)),IF(Formulario!$C$19="PESOS",1,"Error")),0) -> 640.0334147 | Q115: 167470.4684 | R115: 456888.4727 | S115: =IF(Formulario!$C$19="UVR",P115*N115,IF(Formulario!$C$19="PESOS",N115,"Error")) -> 31538822.02 | U115: 0 | V115: -456888.4727 | W115: 0 | X115: 0 | Y115: 0 | Z115: 0 | AB115: -12974.59337 | AC115: -4113.895459 | AD115: -473976.9616
I116: =IF(AND(I115+1<=Formulario!$C$17,I115<>0),I115+1,0) -> 95 | J116: 49276.83663 | K116: =IF(Formulario!$C$19="UVR",J116*$K$12,IF(Formulario!$C$19="PESOS",J116*$K$13,"Error")) -> 259.2796493 | L116: 454.5713189 | M116: =IF(I116<>0,IF(Formulario!$C$19="UVR",Simulador!$L$12,IF(Formulario!$C$19="PESOS",Simulador!$L$13,"Error")),0) -> 713.8509682 | N116: 48822.26532 | P116: =IF(I116<>0,IF(Formulario!$C$19="UVR",(P115*(1+$K$11)),IF(Formulario!$C$19="PESOS",1,"Error")),0) -> 643.7324076 | Q116: 166906.7129 | R116: 459529.0024 | S116: =IF(Formulario!$C$19="UVR",P116*N116,IF(Formulario!$C$19="PESOS",N116,"Error")) -> 31428474.4 | U116: 0 | V116: -459529.0024 | W116: 0 | X116: 0 | Y116: 0 | Z116: 0 | AB116: -12930.91703 | AC116: -4100.046862 | AD116: -476559.9663
I117: =IF(AND(I116+1<=Formulario!$C$17,I116<>0),I116+1,0) -> 96 | J117: 48822.26532 | K117: =IF(Formulario!$C$19="UVR",J117*$K$12,IF(Formulario!$C$19="PESOS",J117*$K$13,"Error")) -> 256.887834 | L117: 456.9631342 | M117: =IF(I117<>0,IF(Formulario!$C$19="UVR",Simulador!$L$12,IF(Formulario!$C$19="PESOS",Simulador!$L$13,"Error")),0) -> 713.8509682 | N117: 48365.30218 | P117: =IF(I117<>0,IF(Formulario!$C$19="UVR",(P116*(1+$K$11)),IF(Formulario!$C$19="PESOS",1,"Error")),0) -> 647.4527785 | Q117: 166322.7419 | R117: 462184.7927 | S117: =IF(Formulario!$C$19="UVR",P117*N117,IF(Formulario!$C$19="PESOS",N117,"Error")) -> 31314249.28 | U117: 0 | V117: -462184.7927 | W117: 0 | X117: 0 | Y117: 0 | Z117: 0 | AB117: -12885.6745 | AC117: -4085.701672 | AD117: -479156.1689
I118: =IF(AND(I117+1<=Formulario!$C$17,I117<>0),I117+1,0) -> 97 | J118: 48365.30218 | K118: =IF(Formulario!$C$19="UVR",J118*$K$12,IF(Formulario!$C$19="PESOS",J118*$K$13,"Error")) -> 254.4834337 | L118: 459.3675345 | M118: =IF(I118<>0,IF(Formulario!$C$19="UVR",Simulador!$L$12,IF(Formulario!$C$19="PESOS",Simulador!$L$13,"Error")),0) -> 713.8509682 | N118: 47905.93465 | P118: =IF(I118<>0,IF(Formulario!$C$19="UVR",(P117*(1+$K$11)),IF(Formulario!$C$19="PESOS",1,"Error")),0) -> 651.1946507 | Q118: 165718.2507 | R118: 464855.9319 | S118: =IF(Formulario!$C$19="UVR",P118*N118,IF(Formulario!$C$19="PESOS",N118,"Error")) -> 31196088.38 | U118: 0 | V118: -464855.9319 | W118: 0 | X118: 0 | Y118: 0 | Z118: 0 | AB118: -12838.8422 | AC118: -4070.852406 | AD118: -481765.6265
I119: =IF(AND(I118+1<=Formulario!$C$17,I118<>0),I118+1,0) -> 98 | J119: 47905.93465 | K119: =IF(Formulario!$C$19="UVR",J119*$K$12,IF(Formulario!$C$19="PESOS",J119*$K$13,"Error")) -> 252.0663822 | L119: 461.784586 | M119: =IF(I119<>0,IF(Formulario!$C$19="UVR",Simulador!$L$12,IF(Formulario!$C$19="PESOS",Simulador!$L$13,"Error")),0) -> 713.8509682 | N119: 47444.15006 | P119: =IF(I119<>0,IF(Formulario!$C$19="UVR",(P118*(1+$K$11)),IF(Formulario!$C$19="PESOS",1,"Error")),0) -> 654.9581486 | Q119: 165092.931 | R119: 467542.5085 | S119: =IF(Formulario!$C$19="UVR",P119*N119,IF(Formulario!$C$19="PESOS",N119,"Error")) -> 31073932.69 | U119: 0 | V119: -467542.5085 | W119: 0 | X119: 0 | Y119: 0 | Z119: 0 | AB119: -12790.39624 | AC119: -4055.491489 | AD119: -484388.3962
I120: =IF(AND(I119+1<=Formulario!$C$17,I119<>0),I119+1,0) -> 99 | J120: 47444.15006 | K120: =IF(Formulario!$C$19="UVR",J120*$K$12,IF(Formulario!$C$19="PESOS",J120*$K$13,"Error")) -> 249.6366128 | L120: 464.2143553 | M120: =IF(I120<>0,IF(Formulario!$C$19="UVR",Simulador!$L$12,IF(Formulario!$C$19="PESOS",Simulador!$L$13,"Error")),0) -> 713.8509682 | N120: 46979.93571 | P120: =IF(I120<>0,IF(Formulario!$C$19="UVR",(P119*(1+$K$11)),IF(Formulario!$C$19="PESOS",1,"Error")),0) -> 658.7433972 | Q120: 164446.4704 | R120: 470244.6119 | S120: =IF(Formulario!$C$19="UVR",P120*N120,IF(Formulario!$C$19="PESOS",N120,"Error")) -> 30947722.45 | U120: 0 | V120: -470244.6119 | W120: 0 | X120: 0 | Y120: 0 | Z120: 0 | AB120: -12740.3124 | AC120: -4039.611249 | AD120: -487024.5355
I121: =IF(AND(I120+1<=Formulario!$C$17,I120<>0),I120+1,0) -> 100 | J121: 46979.93571 | K121: =IF(Formulario!$C$19="UVR",J121*$K$12,IF(Formulario!$C$19="PESOS",J121*$K$13,"Error")) -> 247.1940588 | L121: 466.6569093 | M121: =IF(I121<>0,IF(Formulario!$C$19="UVR",Simulador!$L$12,IF(Formulario!$C$19="PESOS",Simulador!$L$13,"Error")),0) -> 713.8509682 | N121: 46513.2788 | P121: =IF(I121<>0,IF(Formulario!$C$19="UVR",(P120*(1+$K$11)),IF(Formulario!$C$19="PESOS",1,"Error")),0) -> 662.5505221 | Q121: 163778.5527 | R121: 472962.3317 | S121: =IF(Formulario!$C$19="UVR",P121*N121,IF(Formulario!$C$19="PESOS",N121,"Error")) -> 30817397.15 | U121: 0 | V121: -472962.3317 | W121: 0 | X121: 0 | Y121: 0 | Z121: 0 | AB121: -12688.5662 | AC121: -4023.203918 | AD121: -489674.1018
I122: =IF(AND(I121+1<=Formulario!$C$17,I121<>0),I121+1,0) -> 101 | J122: 46513.2788 | K122: =IF(Formulario!$C$19="UVR",J122*$K$12,IF(Formulario!$C$19="PESOS",J122*$K$13,"Error")) -> 244.7386528 | L122: 469.1123153 | M122: =IF(I122<>0,IF(Formulario!$C$19="UVR",Simulador!$L$12,IF(Formulario!$C$19="PESOS",Simulador!$L$13,"Error")),0) -> 713.8509682 | N122: 46044.16648 | P122: =IF(I122<>0,IF(Formulario!$C$19="UVR",(P121*(1+$K$11)),IF(Formulario!$C$19="PESOS",1,"Error")),0) -> 666.3796499 | Q122: 163088.8578 | R122: 475695.7582 | S122: =IF(Formulario!$C$19="UVR",P122*N122,IF(Formulario!$C$19="PESOS",N122,"Error")) -> 30682895.54 | U122: 0 | V122: -475695.7582 | W122: 0 | X122: 0 | Y122: 0 | Z122: 0 | AB122: -12635.13283 | AC122: -4006.26163 | AD122: -492337.1527
I123: =IF(AND(I122+1<=Formulario!$C$17,I122<>0),I122+1,0) -> 102 | J123: 46044.16648 | K123: =IF(Formulario!$C$19="UVR",J123*$K$12,IF(Formulario!$C$19="PESOS",J123*$K$13,"Error")) -> 242.2703273 | L123: 471.5806409 | M123: =IF(I123<>0,IF(Formulario!$C$19="UVR",Simulador!$L$12,IF(Formulario!$C$19="PESOS",Simulador!$L$13,"Error")),0) -> 713.8509682 | N123: 45572.58584 | P123: =IF(I123<>0,IF(Formulario!$C$19="UVR",(P122*(1+$K$11)),IF(Formulario!$C$19="PESOS",1,"Error")),0) -> 670.2309076 | Q123: 162377.0613 | R123: 478444.9823 | S123: =IF(Formulario!$C$19="UVR",P123*N123,IF(Formulario!$C$19="PESOS",N123,"Error")) -> 30544155.57 | U123: 0 | V123: -478444.9823 | W123: 0 | X123: 0 | Y123: 0 | Z123: 0 | AB123: -12579.98717 | AC123: -3988.77642 | AD123: -495013.7459
I124: =IF(AND(I123+1<=Formulario!$C$17,I123<>0),I123+1,0) -> 103 | J124: 45572.58584 | K124: =IF(Formulario!$C$19="UVR",J124*$K$12,IF(Formulario!$C$19="PESOS",J124*$K$13,"Error")) -> 239.7890141 | L124: 474.0619541 | M124: =IF(I124<>0,IF(Formulario!$C$19="UVR",Simulador!$L$12,IF(Formulario!$C$19="PESOS",Simulador!$L$13,"Error")),0) -> 713.8509682 | N124: 45098.52389 | P124: =IF(I124<>0,IF(Formulario!$C$19="UVR",(P123*(1+$K$11)),IF(Formulario!$C$19="PESOS",1,"Error")),0) -> 674.1044232 | Q124: 161642.835 | R124: 481210.0951 | S124: =IF(Formulario!$C$19="UVR",P124*N124,IF(Formulario!$C$19="PESOS",N124,"Error")) -> 30401114.43 | U124: 0 | V124: -481210.0951 | W124: 0 | X124: 0 | Y124: 0 | Z124: 0 | AB124: -12523.10378 | AC124: -3970.740224 | AD124: -497703.9391
I125: =IF(AND(I124+1<=Formulario!$C$17,I124<>0),I124+1,0) -> 104 | J125: 45098.52389 | K125: =IF(Formulario!$C$19="UVR",J125*$K$12,IF(Formulario!$C$19="PESOS",J125*$K$13,"Error")) -> 237.294645 | L125: 476.5563231 | M125: =IF(I125<>0,IF(Formulario!$C$19="UVR",Simulador!$L$12,IF(Formulario!$C$19="PESOS",Simulador!$L$13,"Error")),0) -> 713.8509682 | N125: 44621.96756 | P125: =IF(I125<>0,IF(Formulario!$C$19="UVR",(P124*(1+$K$11)),IF(Formulario!$C$19="PESOS",1,"Error")),0) -> 678.0003253 | Q125: 160885.8465 | R125: 483991.1886 | S125: =IF(Formulario!$C$19="UVR",P125*N125,IF(Formulario!$C$19="PESOS",N125,"Error")) -> 30253708.52 | U125: 0 | V125: -483991.1886 | W125: 0 | X125: 0 | Y125: 0 | Z125: 0 | AB125: -12464.45692 | AC125: -3952.144876 | AD125: -500407.7904
I126: =IF(AND(I125+1<=Formulario!$C$17,I125<>0),I125+1,0) -> 105 | J126: 44621.96756 | K126: =IF(Formulario!$C$19="UVR",J126*$K$12,IF(Formulario!$C$19="PESOS",J126*$K$13,"Error")) -> 234.7871513 | L126: 479.0638168 | M126: =IF(I126<>0,IF(Formulario!$C$19="UVR",Simulador!$L$12,IF(Formulario!$C$19="PESOS",Simulador!$L$13,"Error")),0) -> 713.8509682 | N126: 44142.90375 | P126: =IF(I126<>0,IF(Formulario!$C$19="UVR",(P125*(1+$K$11)),IF(Formulario!$C$19="PESOS",1,"Error")),0) -> 681.9187432 | Q126: 160105.7592 | R126: 486788.3551 | S126: =IF(Formulario!$C$19="UVR",P126*N126,IF(Formulario!$C$19="PESOS",N126,"Error")) -> 30101873.44 | U126: 0 | V126: -486788.3551 | W126: 0 | X126: 0 | Y126: 0 | Z126: 0 | AB126: -12404.02049 | AC126: -3932.982108 | AD126: -503125.3577
I127: =IF(AND(I126+1<=Formulario!$C$17,I126<>0),I126+1,0) -> 106 | J127: 44142.90375 | K127: =IF(Formulario!$C$19="UVR",J127*$K$12,IF(Formulario!$C$19="PESOS",J127*$K$13,"Error")) -> 232.266464 | L127: 481.5845042 | M127: =IF(I127<>0,IF(Formulario!$C$19="UVR",Simulador!$L$12,IF(Formulario!$C$19="PESOS",Simulador!$L$13,"Error")),0) -> 713.8509682 | N127: 43661.31924 | P127: =IF(I127<>0,IF(Formulario!$C$19="UVR",(P126*(1+$K$11)),IF(Formulario!$C$19="PESOS",1,"Error")),0) -> 685.8598072 | Q127: 159302.2322 | R127: 489601.6874 | S127: =IF(Formulario!$C$19="UVR",P127*N127,IF(Formulario!$C$19="PESOS",N127,"Error")) -> 29945544 | U127: 0 | V127: -489601.6874 | W127: 0 | X127: 0 | Y127: 0 | Z127: 0 | AB127: -12341.76811 | AC127: -3913.243548 | AD127: -505856.699
I128: =IF(AND(I127+1<=Formulario!$C$17,I127<>0),I127+1,0) -> 107 | J128: 43661.31924 | K128: =IF(Formulario!$C$19="UVR",J128*$K$12,IF(Formulario!$C$19="PESOS",J128*$K$13,"Error")) -> 229.7325136 | L128: 484.1184546 | M128: =IF(I128<>0,IF(Formulario!$C$19="UVR",Simulador!$L$12,IF(Formulario!$C$19="PESOS",Simulador!$L$13,"Error")),0) -> 713.8509682 | N128: 43177.20079 | P128: =IF(I128<>0,IF(Formulario!$C$19="UVR",(P127*(1+$K$11)),IF(Formulario!$C$19="PESOS",1,"Error")),0) -> 689.823648 | Q128: 158474.9206 | R128: 492431.279 | S128: =IF(Formulario!$C$19="UVR",P128*N128,IF(Formulario!$C$19="PESOS",N128,"Error")) -> 29784654.16 | U128: 0 | V128: -492431.279 | W128: 0 | X128: 0 | Y128: 0 | Z128: 0 | AB128: -12277.67304 | AC128: -3892.92072 | AD128: -508601.8728
I129: =IF(AND(I128+1<=Formulario!$C$17,I128<>0),I128+1,0) -> 108 | J129: 43177.20079 | K129: =IF(Formulario!$C$19="UVR",J129*$K$12,IF(Formulario!$C$19="PESOS",J129*$K$13,"Error")) -> 227.1852303 | L129: 486.6657379 | M129: =IF(I129<>0,IF(Formulario!$C$19="UVR",Simulador!$L$12,IF(Formulario!$C$19="PESOS",Simulador!$L$13,"Error")),0) -> 713.8509682 | N129: 42690.53505 | P129: =IF(I129<>0,IF(Formulario!$C$19="UVR",(P128*(1+$K$11)),IF(Formulario!$C$19="PESOS",1,"Error")),0) -> 693.8103974 | Q129: 157623.4749 | R129: 495277.2239 | S129: =IF(Formulario!$C$19="UVR",P129*N129,IF(Formulario!$C$19="PESOS",N129,"Error")) -> 29619137.09 | U129: 0 | V129: -495277.2239 | W129: 0 | X129: 0 | Y129: 0 | Z129: 0 | AB129: -12211.70821 | AC129: -3872.005041 | AD129: -511360.9372
I130: =IF(AND(I129+1<=Formulario!$C$17,I129<>0),I129+1,0) -> 109 | J130: 42690.53505 | K130: =IF(Formulario!$C$19="UVR",J130*$K$12,IF(Formulario!$C$19="PESOS",J130*$K$13,"Error")) -> 224.6245439 | L130: 489.2264242 | M130: =IF(I130<>0,IF(Formulario!$C$19="UVR",Simulador!$L$12,IF(Formulario!$C$19="PESOS",Simulador!$L$13,"Error")),0) -> 713.8509682 | N130: 42201.30863 | P130: =IF(I130<>0,IF(Formulario!$C$19="UVR",(P129*(1+$K$11)),IF(Formulario!$C$19="PESOS",1,"Error")),0) -> 697.8201877 | Q130: 156747.5414 | R130: 498139.6166 | S130: =IF(Formulario!$C$19="UVR",P130*N130,IF(Formulario!$C$19="PESOS",N130,"Error")) -> 29448925.11 | U130: 0 | V130: -498139.6166 | W130: 0 | X130: 0 | Y130: 0 | Z130: 0 | AB130: -12143.84621 | AC130: -3850.487821 | AD130: -514133.9506
I131: =IF(AND(I130+1<=Formulario!$C$17,I130<>0),I130+1,0) -> 110 | J131: 42201.30863 | K131: =IF(Formulario!$C$19="UVR",J131*$K$12,IF(Formulario!$C$19="PESOS",J131*$K$13,"Error")) -> 222.0503841 | L131: 491.8005841 | M131: =IF(I131<>0,IF(Formulario!$C$19="UVR",Simulador!$L$12,IF(Formulario!$C$19="PESOS",Simulador!$L$13,"Error")),0) -> 713.8509682 | N131: 41709.50804 | P131: =IF(I131<>0,IF(Formulario!$C$19="UVR",(P130*(1+$K$11)),IF(Formulario!$C$19="PESOS",1,"Error")),0) -> 701.853152 | Q131: 155846.762 | R131: 501018.5521 | S131: =IF(Formulario!$C$19="UVR",P131*N131,IF(Formulario!$C$19="PESOS",N131,"Error")) -> 29273949.69 | U131: 0 | V131: -501018.5521 | W131: 0 | X131: 0 | Y131: 0 | Z131: 0 | AB131: -12074.05929 | AC131: -3828.360264 | AD131: -516920.9717
I132: =IF(AND(I131+1<=Formulario!$C$17,I131<>0),I131+1,0) -> 111 | J132: 41709.50804 | K132: =IF(Formulario!$C$19="UVR",J132*$K$12,IF(Formulario!$C$19="PESOS",J132*$K$13,"Error")) -> 219.4626798 | L132: 494.3882884 | M132: =IF(I132<>0,IF(Formulario!$C$19="UVR",Simulador!$L$12,IF(Formulario!$C$19="PESOS",Simulador!$L$13,"Error")),0) -> 713.8509682 | N132: 41215.11975 | P132: =IF(I132<>0,IF(Formulario!$C$19="UVR",(P131*(1+$K$11)),IF(Formulario!$C$19="PESOS",1,"Error")),0) -> 705.9094244 | Q132: 154920.7739 | R132: 503914.1261 | S132: =IF(Formulario!$C$19="UVR",P132*N132,IF(Formulario!$C$19="PESOS",N132,"Error")) -> 29094141.46 | U132: 0 | V132: -503914.1261 | W132: 0 | X132: 0 | Y132: 0 | Z132: 0 | AB132: -12002.31937 | AC132: -3805.61346 | AD132: -519722.0589
I133: =IF(AND(I132+1<=Formulario!$C$17,I132<>0),I132+1,0) -> 112 | J133: 41215.11975 | K133: =IF(Formulario!$C$19="UVR",J133*$K$12,IF(Formulario!$C$19="PESOS",J133*$K$13,"Error")) -> 216.8613597 | L133: 496.9896084 | M133: =IF(I133<>0,IF(Formulario!$C$19="UVR",Simulador!$L$12,IF(Formulario!$C$19="PESOS",Simulador!$L$13,"Error")),0) -> 713.8509682 | N133: 40718.13014 | P133: =IF(I133<>0,IF(Formulario!$C$19="UVR",(P132*(1+$K$11)),IF(Formulario!$C$19="PESOS",1,"Error")),0) -> 709.9891395 | Q133: 153969.2102 | R133: 506826.4346 | S133: =IF(Formulario!$C$19="UVR",P133*N133,IF(Formulario!$C$19="PESOS",N133,"Error")) -> 28909430.18 | U133: 0 | V133: -506826.4346 | W133: 0 | X133: 0 | Y133: 0 | Z133: 0 | AB133: -11928.598 | AC133: -3782.23839 | AD133: -522537.271
I134: =IF(AND(I133+1<=Formulario!$C$17,I133<>0),I133+1,0) -> 113 | J134: 40718.13014 | K134: =IF(Formulario!$C$19="UVR",J134*$K$12,IF(Formulario!$C$19="PESOS",J134*$K$13,"Error")) -> 214.2463523 | L134: 499.6046158 | M134: =IF(I134<>0,IF(Formulario!$C$19="UVR",Simulador!$L$12,IF(Formulario!$C$19="PESOS",Simulador!$L$13,"Error")),0) -> 713.8509682 | N134: 40218.52553 | P134: =IF(I134<>0,IF(Formulario!$C$19="UVR",(P133*(1+$K$11)),IF(Formulario!$C$19="PESOS",1,"Error")),0) -> 714.0924328 | Q134: 152991.699 | R134: 509755.5745 | S134: =IF(Formulario!$C$19="UVR",P134*N134,IF(Formulario!$C$19="PESOS",N134,"Error")) -> 28719744.74 | U134: 0 | V134: -509755.5745 | W134: 0 | X134: 0 | Y134: 0 | Z134: 0 | AB134: -11852.86638 | AC134: -3758.225924 | AD134: -525366.6668
I135: =IF(AND(I134+1<=Formulario!$C$17,I134<>0),I134+1,0) -> 114 | J135: 40218.52553 | K135: =IF(Formulario!$C$19="UVR",J135*$K$12,IF(Formulario!$C$19="PESOS",J135*$K$13,"Error")) -> 211.6175856 | L135: 502.2333826 | M135: =IF(I135<>0,IF(Formulario!$C$19="UVR",Simulador!$L$12,IF(Formulario!$C$19="PESOS",Simulador!$L$13,"Error")),0) -> 713.8509682 | N135: 39716.29215 | P135: =IF(I135<>0,IF(Formulario!$C$19="UVR",(P134*(1+$K$11)),IF(Formulario!$C$19="PESOS",1,"Error")),0) -> 718.2194406 | Q135: 151987.8639 | R135: 512701.643 | S135: =IF(Formulario!$C$19="UVR",P135*N135,IF(Formulario!$C$19="PESOS",N135,"Error")) -> 28525013.13 | U135: 0 | V135: -512701.643 | W135: 0 | X135: 0 | Y135: 0 | Z135: 0 | AB135: -11775.09534 | AC135: -3733.566816 | AD135: -528210.3052
I136: =IF(AND(I135+1<=Formulario!$C$17,I135<>0),I135+1,0) -> 115 | J136: 39716.29215 | K136: =IF(Formulario!$C$19="UVR",J136*$K$12,IF(Formulario!$C$19="PESOS",J136*$K$13,"Error")) -> 208.9749871 | L136: 504.8759811 | M136: =IF(I136<>0,IF(Formulario!$C$19="UVR",Simulador!$L$12,IF(Formulario!$C$19="PESOS",Simulador!$L$13,"Error")),0) -> 713.8509682 | N136: 39211.41616 | P136: =IF(I136<>0,IF(Formulario!$C$19="UVR",(P135*(1+$K$11)),IF(Formulario!$C$19="PESOS",1,"Error")),0) -> 722.3702999 | Q136: 150957.3241 | R136: 515664.738 | S136: =IF(Formulario!$C$19="UVR",P136*N136,IF(Formulario!$C$19="PESOS",N136,"Error")) -> 28325162.45 | U136: 0 | V136: -515664.738 | W136: 0 | X136: 0 | Y136: 0 | Z136: 0 | AB136: -11695.25538 | AC136: -3708.251707 | AD136: -531068.245
I137: =IF(AND(I136+1<=Formulario!$C$17,I136<>0),I136+1,0) -> 116 | J137: 39211.41616 | K137: =IF(Formulario!$C$19="UVR",J137*$K$12,IF(Formulario!$C$19="PESOS",J137*$K$13,"Error")) -> 206.318484 | L137: 507.5324841 | M137: =IF(I137<>0,IF(Formulario!$C$19="UVR",Simulador!$L$12,IF(Formulario!$C$19="PESOS",Simulador!$L$13,"Error")),0) -> 713.8509682 | N137: 38703.88368 | P137: =IF(I137<>0,IF(Formulario!$C$19="UVR",(P136*(1+$K$11)),IF(Formulario!$C$19="PESOS",1,"Error")),0) -> 726.5451486 | Q137: 149899.6936 | R137: 518644.9577 | S137: =IF(Formulario!$C$19="UVR",P137*N137,IF(Formulario!$C$19="PESOS",N137,"Error")) -> 28120118.92 | U137: 0 | V137: -518644.9577 | W137: 0 | X137: 0 | Y137: 0 | Z137: 0 | AB137: -11613.31661 | AC137: -3682.271119 | AD137: -533940.5454
I138: =IF(AND(I137+1<=Formulario!$C$17,I137<>0),I137+1,0) -> 117 | J138: 38703.88368 | K138: =IF(Formulario!$C$19="UVR",J138*$K$12,IF(Formulario!$C$19="PESOS",J138*$K$13,"Error")) -> 203.6480033 | L138: 510.2029649 | M138: =IF(I138<>0,IF(Formulario!$C$19="UVR",Simulador!$L$12,IF(Formulario!$C$19="PESOS",Simulador!$L$13,"Error")),0) -> 713.8509682 | N138: 38193.68072 | P138: =IF(I138<>0,IF(Formulario!$C$19="UVR",(P137*(1+$K$11)),IF(Formulario!$C$19="PESOS",1,"Error")),0) -> 730.7441252 | Q138: 148814.582 | R138: 521642.4013 | S138: =IF(Formulario!$C$19="UVR",P138*N138,IF(Formulario!$C$19="PESOS",N138,"Error")) -> 27909807.8 | U138: 0 | V138: -521642.4013 | W138: 0 | X138: 0 | Y138: 0 | Z138: 0 | AB138: -11529.24876 | AC138: -3655.615459 | AD138: -536827.2655
I139: =IF(AND(I138+1<=Formulario!$C$17,I138<>0),I138+1,0) -> 118 | J139: 38193.68072 | K139: =IF(Formulario!$C$19="UVR",J139*$K$12,IF(Formulario!$C$19="PESOS",J139*$K$13,"Error")) -> 200.9634712 | L139: 512.8874969 | M139: =IF(I139<>0,IF(Formulario!$C$19="UVR",Simulador!$L$12,IF(Formulario!$C$19="PESOS",Simulador!$L$13,"Error")),0) -> 713.8509682 | N139: 37680.79322 | P139: =IF(I139<>0,IF(Formulario!$C$19="UVR",(P138*(1+$K$11)),IF(Formulario!$C$19="PESOS",1,"Error")),0) -> 734.9673694 | Q139: 147701.5938 | R139: 524657.1682 | S139: =IF(Formulario!$C$19="UVR",P139*N139,IF(Formulario!$C$19="PESOS",N139,"Error")) -> 27694153.47 | U139: 0 | V139: -524657.1682 | W139: 0 | X139: 0 | Y139: 0 | Z139: 0 | AB139: -11443.0212 | AC139: -3628.275015 | AD139: -539728.4644
I140: =IF(AND(I139+1<=Formulario!$C$17,I139<>0),I139+1,0) -> 119 | J140: 37680.79322 | K140: =IF(Formulario!$C$19="UVR",J140*$K$12,IF(Formulario!$C$19="PESOS",J140*$K$13,"Error")) -> 198.264814 | L140: 515.5861541 | M140: =IF(I140<>0,IF(Formulario!$C$19="UVR",Simulador!$L$12,IF(Formulario!$C$19="PESOS",Simulador!$L$13,"Error")),0) -> 713.8509682 | N140: 37165.20706 | P140: =IF(I140<>0,IF(Formulario!$C$19="UVR",(P139*(1+$K$11)),IF(Formulario!$C$19="PESOS",1,"Error")),0) -> 739.2150212 | Q140: 146560.3287 | R140: 527689.3586 | S140: =IF(Formulario!$C$19="UVR",P140*N140,IF(Formulario!$C$19="PESOS",N140,"Error")) -> 27473079.33 | U140: 0 | V140: -527689.3586 | W140: 0 | X140: 0 | Y140: 0 | Z140: 0 | AB140: -11354.60292 | AC140: -3600.239951 | AD140: -542644.2015
I141: =IF(AND(I140+1<=Formulario!$C$17,I140<>0),I140+1,0) -> 120 | J141: 37165.20706 | K141: =IF(Formulario!$C$19="UVR",J141*$K$12,IF(Formulario!$C$19="PESOS",J141*$K$13,"Error")) -> 195.5519573 | L141: 518.2990109 | M141: =IF(I141<>0,IF(Formulario!$C$19="UVR",Simulador!$L$12,IF(Formulario!$C$19="PESOS",Simulador!$L$13,"Error")),0) -> 713.8509682 | N141: 36646.90805 | P141: =IF(I141<>0,IF(Formulario!$C$19="UVR",(P140*(1+$K$11)),IF(Formulario!$C$19="PESOS",1,"Error")),0) -> 743.4872218 | Q141: 145390.3815 | R141: 530739.0731 | S141: =IF(Formulario!$C$19="UVR",P141*N141,IF(Formulario!$C$19="PESOS",N141,"Error")) -> 27246507.86 | U141: 0 | V141: -530739.0731 | W141: 0 | X141: 0 | Y141: 0 | Z141: 0 | AB141: -11263.96252 | AC141: -3571.500313 | AD141: -545574.536
I142: =IF(AND(I141+1<=Formulario!$C$17,I141<>0),I141+1,0) -> 121 | J142: 36646.90805 | K142: =IF(Formulario!$C$19="UVR",J142*$K$12,IF(Formulario!$C$19="PESOS",J142*$K$13,"Error")) -> 192.8248264 | L142: 521.0261418 | M142: =IF(I142<>0,IF(Formulario!$C$19="UVR",Simulador!$L$12,IF(Formulario!$C$19="PESOS",Simulador!$L$13,"Error")),0) -> 713.8509682 | N142: 36125.88191 | P142: =IF(I142<>0,IF(Formulario!$C$19="UVR",(P141*(1+$K$11)),IF(Formulario!$C$19="PESOS",1,"Error")),0) -> 747.7841131 | Q142: 144191.3418 | R142: 533806.4131 | S142: =IF(Formulario!$C$19="UVR",P142*N142,IF(Formulario!$C$19="PESOS",N142,"Error")) -> 27014360.57 | U142: 0 | V142: -533806.4131 | W142: 0 | X142: 0 | Y142: 0 | Z142: 0 | AB142: -11171.06822 | AC142: -3542.046022 | AD142: -548519.5274
I143: =IF(AND(I142+1<=Formulario!$C$17,I142<>0),I142+1,0) -> 122 | J143: 36125.88191 | K143: =IF(Formulario!$C$19="UVR",J143*$K$12,IF(Formulario!$C$19="PESOS",J143*$K$13,"Error")) -> 190.0833461 | L143: 523.7676221 | M143: =IF(I143<>0,IF(Formulario!$C$19="UVR",Simulador!$L$12,IF(Formulario!$C$19="PESOS",Simulador!$L$13,"Error")),0) -> 713.8509682 | N143: 35602.11429 | P143: =IF(I143<>0,IF(Formulario!$C$19="UVR",(P142*(1+$K$11)),IF(Formulario!$C$19="PESOS",1,"Error")),0) -> 752.1058377 | Q143: 142962.7943 | R143: 536891.4804 | S143: =IF(Formulario!$C$19="UVR",P143*N143,IF(Formulario!$C$19="PESOS",N143,"Error")) -> 26776557.99 | U143: 0 | V143: -536891.4804 | W143: 0 | X143: 0 | Y143: 0 | Z143: 0 | AB143: -11075.88783 | AC143: -3511.866874 | AD143: -551479.2351
I144: =IF(AND(I143+1<=Formulario!$C$17,I143<>0),I143+1,0) -> 123 | J144: 35602.11429 | K144: =IF(Formulario!$C$19="UVR",J144*$K$12,IF(Formulario!$C$19="PESOS",J144*$K$13,"Error")) -> 187.327441 | L144: 526.5235272 | M144: =IF(I144<>0,IF(Formulario!$C$19="UVR",Simulador!$L$12,IF(Formulario!$C$19="PESOS",Simulador!$L$13,"Error")),0) -> 713.8509682 | N144: 35075.59076 | P144: =IF(I144<>0,IF(Formulario!$C$19="UVR",(P143*(1+$K$11)),IF(Formulario!$C$19="PESOS",1,"Error")),0) -> 756.4525392 | Q144: 141704.3184 | R144: 539994.3775 | S144: =IF(Formulario!$C$19="UVR",P144*N144,IF(Formulario!$C$19="PESOS",N144,"Error")) -> 26533019.7 | U144: 0 | V144: -539994.3775 | W144: 0 | X144: 0 | Y144: 0 | Z144: 0 | AB144: -10978.38878 | AC144: -3480.952539 | AD144: -554453.7188
I145: =IF(AND(I144+1<=Formulario!$C$17,I144<>0),I144+1,0) -> 124 | J145: 35075.59076 | K145: =IF(Formulario!$C$19="UVR",J145*$K$12,IF(Formulario!$C$19="PESOS",J145*$K$13,"Error")) -> 184.5570352 | L145: 529.293933 | M145: =IF(I145<>0,IF(Formulario!$C$19="UVR",Simulador!$L$12,IF(Formulario!$C$19="PESOS",Simulador!$L$13,"Error")),0) -> 713.8509682 | N145: 34546.29683 | P145: =IF(I145<>0,IF(Formulario!$C$19="UVR",(P144*(1+$K$11)),IF(Formulario!$C$19="PESOS",1,"Error")),0) -> 760.8243619 | Q145: 140415.4885 | R145: 543115.2074 | S145: =IF(Formulario!$C$19="UVR",P145*N145,IF(Formulario!$C$19="PESOS",N145,"Error")) -> 26283664.24 | U145: 0 | V145: -543115.2074 | W145: 0 | X145: 0 | Y145: 0 | Z145: 0 | AB145: -10878.53808 | AC145: -3449.292561 | AD145: -557443.038
I146: =IF(AND(I145+1<=Formulario!$C$17,I145<>0),I145+1,0) -> 125 | J146: 34546.29683 | K146: =IF(Formulario!$C$19="UVR",J146*$K$12,IF(Formulario!$C$19="PESOS",J146*$K$13,"Error")) -> 181.7720523 | L146: 532.0789159 | M146: =IF(I146<>0,IF(Formulario!$C$19="UVR",Simulador!$L$12,IF(Formulario!$C$19="PESOS",Simulador!$L$13,"Error")),0) -> 713.8509682 | N146: 34014.21791 | P146: =IF(I146<>0,IF(Formulario!$C$19="UVR",(P145*(1+$K$11)),IF(Formulario!$C$19="PESOS",1,"Error")),0) -> 765.221451 | Q146: 139095.8736 | R146: 546254.0737 | S146: =IF(Formulario!$C$19="UVR",P146*N146,IF(Formulario!$C$19="PESOS",N146,"Error")) -> 26028409.19 | U146: 0 | V146: -546254.0737 | W146: 0 | X146: 0 | Y146: 0 | Z146: 0 | AB146: -10776.30234 | AC146: -3416.876351 | AD146: -560447.2524
I147: =IF(AND(I146+1<=Formulario!$C$17,I146<>0),I146+1,0) -> 126 | J147: 34014.21791 | K147: =IF(Formulario!$C$19="UVR",J147*$K$12,IF(Formulario!$C$19="PESOS",J147*$K$13,"Error")) -> 178.9724157 | L147: 534.8785524 | M147: =IF(I147<>0,IF(Formulario!$C$19="UVR",Simulador!$L$12,IF(Formulario!$C$19="PESOS",Simulador!$L$13,"Error")),0) -> 713.8509682 | N147: 33479.33936 | P147: =IF(I147<>0,IF(Formulario!$C$19="UVR",(P146*(1+$K$11)),IF(Formulario!$C$19="PESOS",1,"Error")),0) -> 769.6439525 | Q147: 137745.0374 | R147: 549411.0807 | S147: =IF(Formulario!$C$19="UVR",P147*N147,IF(Formulario!$C$19="PESOS",N147,"Error")) -> 25767171.07 | U147: 0 | V147: -549411.0807 | W147: 0 | X147: 0 | Y147: 0 | Z147: 0 | AB147: -10671.64777 | AC147: -3383.693194 | AD147: -563466.4216
I148: =IF(AND(I147+1<=Formulario!$C$17,I147<>0),I147+1,0) -> 127 | J148: 33479.33936 | K148: =IF(Formulario!$C$19="UVR",J148*$K$12,IF(Formulario!$C$19="PESOS",J148*$K$13,"Error")) -> 176.1580483 | L148: 537.6929199 | M148: =IF(I148<>0,IF(Formulario!$C$19="UVR",Simulador!$L$12,IF(Formulario!$C$19="PESOS",Simulador!$L$13,"Error")),0) -> 713.8509682 | N148: 32941.64644 | P148: =IF(I148<>0,IF(Formulario!$C$19="UVR",(P147*(1+$K$11)),IF(Formulario!$C$19="PESOS",1,"Error")),0) -> 774.0920134 | Q148: 136362.5383 | R148: 552586.3332 | S148: =IF(Formulario!$C$19="UVR",P148*N148,IF(Formulario!$C$19="PESOS",N148,"Error")) -> 25499865.42 | U148: 0 | V148: -552586.3332 | W148: 0 | X148: 0 | Y148: 0 | Z148: 0 | AB148: -10564.54014 | AC148: -3349.73224 | AD148: -566500.6056
I149: =IF(AND(I148+1<=Formulario!$C$17,I148<>0),I148+1,0) -> 128 | J149: 32941.64644 | K149: =IF(Formulario!$C$19="UVR",J149*$K$12,IF(Formulario!$C$19="PESOS",J149*$K$13,"Error")) -> 173.3288726 | L149: 540.5220956 | M149: =IF(I149<>0,IF(Formulario!$C$19="UVR",Simulador!$L$12,IF(Formulario!$C$19="PESOS",Simulador!$L$13,"Error")),0) -> 713.8509682 | N149: 32401.12435 | P149: =IF(I149<>0,IF(Formulario!$C$19="UVR",(P148*(1+$K$11)),IF(Formulario!$C$19="PESOS",1,"Error")),0) -> 778.5657812 | Q149: 134947.9291 | R149: 555779.9367 | S149: =IF(Formulario!$C$19="UVR",P149*N149,IF(Formulario!$C$19="PESOS",N149,"Error")) -> 25226406.69 | U149: 0 | V149: -555779.9367 | W149: 0 | X149: 0 | Y149: 0 | Z149: 0 | AB149: -10454.94482 | AC149: -3314.982504 | AD149: =SUM(U149:AC149) -> -569549.864
I150: =IF(AND(I149+1<=Formulario!$C$17,I149<>0),I149+1,0) -> 129 | J150: 32401.12435 | K150: =IF(Formulario!$C$19="UVR",J150*$K$12,IF(Formulario!$C$19="PESOS",J150*$K$13,"Error")) -> 170.4848105 | L150: 543.3661576 | M150: =IF(I150<>0,IF(Formulario!$C$19="UVR",Simulador!$L$12,IF(Formulario!$C$19="PESOS",Simulador!$L$13,"Error")),0) -> 713.8509682 | N150: 31857.75819 | P150: =IF(I150<>0,IF(Formulario!$C$19="UVR",(P149*(1+$K$11)),IF(Formulario!$C$19="PESOS",1,"Error")),0) -> 783.0654046 | Q150: 133500.7571 | R150: 558991.9972 | S150: =IF(Formulario!$C$19="UVR",P150*N150,IF(Formulario!$C$19="PESOS",N150,"Error")) -> 24946708.31 | U150: 0 | V150: -558991.9972 | W150: 0 | X150: 0 | Y150: 0 | Z150: 0 | AB150: -10342.82674 | AC150: -3279.432869 | AD150: -572614.2568
I151: =IF(AND(I150+1<=Formulario!$C$17,I150<>0),I150+1,0) -> 130 | J151: 31857.75819 | K151: =IF(Formulario!$C$19="UVR",J151*$K$12,IF(Formulario!$C$19="PESOS",J151*$K$13,"Error")) -> 167.6257839 | L151: =IF(I151<>0,M151-K151,0) -> 546.2251842 | M151: =IF(I151<>0,IF(Formulario!$C$19="UVR",Simulador!$L$12,IF(Formulario!$C$19="PESOS",Simulador!$L$13,"Error")),0) -> 713.8509682 | N151: 31311.533 | P151: =IF(I151<>0,IF(Formulario!$C$19="UVR",(P150*(1+$K$11)),IF(Formulario!$C$19="PESOS",1,"Error")),0) -> 787.591033 | Q151: =P151*$K151 -> 132020.5643 | R151: 562222.6214 | S151: =IF(Formulario!$C$19="UVR",P151*N151,IF(Formulario!$C$19="PESOS",N151,"Error")) -> 24660682.62 | U151: 0 | V151: =-R151 -> -562222.6214 | W151: 0 | X151: 0 | Y151: 0 | Z151: 0 | AB151: =(S150*($Z$19/100))*-1 -> -10228.15041 | AC151: =($Z$14*S150)*-1 -> -3243.07208 | AD151: -575693.8439
I152: =IF(AND(I151+1<=Formulario!$C$17,I151<>0),I151+1,0) -> 131 | J152: 31311.533 | K152: =IF(Formulario!$C$19="UVR",J152*$K$12,IF(Formulario!$C$19="PESOS",J152*$K$13,"Error")) -> 164.751714 | L152: 549.0992542 | M152: =IF(I152<>0,IF(Formulario!$C$19="UVR",Simulador!$L$12,IF(Formulario!$C$19="PESOS",Simulador!$L$13,"Error")),0) -> 713.8509682 | N152: 30762.43375 | P152: =IF(I152<>0,IF(Formulario!$C$19="UVR",(P151*(1+$K$11)),IF(Formulario!$C$19="PESOS",1,"Error")),0) -> 792.1428167 | Q152: 130506.8868 | R152: =P152*$M152 -> 565471.9167 | S152: =IF(Formulario!$C$19="UVR",P152*N152,IF(Formulario!$C$19="PESOS",N152,"Error")) -> 24368240.92 | U152: 0 | V152: -565471.9167 | W152: 0 | X152: 0 | Y152: 0 | Z152: 0 | AB152: -10110.87988 | AC152: -3205.888741 | AD152: -578788.6853
I153: =IF(AND(I152+1<=Formulario!$C$17,I152<>0),I152+1,0) -> 132 | J153: 30762.43375 | K153: =IF(Formulario!$C$19="UVR",J153*$K$12,IF(Formulario!$C$19="PESOS",J153*$K$13,"Error")) -> 161.8625216 | L153: 551.9884466 | M153: =IF(I153<>0,IF(Formulario!$C$19="UVR",Simulador!$L$12,IF(Formulario!$C$19="PESOS",Simulador!$L$13,"Error")),0) -> 713.8509682 | N153: 30210.4453 | P153: =IF(I153<>0,IF(Formulario!$C$19="UVR",(P152*(1+$K$11)),IF(Formulario!$C$19="PESOS",1,"Error")),0) -> 796.7209069 | Q153: 128959.255 | R153: 568739.9908 | S153: =IF(Formulario!$C$19="UVR",P153*N153,IF(Formulario!$C$19="PESOS",N153,"Error")) -> 24069293.38 | U153: 0 | V153: -568739.9908 | W153: 0 | X153: 0 | Y153: 0 | Z153: 0 | AB153: -9990.978777 | AC153: -3167.87132 | AD153: -581898.8409
I154: =IF(AND(I153+1<=Formulario!$C$17,I153<>0),I153+1,0) -> 133 | J154: =IF(I154<>0,N153,0) -> 30210.4453 | K154: =IF(Formulario!$C$19="UVR",J154*$K$12,IF(Formulario!$C$19="PESOS",J154*$K$13,"Error")) -> 158.9581272 | L154: 554.892841 | M154: =IF(I154<>0,IF(Formulario!$C$19="UVR",Simulador!$L$12,IF(Formulario!$C$19="PESOS",Simulador!$L$13,"Error")),0) -> 713.8509682 | N154: =J154-L154 -> 29655.55246 | P154: =IF(I154<>0,IF(Formulario!$C$19="UVR",(P153*(1+$K$11)),IF(Formulario!$C$19="PESOS",1,"Error")),0) -> 801.3254556 | Q154: 127377.1937 | R154: 572026.9523 | S154: =IF(Formulario!$C$19="UVR",P154*N154,IF(Formulario!$C$19="PESOS",N154,"Error")) -> 23763749.09 | U154: 0 | V154: -572026.9523 | W154: 0 | X154: 0 | Y154: 0 | Z154: 0 | AB154: -9868.410286 | AC154: -3129.00814 | AD154: -585024.3707
I155: =IF(AND(I154+1<=Formulario!$C$17,I154<>0),I154+1,0) -> 134 | J155: 29655.55246 | K155: =IF(Formulario!$C$19="UVR",J155*$K$12,IF(Formulario!$C$19="PESOS",J155*$K$13,"Error")) -> 156.0384507 | L155: 557.8125175 | M155: =IF(I155<>0,IF(Formulario!$C$19="UVR",Simulador!$L$12,IF(Formulario!$C$19="PESOS",Simulador!$L$13,"Error")),0) -> 713.8509682 | N155: 29097.73994 | P155: =IF(I155<>0,IF(Formulario!$C$19="UVR",(P154*(1+$K$11)),IF(Formulario!$C$19="PESOS",1,"Error")),0) -> 805.9566157 | Q155: 125760.2216 | R155: 575332.9104 | S155: =IF(Formulario!$C$19="UVR",P155*N155,IF(Formulario!$C$19="PESOS",N155,"Error")) -> 23451516.01 | U155: 0 | V155: -575332.9104 | W155: 0 | X155: 0 | Y155: 0 | Z155: 0 | AB155: -9743.137126 | AC155: -3089.287382 | AD155: -588165.3349
I156: =IF(AND(I155+1<=Formulario!$C$17,I155<>0),I155+1,0) -> 135 | J156: 29097.73994 | K156: =IF(Formulario!$C$19="UVR",J156*$K$12,IF(Formulario!$C$19="PESOS",J156*$K$13,"Error")) -> 153.1034117 | L156: 560.7475564 | M156: =IF(I156<>0,IF(Formulario!$C$19="UVR",Simulador!$L$12,IF(Formulario!$C$19="PESOS",Simulador!$L$13,"Error")),0) -> 713.8509682 | N156: 28536.99239 | P156: =IF(I156<>0,IF(Formulario!$C$19="UVR",(P155*(1+$K$11)),IF(Formulario!$C$19="PESOS",1,"Error")),0) -> 810.614541 | Q156: 124107.8518 | R156: 578657.9749 | S156: =IF(Formulario!$C$19="UVR",P156*N156,IF(Formulario!$C$19="PESOS",N156,"Error")) -> 23132500.99 | U156: 0 | V156: -578657.9749 | W156: 0 | X156: 0 | Y156: 0 | Z156: 0 | AB156: -9615.121564 | AC156: -3048.697081 | AD156: -591321.7936
I157: =IF(AND(I156+1<=Formulario!$C$17,I156<>0),I156+1,0) -> 136 | J157: 28536.99239 | K157: =IF(Formulario!$C$19="UVR",J157*$K$12,IF(Formulario!$C$19="PESOS",J157*$K$13,"Error")) -> 150.1529295 | L157: 563.6980386 | M157: =IF(I157<>0,IF(Formulario!$C$19="UVR",Simulador!$L$12,IF(Formulario!$C$19="PESOS",Simulador!$L$13,"Error")),0) -> 713.8509682 | N157: 27973.29435 | P157: =IF(I157<>0,IF(Formulario!$C$19="UVR",(P156*(1+$K$11)),IF(Formulario!$C$19="PESOS",1,"Error")),0) -> 815.2993862 | Q157: 122419.5913 | R157: 582002.2562 | S157: =IF(Formulario!$C$19="UVR",P157*N157,IF(Formulario!$C$19="PESOS",N157,"Error")) -> 22806609.71 | U157: 0 | V157: -582002.2562 | W157: 0 | X157: 0 | Y157: 0 | Z157: 0 | AB157: -9484.325405 | AC157: -3007.225128 | AD157: -594493.8067
I158: =IF(AND(I157+1<=Formulario!$C$17,I157<>0),I157+1,0) -> 137 | J158: 27973.29435 | K158: =IF(Formulario!$C$19="UVR",J158*$K$12,IF(Formulario!$C$19="PESOS",J158*$K$13,"Error")) -> 147.1869228 | L158: 566.6640454 | M158: =IF(I158<>0,IF(Formulario!$C$19="UVR",Simulador!$L$12,IF(Formulario!$C$19="PESOS",Simulador!$L$13,"Error")),0) -> 713.8509682 | N158: 27406.6303 | P158: =IF(I158<>0,IF(Formulario!$C$19="UVR",(P157*(1+$K$11)),IF(Formulario!$C$19="PESOS",1,"Error")),0) -> 820.0113069 | Q158: 120694.9409 | R158: 585365.8653 | S158: =IF(Formulario!$C$19="UVR",P158*N158,IF(Formulario!$C$19="PESOS",N158,"Error")) -> 22473746.73 | U158: 0 | V158: -585365.8653 | W158: 0 | X158: 0 | Y158: 0 | Z158: 0 | AB158: -9350.709983 | AC158: -2964.859263 | AD158: -597681.4346
I159: =IF(AND(I158+1<=Formulario!$C$17,I158<>0),I158+1,0) -> 138 | J159: 27406.6303 | K159: =IF(Formulario!$C$19="UVR",J159*$K$12,IF(Formulario!$C$19="PESOS",J159*$K$13,"Error")) -> 144.2053098 | L159: 569.6456583 | M159: =IF(I159<>0,IF(Formulario!$C$19="UVR",Simulador!$L$12,IF(Formulario!$C$19="PESOS",Simulador!$L$13,"Error")),0) -> 713.8509682 | N159: 26836.98465 | P159: =IF(I159<>0,IF(Formulario!$C$19="UVR",(P158*(1+$K$11)),IF(Formulario!$C$19="PESOS",1,"Error")),0) -> 824.7504595 | Q159: 118933.3955 | R159: 588748.914 | S159: =IF(Formulario!$C$19="UVR",P159*N159,IF(Formulario!$C$19="PESOS",N159,"Error")) -> 22133815.42 | U159: 0 | V159: -588748.914 | W159: 0 | X159: 0 | Y159: 0 | Z159: 0 | AB159: -9214.236161 | AC159: -2921.587075 | AD159: -600884.7373
I160: =IF(AND(I159+1<=Formulario!$C$17,I159<>0),I159+1,0) -> 139 | J160: 26836.98465 | K160: =IF(Formulario!$C$19="UVR",J160*$K$12,IF(Formulario!$C$19="PESOS",J160*$K$13,"Error")) -> 141.2080085 | L160: 572.6429597 | M160: =IF(I160<>0,IF(Formulario!$C$19="UVR",Simulador!$L$12,IF(Formulario!$C$19="PESOS",Simulador!$L$13,"Error")),0) -> 713.8509682 | N160: 26264.34169 | P160: =IF(I160<>0,IF(Formulario!$C$19="UVR",(P159*(1+$K$11)),IF(Formulario!$C$19="PESOS",1,"Error")),0) -> 829.5170015 | Q160: 117134.4438 | R160: 592151.5146 | S160: =IF(Formulario!$C$19="UVR",P160*N160,IF(Formulario!$C$19="PESOS",N160,"Error")) -> 21786717.96 | U160: 0 | V160: -592151.5146 | W160: 0 | X160: 0 | Y160: 0 | Z160: 0 | AB160: -9074.864322 | AC160: -2877.396005 | AD160: -604103.775
I161: =IF(AND(I160+1<=Formulario!$C$17,I160<>0),I160+1,0) -> 140 | J161: 26264.34169 | K161: =IF(Formulario!$C$19="UVR",J161*$K$12,IF(Formulario!$C$19="PESOS",J161*$K$13,"Error")) -> 138.1949363 | L161: 575.6560318 | M161: =IF(I161<>0,IF(Formulario!$C$19="UVR",Simulador!$L$12,IF(Formulario!$C$19="PESOS",Simulador!$L$13,"Error")),0) -> 713.8509682 | N161: 25688.68565 | P161: =IF(I161<>0,IF(Formulario!$C$19="UVR",(P160*(1+$K$11)),IF(Formulario!$C$19="PESOS",1,"Error")),0) -> 834.3110911 | Q161: 115297.5681 | R161: 595573.7802 | S161: =IF(Formulario!$C$19="UVR",P161*N161,IF(Formulario!$C$19="PESOS",N161,"Error")) -> 21432355.36 | U161: 0 | V161: -595573.7802 | W161: 0 | X161: 0 | Y161: 0 | Z161: 0 | AB161: -8932.554365 | AC161: -2832.273335 | AD161: -607338.6079
I162: =IF(AND(I161+1<=Formulario!$C$17,I161<>0),I161+1,0) -> 141 | J162: 25688.68565 | K162: =IF(Formulario!$C$19="UVR",J162*$K$12,IF(Formulario!$C$19="PESOS",J162*$K$13,"Error")) -> 135.1660103 | L162: 578.6849579 | M162: =IF(I162<>0,IF(Formulario!$C$19="UVR",Simulador!$L$12,IF(Formulario!$C$19="PESOS",Simulador!$L$13,"Error")),0) -> 713.8509682 | N162: 25110.0007 | P162: =IF(I162<>0,IF(Formulario!$C$19="UVR",(P161*(1+$K$11)),IF(Formulario!$C$19="PESOS",1,"Error")),0) -> 839.1328876 | Q162: 113422.2445 | R162: 599015.8242 | S162: =IF(Formulario!$C$19="UVR",P162*N162,IF(Formulario!$C$19="PESOS",N162,"Error")) -> 21070627.39 | U162: 0 | V162: -599015.8242 | W162: 0 | X162: 0 | Y162: 0 | Z162: 0 | AB162: -8787.265697 | AC162: -2786.206197 | AD162: -610589.2961
I163: =IF(AND(I162+1<=Formulario!$C$17,I162<>0),I162+1,0) -> 142 | J163: 25110.0007 | K163: =IF(Formulario!$C$19="UVR",J163*$K$12,IF(Formulario!$C$19="PESOS",J163*$K$13,"Error")) -> 132.121147 | L163: 581.7298212 | M163: =IF(I163<>0,IF(Formulario!$C$19="UVR",Simulador!$L$12,IF(Formulario!$C$19="PESOS",Simulador!$L$13,"Error")),0) -> 713.8509682 | N163: 24528.27088 | P163: =IF(I163<>0,IF(Formulario!$C$19="UVR",(P162*(1+$K$11)),IF(Formulario!$C$19="PESOS",1,"Error")),0) -> 843.982551 | Q163: 111507.9426 | R163: 602477.7611 | S163: =IF(Formulario!$C$19="UVR",P163*N163,IF(Formulario!$C$19="PESOS",N163,"Error")) -> 20701432.62 | U163: 0 | V163: -602477.7611 | W163: 0 | X163: 0 | Y163: 0 | Z163: 0 | AB163: -8638.957231 | AC163: -2739.181561 | AD163: -613855.8999
I164: =IF(AND(I163+1<=Formulario!$C$17,I163<>0),I163+1,0) -> 143 | J164: 24528.27088 | K164: =IF(Formulario!$C$19="UVR",J164*$K$12,IF(Formulario!$C$19="PESOS",J164*$K$13,"Error")) -> 129.0602625 | L164: 584.7907057 | M164: =IF(I164<>0,IF(Formulario!$C$19="UVR",Simulador!$L$12,IF(Formulario!$C$19="PESOS",Simulador!$L$13,"Error")),0) -> 713.8509682 | N164: 23943.48017 | P164: =IF(I164<>0,IF(Formulario!$C$19="UVR",(P163*(1+$K$11)),IF(Formulario!$C$19="PESOS",1,"Error")),0) -> 848.8602424 | Q164: 109554.1257 | R164: 605959.7059 | S164: =IF(Formulario!$C$19="UVR",P164*N164,IF(Formulario!$C$19="PESOS",N164,"Error")) -> 20324668.38 | U164: 0 | V164: -605959.7059 | W164: 0 | X164: 0 | Y164: 0 | Z164: 0 | AB164: -8487.587376 | AC164: -2691.186241 | AD164: -617138.4795
I165: =IF(AND(I164+1<=Formulario!$C$17,I164<>0),I164+1,0) -> 144 | J165: 23943.48017 | K165: =IF(Formulario!$C$19="UVR",J165*$K$12,IF(Formulario!$C$19="PESOS",J165*$K$13,"Error")) -> 125.9832726 | L165: 587.8676956 | M165: =IF(I165<>0,IF(Formulario!$C$19="UVR",Simulador!$L$12,IF(Formulario!$C$19="PESOS",Simulador!$L$13,"Error")),0) -> 713.8509682 | N165: 23355.61247 | P165: =IF(I165<>0,IF(Formulario!$C$19="UVR",(P164*(1+$K$11)),IF(Formulario!$C$19="PESOS",1,"Error")),0) -> 853.7661239 | Q165: 107560.2503 | R165: 609461.7741 | S165: =IF(Formulario!$C$19="UVR",P165*N165,IF(Formulario!$C$19="PESOS",N165,"Error")) -> 19940230.73 | U165: 0 | V165: -609461.7741 | W165: 0 | X165: 0 | Y165: 0 | Z165: 0 | AB165: -8333.114036 | AC165: -2642.20689 | AD165: -620437.095
I166: =IF(AND(I165+1<=Formulario!$C$17,I165<>0),I165+1,0) -> 145 | J166: 23355.61247 | K166: =IF(Formulario!$C$19="UVR",J166*$K$12,IF(Formulario!$C$19="PESOS",J166*$K$13,"Error")) -> 122.8900925 | L166: 590.9608757 | M166: =IF(I166<>0,IF(Formulario!$C$19="UVR",Simulador!$L$12,IF(Formulario!$C$19="PESOS",Simulador!$L$13,"Error")),0) -> 713.8509682 | N166: 22764.6516 | P166: =IF(I166<>0,IF(Formulario!$C$19="UVR",(P165*(1+$K$11)),IF(Formulario!$C$19="PESOS",1,"Error")),0) -> 858.7003582 | Q166: 105525.7664 | R166: 612984.0821 | S166: =IF(Formulario!$C$19="UVR",P166*N166,IF(Formulario!$C$19="PESOS",N166,"Error")) -> 19548014.48 | U166: 0 | V166: -612984.0821 | W166: 0 | X166: 0 | Y166: 0 | Z166: 0 | AB166: -8175.4946 | AC166: -2592.229995 | AD166: -623751.8067
I167: =IF(AND(I166+1<=Formulario!$C$17,I166<>0),I166+1,0) -> 146 | J167: 22764.6516 | K167: =IF(Formulario!$C$19="UVR",J167*$K$12,IF(Formulario!$C$19="PESOS",J167*$K$13,"Error")) -> 119.780637 | L167: 594.0703311 | M167: =IF(I167<>0,IF(Formulario!$C$19="UVR",Simulador!$L$12,IF(Formulario!$C$19="PESOS",Simulador!$L$13,"Error")),0) -> 713.8509682 | N167: 22170.58127 | P167: =IF(I167<>0,IF(Formulario!$C$19="UVR",(P166*(1+$K$11)),IF(Formulario!$C$19="PESOS",1,"Error")),0) -> 863.6631094 | Q167: 103450.1174 | R167: 616526.7468 | S167: =IF(Formulario!$C$19="UVR",P167*N167,IF(Formulario!$C$19="PESOS",N167,"Error")) -> 19147913.15 | U167: 0 | V167: -616526.7468 | W167: 0 | X167: 0 | Y167: 0 | Z167: 0 | AB167: -8014.685938 | AC167: -2541.241883 | AD167: -627082.6746
I168: =IF(AND(I167+1<=Formulario!$C$17,I167<>0),I167+1,0) -> 147 | J168: 22170.58127 | K168: =IF(Formulario!$C$19="UVR",J168*$K$12,IF(Formulario!$C$19="PESOS",J168*$K$13,"Error")) -> 116.6548206 | L168: 597.1961476 | M168: =IF(I168<>0,IF(Formulario!$C$19="UVR",Simulador!$L$12,IF(Formulario!$C$19="PESOS",Simulador!$L$13,"Error")),0) -> 713.8509682 | N168: 21573.38512 | P168: =IF(I168<>0,IF(Formulario!$C$19="UVR",(P167*(1+$K$11)),IF(Formulario!$C$19="PESOS",1,"Error")),0) -> 868.6545422 | Q168: 101332.7398 | R168: 620089.8859 | S168: =IF(Formulario!$C$19="UVR",P168*N168,IF(Formulario!$C$19="PESOS",N168,"Error")) -> 18739818.97 | U168: 0 | V168: -620089.8859 | W168: 0 | X168: 0 | Y168: 0 | Z168: 0 | AB168: -7850.644393 | AC168: -2489.22871 | AD168: -630429.759
I169: =IF(AND(I168+1<=Formulario!$C$17,I168<>0),I168+1,0) -> 148 | J169: 21573.38512 | K169: =IF(Formulario!$C$19="UVR",J169*$K$12,IF(Formulario!$C$19="PESOS",J169*$K$13,"Error")) -> 113.512557 | L169: 600.3384112 | M169: =IF(I169<>0,IF(Formulario!$C$19="UVR",Simulador!$L$12,IF(Formulario!$C$19="PESOS",Simulador!$L$13,"Error")),0) -> 713.8509682 | N169: 20973.04671 | P169: =IF(I169<>0,IF(Formulario!$C$19="UVR",(P168*(1+$K$11)),IF(Formulario!$C$19="PESOS",1,"Error")),0) -> 873.6748223 | Q169: 99173.06308 | R169: 623673.6178 | S169: =IF(Formulario!$C$19="UVR",P169*N169,IF(Formulario!$C$19="PESOS",N169,"Error")) -> 18323622.86 | U169: 0 | V169: -623673.6178 | W169: 0 | X169: 0 | Y169: 0 | Z169: 0 | AB169: -7683.325779 | AC169: -2436.176467 | AD169: -633793.12
I170: =IF(AND(I169+1<=Formulario!$C$17,I169<>0),I169+1,0) -> 149 | J170: 20973.04671 | K170: =IF(Formulario!$C$19="UVR",J170*$K$12,IF(Formulario!$C$19="PESOS",J170*$K$13,"Error")) -> 110.3537598 | L170: 603.4972083 | M170: =IF(I170<>0,IF(Formulario!$C$19="UVR",Simulador!$L$12,IF(Formulario!$C$19="PESOS",Simulador!$L$13,"Error")),0) -> 713.8509682 | N170: 20369.5495 | P170: =IF(I170<>0,IF(Formulario!$C$19="UVR",(P169*(1+$K$11)),IF(Formulario!$C$19="PESOS",1,"Error")),0) -> 878.7241165 | Q170: 96970.51011 | R170: 627278.0613 | S170: =IF(Formulario!$C$19="UVR",P170*N170,IF(Formulario!$C$19="PESOS",N170,"Error")) -> 17899214.39 | U170: 0 | V170: -627278.0613 | W170: 0 | X170: 0 | Y170: 0 | Z170: 0 | AB170: -7512.685371 | AC170: -2382.070971 | AD170: -637172.8176
I171: =IF(AND(I170+1<=Formulario!$C$17,I170<>0),I170+1,0) -> 150 | J171: 20369.5495 | K171: =IF(Formulario!$C$19="UVR",J171*$K$12,IF(Formulario!$C$19="PESOS",J171*$K$13,"Error")) -> 107.178342 | L171: 606.6726261 | M171: =IF(I171<>0,IF(Formulario!$C$19="UVR",Simulador!$L$12,IF(Formulario!$C$19="PESOS",Simulador!$L$13,"Error")),0) -> 713.8509682 | N171: 19762.87687 | P171: =IF(I171<>0,IF(Formulario!$C$19="UVR",(P170*(1+$K$11)),IF(Formulario!$C$19="PESOS",1,"Error")),0) -> 883.8025924 | Q171: 94724.49654 | R171: 630903.3363 | S171: =IF(Formulario!$C$19="UVR",P171*N171,IF(Formulario!$C$19="PESOS",N171,"Error")) -> 17466481.82 | U171: 0 | V171: -630903.3363 | W171: 0 | X171: 0 | Y171: 0 | Z171: 0 | AB171: -7338.677899 | AC171: -2326.89787 | AD171: -640568.9121
I172: =IF(AND(I171+1<=Formulario!$C$17,I171<>0),I171+1,0) -> 151 | J172: 19762.87687 | K172: =IF(Formulario!$C$19="UVR",J172*$K$12,IF(Formulario!$C$19="PESOS",J172*$K$13,"Error")) -> 103.9862161 | L172: 609.864752 | M172: =IF(I172<>0,IF(Formulario!$C$19="UVR",Simulador!$L$12,IF(Formulario!$C$19="PESOS",Simulador!$L$13,"Error")),0) -> 713.8509682 | N172: 19153.01212 | P172: =IF(I172<>0,IF(Formulario!$C$19="UVR",(P171*(1+$K$11)),IF(Formulario!$C$19="PESOS",1,"Error")),0) -> 888.9104188 | Q172: 92434.43094 | R172: 634549.5631 | S172: =IF(Formulario!$C$19="UVR",P172*N172,IF(Formulario!$C$19="PESOS",N172,"Error")) -> 17025312.03 | U172: 0 | V172: -634549.5631 | W172: 0 | X172: 0 | Y172: 0 | Z172: 0 | AB172: -7161.257544 | AC172: -2270.642636 | AD172: -643981.4633
I173: =IF(AND(I172+1<=Formulario!$C$17,I172<>0),I172+1,0) -> 152 | J173: 19153.01212 | K173: =IF(Formulario!$C$19="UVR",J173*$K$12,IF(Formulario!$C$19="PESOS",J173*$K$13,"Error")) -> 100.7772943 | L173: 613.0736739 | M173: =IF(I173<>0,IF(Formulario!$C$19="UVR",Simulador!$L$12,IF(Formulario!$C$19="PESOS",Simulador!$L$13,"Error")),0) -> 713.8509682 | N173: 18539.93845 | P173: =IF(I173<>0,IF(Formulario!$C$19="UVR",(P172*(1+$K$11)),IF(Formulario!$C$19="PESOS",1,"Error")),0) -> 894.0477652 | Q173: 90099.71473 | R173: 638216.8628 | S173: =IF(Formulario!$C$19="UVR",P173*N173,IF(Formulario!$C$19="PESOS",N173,"Error")) -> 16575590.54 | U173: 0 | V173: -638216.8628 | W173: 0 | X173: 0 | Y173: 0 | Z173: 0 | AB173: -6980.377931 | AC173: -2213.290564 | AD173: -647410.5313
I174: =IF(AND(I173+1<=Formulario!$C$17,I173<>0),I173+1,0) -> 153 | J174: 18539.93845 | K174: =IF(Formulario!$C$19="UVR",J174*$K$12,IF(Formulario!$C$19="PESOS",J174*$K$13,"Error")) -> 97.55148803 | L174: 616.2994801 | M174: =IF(I174<>0,IF(Formulario!$C$19="UVR",Simulador!$L$12,IF(Formulario!$C$19="PESOS",Simulador!$L$13,"Error")),0) -> 713.8509682 | N174: 17923.63897 | P174: =IF(I174<>0,IF(Formulario!$C$19="UVR",(P173*(1+$K$11)),IF(Formulario!$C$19="PESOS",1,"Error")),0) -> 899.2148023 | Q174: 87719.74202 | R174: 641905.3572 | S174: =IF(Formulario!$C$19="UVR",P174*N174,IF(Formulario!$C$19="PESOS",N174,"Error")) -> 16117201.47 | U174: 0 | V174: -641905.3572 | W174: 0 | X174: 0 | Y174: 0 | Z174: 0 | AB174: -6795.99212 | AC174: -2154.82677 | AD174: -650856.1761
I175: =IF(AND(I174+1<=Formulario!$C$17,I174<>0),I174+1,0) -> 154 | J175: 17923.63897 | K175: =IF(Formulario!$C$19="UVR",J175*$K$12,IF(Formulario!$C$19="PESOS",J175*$K$13,"Error")) -> 94.30870858 | L175: 619.5422596 | M175: =IF(I175<>0,IF(Formulario!$C$19="UVR",Simulador!$L$12,IF(Formulario!$C$19="PESOS",Simulador!$L$13,"Error")),0) -> 713.8509682 | N175: 17304.09671 | P175: =IF(I175<>0,IF(Formulario!$C$19="UVR",(P174*(1+$K$11)),IF(Formulario!$C$19="PESOS",1,"Error")),0) -> 904.4117016 | Q175: 85293.8996 | R175: 645615.1688 | S175: =IF(Formulario!$C$19="UVR",P175*N175,IF(Formulario!$C$19="PESOS",N175,"Error")) -> 15650027.55 | U175: 0 | V175: -645615.1688 | W175: 0 | X175: 0 | Y175: 0 | Z175: 0 | AB175: -6608.052603 | AC175: -2095.236191 | AD175: -654318.4576
I176: =IF(AND(I175+1<=Formulario!$C$17,I175<>0),I175+1,0) -> 155 | J176: 17304.09671 | K176: =IF(Formulario!$C$19="UVR",J176*$K$12,IF(Formulario!$C$19="PESOS",J176*$K$13,"Error")) -> 91.04886662 | L176: 622.8021016 | M176: =IF(I176<>0,IF(Formulario!$C$19="UVR",Simulador!$L$12,IF(Formulario!$C$19="PESOS",Simulador!$L$13,"Error")),0) -> 713.8509682 | N176: 16681.29461 | P176: =IF(I176<>0,IF(Formulario!$C$19="UVR",(P175*(1+$K$11)),IF(Formulario!$C$19="PESOS",1,"Error")),0) -> 909.6386358 | Q176: 82821.56682 | R176: 649346.4208 | S176: =IF(Formulario!$C$19="UVR",P176*N176,IF(Formulario!$C$19="PESOS",N176,"Error")) -> 15173950.07 | U176: 0 | V176: -649346.4208 | W176: 0 | X176: 0 | Y176: 0 | Z176: 0 | AB176: -6416.511295 | AC176: -2034.503581 | AD176: -657797.4357
I177: =IF(AND(I176+1<=Formulario!$C$17,I176<>0),I176+1,0) -> 156 | J177: 16681.29461 | K177: =IF(Formulario!$C$19="UVR",J177*$K$12,IF(Formulario!$C$19="PESOS",J177*$K$13,"Error")) -> 87.77187236 | L177: 626.0790958 | M177: =IF(I177<>0,IF(Formulario!$C$19="UVR",Simulador!$L$12,IF(Formulario!$C$19="PESOS",Simulador!$L$13,"Error")),0) -> 713.8509682 | N177: 16055.21551 | P177: =IF(I177<>0,IF(Formulario!$C$19="UVR",(P176*(1+$K$11)),IF(Formulario!$C$19="PESOS",1,"Error")),0) -> 914.8957783 | Q177: 80302.11548 | R177: 653099.2371 | S177: =IF(Formulario!$C$19="UVR",P177*N177,IF(Formulario!$C$19="PESOS",N177,"Error")) -> 14688848.89 | U177: 0 | V177: -653099.2371 | W177: 0 | X177: 0 | Y177: 0 | Z177: 0 | AB177: -6221.319528 | AC177: -1972.613509 | AD177: -661293.1702
I178: =IF(AND(I177+1<=Formulario!$C$17,I177<>0),I177+1,0) -> 157 | J178: 16055.21551 | K178: =IF(Formulario!$C$19="UVR",J178*$K$12,IF(Formulario!$C$19="PESOS",J178*$K$13,"Error")) -> 84.47763557 | L178: 629.3733326 | M178: =IF(I178<>0,IF(Formulario!$C$19="UVR",Simulador!$L$12,IF(Formulario!$C$19="PESOS",Simulador!$L$13,"Error")),0) -> 713.8509682 | N178: 15425.84218 | P178: =IF(I178<>0,IF(Formulario!$C$19="UVR",(P177*(1+$K$11)),IF(Formulario!$C$19="PESOS",1,"Error")),0) -> 920.1833039 | Q178: 77734.9098 | R178: 656873.7424 | S178: =IF(Formulario!$C$19="UVR",P178*N178,IF(Formulario!$C$19="PESOS",N178,"Error")) -> 14194602.42 | U178: 0 | V178: -656873.7424 | W178: 0 | X178: 0 | Y178: 0 | Z178: 0 | AB178: -6022.428045 | AC178: -1909.550356 | AD178: -664805.7208
I179: =IF(AND(I178+1<=Formulario!$C$17,I178<>0),I178+1,0) -> 158 | J179: 15425.84218 | K179: =IF(Formulario!$C$19="UVR",J179*$K$12,IF(Formulario!$C$19="PESOS",J179*$K$13,"Error")) -> 81.16606551 | L179: 632.6849027 | M179: =IF(I179<>0,IF(Formulario!$C$19="UVR",Simulador!$L$12,IF(Formulario!$C$19="PESOS",Simulador!$L$13,"Error")),0) -> 713.8509682 | N179: 14793.15728 | P179: =IF(I179<>0,IF(Formulario!$C$19="UVR",(P178*(1+$K$11)),IF(Formulario!$C$19="PESOS",1,"Error")),0) -> 925.501388 | Q179: 75119.30629 | R179: 660670.0619 | S179: =IF(Formulario!$C$19="UVR",P179*N179,IF(Formulario!$C$19="PESOS",N179,"Error")) -> 13691087.59 | U179: 0 | V179: -660670.0619 | W179: 0 | X179: 0 | Y179: 0 | Z179: 0 | AB179: -5819.786993 | AC179: -1845.298315 | AD179: -668335.1472
I180: =IF(AND(I179+1<=Formulario!$C$17,I179<>0),I179+1,0) -> 159 | J180: 14793.15728 | K180: =IF(Formulario!$C$19="UVR",J180*$K$12,IF(Formulario!$C$19="PESOS",J180*$K$13,"Error")) -> 77.83707097 | L180: 636.0138972 | M180: =IF(I180<>0,IF(Formulario!$C$19="UVR",Simulador!$L$12,IF(Formulario!$C$19="PESOS",Simulador!$L$13,"Error")),0) -> 713.8509682 | N180: 14157.14338 | P180: =IF(I180<>0,IF(Formulario!$C$19="UVR",(P179*(1+$K$11)),IF(Formulario!$C$19="PESOS",1,"Error")),0) -> 930.8502074 | Q180: 72454.65366 | R180: 664488.3218 | S180: =IF(Formulario!$C$19="UVR",P180*N180,IF(Formulario!$C$19="PESOS",N180,"Error")) -> 13178179.85 | U180: 0 | V180: -664488.3218 | W180: 0 | X180: 0 | Y180: 0 | Z180: 0 | AB180: -5613.345913 | AC180: -1779.841387 | AD180: -671881.5091
I181: =IF(AND(I180+1<=Formulario!$C$17,I180<>0),I180+1,0) -> 160 | J181: 14157.14338 | K181: =IF(Formulario!$C$19="UVR",J181*$K$12,IF(Formulario!$C$19="PESOS",J181*$K$13,"Error")) -> 74.49056029 | L181: 639.3604079 | M181: =IF(I181<>0,IF(Formulario!$C$19="UVR",Simulador!$L$12,IF(Formulario!$C$19="PESOS",Simulador!$L$13,"Error")),0) -> 713.8509682 | N181: 13517.78297 | P181: =IF(I181<>0,IF(Formulario!$C$19="UVR",(P180*(1+$K$11)),IF(Formulario!$C$19="PESOS",1,"Error")),0) -> 936.2299396 | Q181: 69740.29276 | R181: 668328.6488 | S181: =IF(Formulario!$C$19="UVR",P181*N181,IF(Formulario!$C$19="PESOS",N181,"Error")) -> 12655753.13 | U181: 0 | V181: -668328.6488 | W181: 0 | X181: 0 | Y181: 0 | Z181: 0 | AB181: -5403.053738 | AC181: -1713.16338 | AD181: -675444.8659
I182: =IF(AND(I181+1<=Formulario!$C$17,I181<>0),I181+1,0) -> 161 | J182: 13517.78297 | K182: =IF(Formulario!$C$19="UVR",J182*$K$12,IF(Formulario!$C$19="PESOS",J182*$K$13,"Error")) -> 71.12644129 | L182: 642.7245269 | M182: =IF(I182<>0,IF(Formulario!$C$19="UVR",Simulador!$L$12,IF(Formulario!$C$19="PESOS",Simulador!$L$13,"Error")),0) -> 713.8509682 | N182: 12875.05844 | P182: =IF(I182<>0,IF(Formulario!$C$19="UVR",(P181*(1+$K$11)),IF(Formulario!$C$19="PESOS",1,"Error")),0) -> 941.6407632 | Q182: 66975.55646 | R182: 672191.1705 | S182: =IF(Formulario!$C$19="UVR",P182*N182,IF(Formulario!$C$19="PESOS",N182,"Error")) -> 12123679.86 | U182: 0 | V182: -672191.1705 | W182: 0 | X182: 0 | Y182: 0 | Z182: 0 | AB182: -5188.858785 | AC182: -1645.247907 | AD182: -679025.2772
I183: =IF(AND(I182+1<=Formulario!$C$17,I182<>0),I182+1,0) -> 162 | J183: 12875.05844 | K183: =IF(Formulario!$C$19="UVR",J183*$K$12,IF(Formulario!$C$19="PESOS",J183*$K$13,"Error")) -> 67.74462133 | L183: 646.1063468 | M183: =IF(I183<>0,IF(Formulario!$C$19="UVR",Simulador!$L$12,IF(Formulario!$C$19="PESOS",Simulador!$L$13,"Error")),0) -> 713.8509682 | N183: 12228.9521 | P183: =IF(I183<>0,IF(Formulario!$C$19="UVR",(P182*(1+$K$11)),IF(Formulario!$C$19="PESOS",1,"Error")),0) -> 947.0828581 | Q183: 64159.76959 | R183: 676076.0152 | S183: =IF(Formulario!$C$19="UVR",P183*N183,IF(Formulario!$C$19="PESOS",N183,"Error")) -> 11581830.9 | U183: 0 | V183: -676076.0152 | W183: 0 | X183: 0 | Y183: 0 | Z183: 0 | AB183: -4970.708742 | AC183: -1576.078382 | AD183: -682622.8023
I184: =IF(AND(I183+1<=Formulario!$C$17,I183<>0),I183+1,0) -> 163 | J184: 12228.9521 | K184: =IF(Formulario!$C$19="UVR",J184*$K$12,IF(Formulario!$C$19="PESOS",J184*$K$13,"Error")) -> 64.34500726 | L184: 649.5059609 | M184: =IF(I184<>0,IF(Formulario!$C$19="UVR",Simulador!$L$12,IF(Formulario!$C$19="PESOS",Simulador!$L$13,"Error")),0) -> 713.8509682 | N184: 11579.44614 | P184: =IF(I184<>0,IF(Formulario!$C$19="UVR",(P183*(1+$K$11)),IF(Formulario!$C$19="PESOS",1,"Error")),0) -> 952.5564048 | Q184: 61292.24878 | R184: 679983.3118 | S184: =IF(Formulario!$C$19="UVR",P184*N184,IF(Formulario!$C$19="PESOS",N184,"Error")) -> 11030075.58 | U184: 0 | V184: -679983.3118 | W184: 0 | X184: 0 | Y184: 0 | Z184: 0 | AB184: -4748.55067 | AC184: -1505.638017 | AD184: -686237.5005
I185: =IF(AND(I184+1<=Formulario!$C$17,I184<>0),I184+1,0) -> 164 | J185: 11579.44614 | K185: =IF(Formulario!$C$19="UVR",J185*$K$12,IF(Formulario!$C$19="PESOS",J185*$K$13,"Error")) -> 60.92750546 | L185: 652.9234627 | M185: =IF(I185<>0,IF(Formulario!$C$19="UVR",Simulador!$L$12,IF(Formulario!$C$19="PESOS",Simulador!$L$13,"Error")),0) -> 713.8509682 | N185: 10926.52267 | P185: =IF(I185<>0,IF(Formulario!$C$19="UVR",(P184*(1+$K$11)),IF(Formulario!$C$19="PESOS",1,"Error")),0) -> 958.0615852 | Q185: 58372.30247 | R185: 683913.1902 | S185: =IF(Formulario!$C$19="UVR",P185*N185,IF(Formulario!$C$19="PESOS",N185,"Error")) -> 10468281.63 | U185: 0 | V185: -683913.1902 | W185: 0 | X185: 0 | Y185: 0 | Z185: 0 | AB185: -4522.330988 | AC185: -1433.909826 | AD185: -689869.431
I186: =IF(AND(I185+1<=Formulario!$C$17,I185<>0),I185+1,0) -> 165 | J186: 10926.52267 | K186: =IF(Formulario!$C$19="UVR",J186*$K$12,IF(Formulario!$C$19="PESOS",J186*$K$13,"Error")) -> 57.49202182 | L186: 656.3589464 | M186: =IF(I186<>0,IF(Formulario!$C$19="UVR",Simulador!$L$12,IF(Formulario!$C$19="PESOS",Simulador!$L$13,"Error")),0) -> 713.8509682 | N186: 10270.16373 | P186: =IF(I186<>0,IF(Formulario!$C$19="UVR",(P185*(1+$K$11)),IF(Formulario!$C$19="PESOS",1,"Error")),0) -> 963.5985822 | Q186: 55399.23071 | R186: 687865.7808 | S186: =IF(Formulario!$C$19="UVR",P186*N186,IF(Formulario!$C$19="PESOS",N186,"Error")) -> 9896315.206 | U186: 0 | V186: -687865.7808 | W186: 0 | X186: 0 | Y186: 0 | Z186: 0 | AB186: -4291.99547 | AC186: -1360.876612 | AD186: -693518.6529
I187: =IF(AND(I186+1<=Formulario!$C$17,I186<>0),I186+1,0) -> 166 | J187: 10270.16373 | K187: =IF(Formulario!$C$19="UVR",J187*$K$12,IF(Formulario!$C$19="PESOS",J187*$K$13,"Error")) -> 54.03846171 | L187: 659.8125065 | M187: =IF(I187<>0,IF(Formulario!$C$19="UVR",Simulador!$L$12,IF(Formulario!$C$19="PESOS",Simulador!$L$13,"Error")),0) -> 713.8509682 | N187: 9610.351221 | P187: =IF(I187<>0,IF(Formulario!$C$19="UVR",(P186*(1+$K$11)),IF(Formulario!$C$19="PESOS",1,"Error")),0) -> 969.1675795 | Q187: 52372.32513 | R187: 691841.2149 | S187: =IF(Formulario!$C$19="UVR",P187*N187,IF(Formulario!$C$19="PESOS",N187,"Error")) -> 9314040.83 | U187: 0 | V187: -691841.2149 | W187: 0 | X187: 0 | Y187: 0 | Z187: 0 | AB187: -4057.489234 | AC187: -1286.520977 | AD187: -697185.2251
I188: =IF(AND(I187+1<=Formulario!$C$17,I187<>0),I187+1,0) -> 167 | J188: 9610.351221 | K188: =IF(Formulario!$C$19="UVR",J188*$K$12,IF(Formulario!$C$19="PESOS",J188*$K$13,"Error")) -> 50.56673002 | L188: 663.2842382 | M188: =IF(I188<>0,IF(Formulario!$C$19="UVR",Simulador!$L$12,IF(Formulario!$C$19="PESOS",Simulador!$L$13,"Error")),0) -> 713.8509682 | N188: 8947.066982 | P188: =IF(I188<>0,IF(Formulario!$C$19="UVR",(P187*(1+$K$11)),IF(Formulario!$C$19="PESOS",1,"Error")),0) -> 974.7687621 | Q188: 49290.86882 | R188: 695839.6246 | S188: =IF(Formulario!$C$19="UVR",P188*N188,IF(Formulario!$C$19="PESOS",N188,"Error")) -> 8721321.407 | U188: 0 | V188: -695839.6246 | W188: 0 | X188: 0 | Y188: 0 | Z188: 0 | AB188: -3818.75674 | AC188: -1210.825308 | AD188: -700869.2066
I189: =IF(AND(I188+1<=Formulario!$C$17,I188<>0),I188+1,0) -> 168 | J189: 8947.066982 | K189: =IF(Formulario!$C$19="UVR",J189*$K$12,IF(Formulario!$C$19="PESOS",J189*$K$13,"Error")) -> 47.07673114 | L189: 666.774237 | M189: =IF(I189<>0,IF(Formulario!$C$19="UVR",Simulador!$L$12,IF(Formulario!$C$19="PESOS",Simulador!$L$13,"Error")),0) -> 713.8509682 | N189: 8280.292745 | P189: =IF(I189<>0,IF(Formulario!$C$19="UVR",(P188*(1+$K$11)),IF(Formulario!$C$19="PESOS",1,"Error")),0) -> 980.4023161 | Q189: 46154.13624 | R189: 699861.1425 | S189: =IF(Formulario!$C$19="UVR",P189*N189,IF(Formulario!$C$19="PESOS",N189,"Error")) -> 8118018.185 | U189: 0 | V189: -699861.1425 | W189: 0 | X189: 0 | Y189: 0 | Z189: 0 | AB189: -3575.741777 | AC189: -1133.771783 | AD189: -704570.6561
I190: =IF(AND(I189+1<=Formulario!$C$17,I189<>0),I189+1,0) -> 169 | J190: 8280.292745 | K190: =IF(Formulario!$C$19="UVR",J190*$K$12,IF(Formulario!$C$19="PESOS",J190*$K$13,"Error")) -> 43.56836895 | L190: 670.2825992 | M190: =IF(I190<>0,IF(Formulario!$C$19="UVR",Simulador!$L$12,IF(Formulario!$C$19="PESOS",Simulador!$L$13,"Error")),0) -> 713.8509682 | N190: 7610.010146 | P190: =IF(I190<>0,IF(Formulario!$C$19="UVR",(P189*(1+$K$11)),IF(Formulario!$C$19="PESOS",1,"Error")),0) -> 986.0684284 | Q190: 42961.3931 | R190: 703905.9023 | S190: =IF(Formulario!$C$19="UVR",P190*N190,IF(Formulario!$C$19="PESOS",N190,"Error")) -> 7503990.745 | U190: 0 | V190: -703905.9023 | W190: 0 | X190: 0 | Y190: 0 | Z190: 0 | AB190: -3328.387456 | AC190: -1055.342364 | AD190: -708289.6321
I191: =IF(AND(I190+1<=Formulario!$C$17,I190<>0),I190+1,0) -> 170 | J191: 7610.010146 | K191: =IF(Formulario!$C$19="UVR",J191*$K$12,IF(Formulario!$C$19="PESOS",J191*$K$13,"Error")) -> 40.04154683 | L191: 673.8094213 | M191: =IF(I191<>0,IF(Formulario!$C$19="UVR",Simulador!$L$12,IF(Formulario!$C$19="PESOS",Simulador!$L$13,"Error")),0) -> 713.8509682 | N191: 6936.200725 | P191: =IF(I191<>0,IF(Formulario!$C$19="UVR",(P190*(1+$K$11)),IF(Formulario!$C$19="PESOS",1,"Error")),0) -> 991.7672874 | Q191: 39711.89629 | R191: 707974.0383 | S191: =IF(Formulario!$C$19="UVR",P191*N191,IF(Formulario!$C$19="PESOS",N191,"Error")) -> 6879096.978 | U191: 0 | V191: -707974.0383 | W191: 0 | X191: 0 | Y191: 0 | Z191: 0 | AB191: -3076.636206 | AC191: -975.5187969 | AD191: -712026.1933
I192: =IF(AND(I191+1<=Formulario!$C$17,I191<>0),I191+1,0) -> 171 | J192: 6936.200725 | K192: =IF(Formulario!$C$19="UVR",J192*$K$12,IF(Formulario!$C$19="PESOS",J192*$K$13,"Error")) -> 36.49616766 | L192: 677.3548005 | M192: =IF(I192<>0,IF(Formulario!$C$19="UVR",Simulador!$L$12,IF(Formulario!$C$19="PESOS",Simulador!$L$13,"Error")),0) -> 713.8509682 | N192: 6258.845924 | P192: =IF(I192<>0,IF(Formulario!$C$19="UVR",(P191*(1+$K$11)),IF(Formulario!$C$19="PESOS",1,"Error")),0) -> 997.4990822 | Q192: 36404.89374 | R192: 712065.6856 | S192: =IF(Formulario!$C$19="UVR",P192*N192,IF(Formulario!$C$19="PESOS",N192,"Error")) -> 6243193.065 | U192: 0 | V192: -712065.6856 | W192: 0 | X192: 0 | Y192: 0 | Z192: 0 | AB192: -2820.429761 | AC192: -894.2826071 | AD192: -715780.398
I193: =IF(AND(I192+1<=Formulario!$C$17,I192<>0),I192+1,0) -> 172 | J193: 6258.845924 | K193: =IF(Formulario!$C$19="UVR",J193*$K$12,IF(Formulario!$C$19="PESOS",J193*$K$13,"Error")) -> 32.93213378 | L193: 680.9188344 | M193: =IF(I193<>0,IF(Formulario!$C$19="UVR",Simulador!$L$12,IF(Formulario!$C$19="PESOS",Simulador!$L$13,"Error")),0) -> 713.8509682 | N193: 5577.92709 | P193: =IF(I193<>0,IF(Formulario!$C$19="UVR",(P192*(1+$K$11)),IF(Formulario!$C$19="PESOS",1,"Error")),0) -> 1003.264003 | Q193: 33039.62437 | R193: 716180.98 | S193: =IF(Formulario!$C$19="UVR",P193*N193,IF(Formulario!$C$19="PESOS",N193,"Error")) -> 5596133.462 | U193: 0 | V193: -716180.98 | W193: 0 | X193: 0 | Y193: 0 | Z193: 0 | AB193: -2559.709157 | AC193: -811.6150985 | AD193: -719552.3043
I194: =IF(AND(I193+1<=Formulario!$C$17,I193<>0),I193+1,0) -> 173 | J194: 5577.92709 | K194: =IF(Formulario!$C$19="UVR",J194*$K$12,IF(Formulario!$C$19="PESOS",J194*$K$13,"Error")) -> 29.34934705 | L194: 684.5016211 | M194: =IF(I194<>0,IF(Formulario!$C$19="UVR",Simulador!$L$12,IF(Formulario!$C$19="PESOS",Simulador!$L$13,"Error")),0) -> 713.8509682 | N194: 4893.425469 | P194: =IF(I194<>0,IF(Formulario!$C$19="UVR",(P193*(1+$K$11)),IF(Formulario!$C$19="PESOS",1,"Error")),0) -> 1009.062242 | Q194: 29615.31793 | R194: 720320.0583 | S194: =IF(Formulario!$C$19="UVR",P194*N194,IF(Formulario!$C$19="PESOS",N194,"Error")) -> 4937770.874 | U194: 0 | V194: -720320.0583 | W194: 0 | X194: 0 | Y194: 0 | Z194: 0 | AB194: -2294.414719 | AC194: -727.4973501 | AD194: -723341.9704
I195: =IF(AND(I194+1<=Formulario!$C$17,I194<>0),I194+1,0) -> 174 | J195: 4893.425469 | K195: =IF(Formulario!$C$19="UVR",J195*$K$12,IF(Formulario!$C$19="PESOS",J195*$K$13,"Error")) -> 25.74770878 | L195: 688.1032594 | M195: =IF(I195<>0,IF(Formulario!$C$19="UVR",Simulador!$L$12,IF(Formulario!$C$19="PESOS",Simulador!$L$13,"Error")),0) -> 713.8509682 | N195: 4205.322209 | P195: =IF(I195<>0,IF(Formulario!$C$19="UVR",(P194*(1+$K$11)),IF(Formulario!$C$19="PESOS",1,"Error")),0) -> 1014.893991 | Q195: 26131.19492 | R195: 724483.0579 | S195: =IF(Formulario!$C$19="UVR",P195*N195,IF(Formulario!$C$19="PESOS",N195,"Error")) -> 4267956.239 | U195: 0 | V195: -724483.0579 | W195: 0 | X195: 0 | Y195: 0 | Z195: 0 | AB195: -2024.486058 | AC195: -641.9102136 | AD195: -727149.4541
I196: =IF(AND(I195+1<=Formulario!$C$17,I195<>0),I195+1,0) -> 175 | J196: 4205.322209 | K196: =IF(Formulario!$C$19="UVR",J196*$K$12,IF(Formulario!$C$19="PESOS",J196*$K$13,"Error")) -> 22.1271198 | L196: 691.7238484 | M196: =IF(I196<>0,IF(Formulario!$C$19="UVR",Simulador!$L$12,IF(Formulario!$C$19="PESOS",Simulador!$L$13,"Error")),0) -> 713.8509682 | N196: 3513.598361 | P196: =IF(I196<>0,IF(Formulario!$C$19="UVR",(P195*(1+$K$11)),IF(Formulario!$C$19="PESOS",1,"Error")),0) -> 1020.759443 | Q196: 22586.46649 | R196: 728670.1169 | S196: =IF(Formulario!$C$19="UVR",P196*N196,IF(Formulario!$C$19="PESOS",N196,"Error")) -> 3586538.707 | U196: 0 | V196: -728670.1169 | W196: 0 | X196: 0 | Y196: 0 | Z196: 0 | AB196: -1749.862058 | AC196: -554.8343111 | AD196: -730974.8133
I197: =IF(AND(I196+1<=Formulario!$C$17,I196<>0),I196+1,0) -> 176 | J197: 3513.598361 | K197: =IF(Formulario!$C$19="UVR",J197*$K$12,IF(Formulario!$C$19="PESOS",J197*$K$13,"Error")) -> 18.48748039 | L197: 695.3634878 | M197: =IF(I197<>0,IF(Formulario!$C$19="UVR",Simulador!$L$12,IF(Formulario!$C$19="PESOS",Simulador!$L$13,"Error")),0) -> 713.8509682 | N197: 2818.234873 | P197: =IF(I197<>0,IF(Formulario!$C$19="UVR",(P196*(1+$K$11)),IF(Formulario!$C$19="PESOS",1,"Error")),0) -> 1026.658795 | Q197: 18980.33433 | R197: 732881.3746 | S197: =IF(Formulario!$C$19="UVR",P197*N197,IF(Formulario!$C$19="PESOS",N197,"Error")) -> 2893365.618 | U197: 0 | V197: -732881.3746 | W197: 0 | X197: 0 | Y197: 0 | Z197: 0 | AB197: -1470.48087 | AC197: -466.250032 | AD197: -734818.1055
I198: =IF(AND(I197+1<=Formulario!$C$17,I197<>0),I197+1,0) -> 177 | J198: 2818.234873 | K198: =IF(Formulario!$C$19="UVR",J198*$K$12,IF(Formulario!$C$19="PESOS",J198*$K$13,"Error")) -> 14.8286903 | L198: 699.0222779 | M198: =IF(I198<>0,IF(Formulario!$C$19="UVR",Simulador!$L$12,IF(Formulario!$C$19="PESOS",Simulador!$L$13,"Error")),0) -> 713.8509682 | N198: 2119.212595 | P198: =IF(I198<>0,IF(Formulario!$C$19="UVR",(P197*(1+$K$11)),IF(Formulario!$C$19="PESOS",1,"Error")),0) -> 1032.592241 | Q198: 15311.99055 | R198: 737116.9707 | S198: =IF(Formulario!$C$19="UVR",P198*N198,IF(Formulario!$C$19="PESOS",N198,"Error")) -> 2188282.482 | U198: 0 | V198: -737116.9707 | W198: 0 | X198: 0 | Y198: 0 | Z198: 0 | AB198: -1186.279904 | AC198: -376.1375304 | AD198: -738679.3881
I199: =IF(AND(I198+1<=Formulario!$C$17,I198<>0),I198+1,0) -> 178 | J199: 2119.212595 | K199: =IF(Formulario!$C$19="UVR",J199*$K$12,IF(Formulario!$C$19="PESOS",J199*$K$13,"Error")) -> 11.15064878 | L199: 702.7003194 | M199: =IF(I199<>0,IF(Formulario!$C$19="UVR",Simulador!$L$12,IF(Formulario!$C$19="PESOS",Simulador!$L$13,"Error")),0) -> 713.8509682 | N199: 1416.512276 | P199: =IF(I199<>0,IF(Formulario!$C$19="UVR",(P198*(1+$K$11)),IF(Formulario!$C$19="PESOS",1,"Error")),0) -> 1038.559978 | Q199: 11580.61756 | R199: 741377.0459 | S199: =IF(Formulario!$C$19="UVR",P199*N199,IF(Formulario!$C$19="PESOS",N199,"Error")) -> 1471132.959 | U199: 0 | V199: -741377.0459 | W199: 0 | X199: 0 | Y199: 0 | Z199: 0 | AB199: -897.1958178 | AC199: -284.4767227 | AD199: -742558.7185
I200: =IF(AND(I199+1<=Formulario!$C$17,I199<>0),I199+1,0) -> 179 | J200: 1416.512276 | K200: =IF(Formulario!$C$19="UVR",J200*$K$12,IF(Formulario!$C$19="PESOS",J200*$K$13,"Error")) -> 7.453254536 | L200: 706.3977136 | M200: =IF(I200<>0,IF(Formulario!$C$19="UVR",Simulador!$L$12,IF(Formulario!$C$19="PESOS",Simulador!$L$13,"Error")),0) -> 713.8509682 | N200: 710.1145624 | P200: =IF(I200<>0,IF(Formulario!$C$19="UVR",(P199*(1+$K$11)),IF(Formulario!$C$19="PESOS",1,"Error")),0) -> 1044.562205 | Q200: 7785.387996 | R200: 745661.7417 | S200: =IF(Formulario!$C$19="UVR",P200*N200,IF(Formulario!$C$19="PESOS",N200,"Error")) -> 741758.8335 | U200: 0 | V200: -745661.7417 | W200: 0 | X200: 0 | Y200: 0 | Z200: 0 | AB200: -603.164513 | AC200: -191.2472846 | AD200: -746456.1535
... 121 more rows

Sheet Tarifas (hidden)
C3: TARIFAS PRODUCTOS Y SERVICIOS BANCARIOS | I3: A partir del 13 de Marzo de 2023 | J3: A partir del 01 de Diciembre de 2023 | M3: A partir del 02 de Julio de 2024
C4: A | I4: TARIFA | J4: TARIFA | M4: TARIFA | P4: Tarifa Dic 16 | Q4: Tarifa Mar 17 | R4: Validador | S4: Tarifa Dic 01 2023
B5: 114005 | C5: Medios de Manejo 1 | D5: 1 | E5: =+D5&$C$4 -> 1A | F5: Entrega medio de manejo (en apertura de cuenta) | I5: Sin costo | J5: Sin costo | L5: =#REF!=J5 ->  | M5: =+S5 -> Sin costo | P5: =+IF(VLOOKUP(F5,'[1]TOTAL Aumento'!$H$15:$X$504,16,FALSE)=0,"Sin costo",VLOOKUP(F5,'[1]TOTAL Aumento'!$H$15:$X$504,16,FALSE)) -> Sin costo | Q5: =+IF(VLOOKUP(F5,'[2]TOTAL Aumento'!$H$15:$AE$472,18,FALSE)=0,"Sin costo",VLOOKUP(F5,'[2]TOTAL Aumento'!$H$15:$Z$472,18,FALSE)) -> Sin costo | R5: =IF(Q5>P5,"Incremento",0) -> 0 | S5: =+IF(VLOOKUP(F5,'[3]tarifas 2024'!$H$15:$W$386,16,FALSE)=0,"Sin costo",VLOOKUP(F5,'[3]tarifas 2024'!$H$15:$W$386,16,FALSE)) -> Sin costo
B6: 114010 | D6: =+D5+1 -> 2 | E6: =+D6&$C$4 -> 2A | F6: Entrega medio de manejo amparado (en apertura de cuenta) | I6: Sin costo | J6: Sin costo | L6: =#REF!=J6 ->  | M6: =+S6 -> Sin costo | P6: =+IF(VLOOKUP(F6,'[1]TOTAL Aumento'!$H$15:$X$504,16,FALSE)=0,"Sin costo",VLOOKUP(F6,'[1]TOTAL Aumento'!$H$15:$X$504,16,FALSE)) -> Sin costo | Q6: =+IF(VLOOKUP(F6,'[2]TOTAL Aumento'!$H$15:$AE$472,18,FALSE)=0,"Sin costo",VLOOKUP(F6,'[2]TOTAL Aumento'!$H$15:$Z$472,18,FALSE)) -> Sin costo | R6: =IF(Q6>P6,"Incremento",0) -> 0 | S6: =+IF(VLOOKUP(F6,'[3]tarifas 2024'!$H$15:$W$386,16,FALSE)=0,"Sin costo",VLOOKUP(F6,'[3]tarifas 2024'!$H$15:$W$386,16,FALSE)) -> Sin costo
D7: =+D6+1 -> 3 | E7: 3A | F7: Entrega Medio de manejo adicional | I7: 10650 | J7: 10850 | L7: =#REF!=J7 ->  | M7: 11950 | P7: =+IF(VLOOKUP(F7,'[1]TOTAL Aumento'!$H$15:$X$504,16,FALSE)=0,"Sin costo",VLOOKUP(F7,'[1]TOTAL Aumento'!$H$15:$X$504,16,FALSE)) -> 10650 | Q7: =+IF(VLOOKUP(F7,'[2]TOTAL Aumento'!$H$15:$AE$472,18,FALSE)=0,"Sin costo",VLOOKUP(F7,'[2]TOTAL Aumento'!$H$15:$Z$472,18,FALSE)) -> 10850 | R7: Incremento | S7: =+IF(VLOOKUP(F7,'[3]tarifas 2024'!$H$15:$W$386,16,FALSE)=0,"Sin costo",VLOOKUP(F7,'[3]tarifas 2024'!$H$15:$W$386,16,FALSE)) -> 11950
D8: 4 | E8: 4A | F8: Entrega medio de manejo amparado adicional | I8: 10650 | J8: 10850 | L8: =#REF!=J8 ->  | M8: 11950 | P8: =+IF(VLOOKUP(F8,'[1]TOTAL Aumento'!$H$15:$X$504,16,FALSE)=0,"Sin costo",VLOOKUP(F8,'[1]TOTAL Aumento'!$H$15:$X$504,16,FALSE)) -> 10650 | Q8: =+IF(VLOOKUP(F8,'[2]TOTAL Aumento'!$H$15:$AE$472,18,FALSE)=0,"Sin costo",VLOOKUP(F8,'[2]TOTAL Aumento'!$H$15:$Z$472,18,FALSE)) -> 10850 | R8: Incremento | S8: =+IF(VLOOKUP(F8,'[3]tarifas 2024'!$H$15:$W$386,16,FALSE)=0,"Sin costo",VLOOKUP(F8,'[3]tarifas 2024'!$H$15:$W$386,16,FALSE)) -> 11950
D9: 5 | E9: 5A | F9: Cuota de Manejo medio de manejo - Cuenta /Deposito Digital*3* | I9: 4200 | J9: 4300 | L9: =#REF!=J9 ->  | M9: 4750 | P9: 4200 | Q9: 4300 | R9: Incremento | S9: 4750
D10: 6 | E10: 6A | F10: Cuota de manejo medio de manejo amparado*. (mes anticipado)4* | H10: 114010 | I10: 12350 | J10: 12500 | L10: =#REF!=J10 ->  | M10: 13750 | P10: 12350 | Q10: 12500 | R10: Incremento | S10: 13750
D11: 7 | E11: 7A | F11: Cuota de manejo medio de Manejo. (mes anticipado)2 y 4* | H11: 114005 | I11: 15900 | J11: 16490 | L11: =#REF!=J11 ->  | M11: 19750 | P11: 15900 | Q11: 16490 | R11: Incremento | S11: 19750
D12: 8 | E12: 8A | F12: Valor reexpedición tarjeta débito. | H12: 114030 | I12: 19900 | J12: 20200 | K12: 1 | L12: =#REF!=J12 ->  | M12: 24990 | P12: 19900 | Q12: 20200 | R12: Incremento | S12: 24990
D13: 9 | E13: 9A | F13: Cuota de manejo Rentavillas Junior (mes anticipado.) | G13: Para cuentas con saldos superiores a $1.000.000 | I13: 10050 | J13: 10250 | L13: =#REF!=J13 ->  | M13: 11300 | P13: 10050 | Q13: 10250 | R13: Incremento | S13: 11300
D14: 10 | E14: 10A | G14: Para cuentas con saldos inferiores a $1.000.000 | I14: 15900 | J14: 16150 | L14: =#REF!=J14 ->  | M14: 17800 | P14: 15900 | Q14: 16150 | R14: Incremento | S14: 17800
C15: 1 Medios de manejo incluyen tarjeta debito
C16: 2 Aplica para cuentas nómina con y sin convenio
C17: 3 Para cuentas de nómina aperturadas por el canal digital sin costo de cuota de manejo
C18: 4 Por el pago de estas comisiones tendra acceso a las siguientes transacciones establecidas por la ley 2009 del 27 de Diciembre de 2019: Consultas en red propia, Certificación bancaria y Copia de extracto en papel y por internet.
B19: B | C19: * Aplica para saldos promedio mes inferiores a $500.000
B20: 115005 | C20: Transacciones con Tarjeta Débito | D20: 1 | E20: =+D20&$B$19 -> 1B | F20: Transacciones en Cajeros Red Aval | G20: Retiros y Consultas** | H20: 115005 | I20: 2390 | J20: 2450 | L20: =#REF!=J20 ->  | M20: =+S20 -> 2950 | P20: 2390 | Q20: 2450 | R20: =IF(Q20>P20,"Incremento",0) -> Incremento | S20: 2950
B21: 115045 | D21: =+D20+1 -> 2 | E21: =+D21&$B$19 -> 2B | G21: Pagos Servicios Públicos | H21: 115045 | I21: 2350 | J21: 2400 | L21: =#REF!=J21 ->  | M21: =+S21 -> 2650 | P21: 2350 | Q21: 2400 | R21: Incremento | S21: =+IF(VLOOKUP(G21,'[3]tarifas 2024'!$H$15:$W$386,16,FALSE)=0,"Sin costo",VLOOKUP(G21,'[3]tarifas 2024'!$H$15:$W$386,16,FALSE)) -> 2650
B22: 115020 | D22: 3 | E22: 3B | G22: Transferencias entre cuentas Aval | H22: 115020 | I22: 2350 | J22: 2400 | L22: =#REF!=J22 ->  | M22: 2650 | P22: 2350 | Q22: 2400 | R22: Incremento | S22: =+IF(VLOOKUP(G22,'[3]tarifas 2024'!$H$15:$W$386,16,FALSE)=0,"Sin costo",VLOOKUP(G22,'[3]tarifas 2024'!$H$15:$W$386,16,FALSE)) -> 2650
D23: 4 | E23: 4B | G23: Transferencias Interbancarias ACH | I23: 12100 | J23: 12300 | L23: =#REF!=J23 ->  | M23: 13550 | P23: 12100 | Q23: 12300 | R23: Incremento | S23: =+IF(VLOOKUP(G23,'[3]tarifas 2024'!$H$15:$W$386,16,FALSE)=0,"Sin costo",VLOOKUP(G23,'[3]tarifas 2024'!$H$15:$W$386,16,FALSE)) -> 13550
B24: 135005 | D24: 5 | E24: 5B | F24: Consulta de saldo en datafonos de establecimientos comerciales P.O.S. | I24: 3500 | J24: 3600 | K24: ok | L24: =#REF!=J24 ->  | M24: 4000 | P24: =+IF(VLOOKUP(F24,'[1]TOTAL Aumento'!$H$15:$X$504,16,FALSE)=0,"Sin costo",VLOOKUP(F24,'[1]TOTAL Aumento'!$H$15:$X$504,16,FALSE)) -> 3500 | Q24: =+IF(VLOOKUP(F24,'[2]TOTAL Aumento'!$H$15:$AE$472,18,FALSE)=0,"Sin costo",VLOOKUP(F24,'[2]TOTAL Aumento'!$H$15:$Z$472,18,FALSE)) -> 3600 | R24: Incremento | S24: =+IF(VLOOKUP(F24,'[3]tarifas 2024'!$H$15:$W$386,16,FALSE)=0,"Sin costo",VLOOKUP(F24,'[3]tarifas 2024'!$H$15:$W$386,16,FALSE)) -> 4000
D25: 6 | E25: 6B | F25: Más de 10 pagos diarios de servicios públicos por P.O.S. (a partir del primer pago) | I25: 4400 | J25: 4500 | L25: =#REF!=J25 ->  | M25: 4950 | P25: =+IF(VLOOKUP(F25,'[1]TOTAL Aumento'!$H$15:$X$504,16,FALSE)=0,"Sin costo",VLOOKUP(F25,'[1]TOTAL Aumento'!$H$15:$X$504,16,FALSE)) -> 4400 | Q25: =+IF(VLOOKUP(F25,'[2]TOTAL Aumento'!$H$15:$AE$472,18,FALSE)=0,"Sin costo",VLOOKUP(F25,'[2]TOTAL Aumento'!$H$15:$Z$472,18,FALSE)) -> 4500 | R25: Incremento | S25: =+IF(VLOOKUP(F25,'[3]tarifas 2024'!$H$15:$W$386,16,FALSE)=0,"Sin costo",VLOOKUP(F25,'[3]tarifas 2024'!$H$15:$W$386,16,FALSE)) -> 4950
D26: 7 | E26: 7B | F26: Retiros otras redes (Cajeros Electrónicos) | H26: 116015 | I26: 6180 | J26: 6484.866 | L26: =#REF!=J26 ->  | M26: 7150 | P26: =+IF(VLOOKUP(F26,'[1]TOTAL Aumento'!$H$15:$X$504,16,FALSE)=0,"Sin costo",VLOOKUP(F26,'[1]TOTAL Aumento'!$H$15:$X$504,16,FALSE)) -> 6180 | Q26: =+IF(VLOOKUP(F26,'[2]TOTAL Aumento'!$H$15:$AE$472,18,FALSE)=0,"Sin costo",VLOOKUP(F26,'[2]TOTAL Aumento'!$H$15:$Z$472,18,FALSE)) -> 6484.866 | R26: Incremento | S26: 7150
D27: 8 | E27: 8B | F27: Retiro local en Pin-Pad (ciudad de radicación de la cuenta) | H27: 135005 | I27: 16500 | J27: 16750 | L27: =#REF!=J27 ->  | M27: 18750 | P27: =+IF(VLOOKUP(F27,'[1]TOTAL Aumento'!$H$15:$X$504,16,FALSE)=0,"Sin costo",VLOOKUP(F27,'[1]TOTAL Aumento'!$H$15:$X$504,16,FALSE)) -> 16500 | Q27: =+IF(VLOOKUP(F27,'[2]TOTAL Aumento'!$H$15:$AE$472,18,FALSE)=0,"Sin costo",VLOOKUP(F27,'[2]TOTAL Aumento'!$H$15:$Z$472,18,FALSE)) -> 16750 | R27: Incremento | S27: =+IF(VLOOKUP(F27,'[3]tarifas 2024'!$H$15:$W$386,16,FALSE)=0,"Sin costo",VLOOKUP(F27,'[3]tarifas 2024'!$H$15:$W$386,16,FALSE)) -> 18750
B28: 116015 | D28: 9 | E28: 9B | F28: Transferencias de fondos entre cuentas | I28: 12100 | J28: 12300 | L28: =#REF!=J28 ->  | M28: 13550 | P28: =+IF(VLOOKUP(F28,'[1]TOTAL Aumento'!$H$15:$X$504,16,FALSE)=0,"Sin costo",VLOOKUP(F28,'[1]TOTAL Aumento'!$H$15:$X$504,16,FALSE)) -> 12100 | Q28: =+IF(VLOOKUP(F28,'[2]TOTAL Aumento'!$H$15:$AE$472,18,FALSE)=0,"Sin costo",VLOOKUP(F28,'[2]TOTAL Aumento'!$H$15:$Z$472,18,FALSE)) -> 12300 | R28: Incremento | S28: =+IF(VLOOKUP(F28,'[3]tarifas 2024'!$H$15:$W$386,16,FALSE)=0,"Sin costo",VLOOKUP(F28,'[3]tarifas 2024'!$H$15:$W$386,16,FALSE)) -> 13550
B29: 116005 | D29: 10 | E29: 10B | F29: Otras transacciones en Otras redes (Cajeros Electrónicos) | H29: 116005 | I29: 12100 | J29: 12300 | L29: =#REF!=J29 ->  | M29: 13550 | P29: =+IF(VLOOKUP(F29,'[1]TOTAL Aumento'!$H$15:$X$504,16,FALSE)=0,"Sin costo",VLOOKUP(F29,'[1]TOTAL Aumento'!$H$15:$X$504,16,FALSE)) -> 12100 | Q29: =+IF(VLOOKUP(F29,'[2]TOTAL Aumento'!$H$15:$AE$472,18,FALSE)=0,"Sin costo",VLOOKUP(F29,'[2]TOTAL Aumento'!$H$15:$Z$472,18,FALSE)) -> 12300 | R29: Incremento | S29: =+IF(VLOOKUP(F29,'[3]tarifas 2024'!$H$15:$W$386,16,FALSE)=0,"Sin costo",VLOOKUP(F29,'[3]tarifas 2024'!$H$15:$W$386,16,FALSE)) -> 13550
B30: 114050 | D30: 11 | E30: 11B | F30: Depósito nacional por Pin Pad. (Ciudad diferente a radicación de la cuenta)*** | I30: 15750 | J30: 16000 | L30: =#REF!=J30 ->  | M30: 17600 | P30: =+IF(VLOOKUP(F30,'[1]TOTAL Aumento'!$H$15:$X$504,16,FALSE)=0,"Sin costo",VLOOKUP(F30,'[1]TOTAL Aumento'!$H$15:$X$504,16,FALSE)) -> 15750 | Q30: =+IF(VLOOKUP(F30,'[2]TOTAL Aumento'!$H$15:$AE$472,18,FALSE)=0,"Sin costo",VLOOKUP(F30,'[2]TOTAL Aumento'!$H$15:$Z$472,18,FALSE)) -> 16000 | R30: Incremento | S30: =+IF(VLOOKUP(F30,'[3]tarifas 2024'!$H$15:$W$386,16,FALSE)=0,"Sin costo",VLOOKUP(F30,'[3]tarifas 2024'!$H$15:$W$386,16,FALSE)) -> 17600
B31: 117005 | D31: 12 | E31: 12B | F31: Compras P.O.S. Internacionales (en otros países)* | H31: 114045 | I31: 16900 | J31: 17200 | K31: 3 | L31: =#REF!=J31 ->  | M31: 18950 | P31: =+IF(VLOOKUP(F31,'[1]TOTAL Aumento'!$H$15:$X$504,16,FALSE)=0,"Sin costo",VLOOKUP(F31,'[1]TOTAL Aumento'!$H$15:$X$504,16,FALSE)) -> 16900 | Q31: =+IF(VLOOKUP(F31,'[2]TOTAL Aumento'!$H$15:$AE$472,18,FALSE)=0,"Sin costo",VLOOKUP(F31,'[2]TOTAL Aumento'!$H$15:$Z$472,18,FALSE)) -> 17200 | R31: Incremento | S31: =+IF(VLOOKUP(F31,'[3]tarifas 2024'!$H$15:$W$386,16,FALSE)=0,"Sin costo",VLOOKUP(F31,'[3]tarifas 2024'!$H$15:$W$386,16,FALSE)) -> 18950
D32: 13 | E32: 13B | F32: Retiro nacional por Pin Pad. (Ciudad diferente a radicación de la cuenta)**** | I32: 17000 | J32: 17300 | L32: =#REF!=J32 ->  | M32: 19050 | P32: =+IF(VLOOKUP(F32,'[1]TOTAL Aumento'!$H$15:$X$504,16,FALSE)=0,"Sin costo",VLOOKUP(F32,'[1]TOTAL Aumento'!$H$15:$X$504,16,FALSE)) -> 17000 | Q32: =+IF(VLOOKUP(F32,'[2]TOTAL Aumento'!$H$15:$AE$472,18,FALSE)=0,"Sin costo",VLOOKUP(F32,'[2]TOTAL Aumento'!$H$15:$Z$472,18,FALSE)) -> 17300 | R32: Incremento | S32: =+IF(VLOOKUP(F32,'[3]tarifas 2024'!$H$15:$W$386,16,FALSE)=0,"Sin costo",VLOOKUP(F32,'[3]tarifas 2024'!$H$15:$W$386,16,FALSE)) -> 19050
B33: 114045 | D33: 14 | E33: 14B | F33: Retiros en Cajeros Internacionales (otros países) | H33: 114050 | I33: 23350 | J33: 23750 | L33: =#REF!=J33 ->  | M33: 26150 | P33: =+IF(VLOOKUP(F33,'[1]TOTAL Aumento'!$H$15:$X$504,16,FALSE)=0,"Sin costo",VLOOKUP(F33,'[1]TOTAL Aumento'!$H$15:$X$504,16,FALSE)) -> 23350 | Q33: =+IF(VLOOKUP(F33,'[2]TOTAL Aumento'!$H$15:$AE$472,18,FALSE)=0,"Sin costo",VLOOKUP(F33,'[2]TOTAL Aumento'!$H$15:$Z$472,18,FALSE)) -> 23750 | R33: Incremento | S33: =+IF(VLOOKUP(F33,'[3]tarifas 2024'!$H$15:$W$386,16,FALSE)=0,"Sin costo",VLOOKUP(F33,'[3]tarifas 2024'!$H$15:$W$386,16,FALSE)) -> 26150
D34: 15 | E34: 15B | F34: Otras transacciones (otros países) | H34: 117005 | I34: 23350 | J34: 23750 | L34: =#REF!=J34 ->  | M34: 26150 | P34: =+IF(VLOOKUP(F34,'[1]TOTAL Aumento'!$H$15:$X$504,16,FALSE)=0,"Sin costo",VLOOKUP(F34,'[1]TOTAL Aumento'!$H$15:$X$504,16,FALSE)) -> 23350 | Q34: =+IF(VLOOKUP(F34,'[2]TOTAL Aumento'!$H$15:$AE$472,18,FALSE)=0,"Sin costo",VLOOKUP(F34,'[2]TOTAL Aumento'!$H$15:$Z$472,18,FALSE)) -> 23750 | R34: Incremento | S34: =+IF(VLOOKUP(F34,'[3]tarifas 2024'!$H$15:$W$386,16,FALSE)=0,"Sin costo",VLOOKUP(F34,'[3]tarifas 2024'!$H$15:$W$386,16,FALSE)) -> 26150
C35: * Comisión del 2,90% aplicada sobre las compras internacionales
C36: **Cuenta/Deposito Digital: Saldo promedio mes mayor o igual a $500.000 3 retiros sin costo- Menor a $500.000 1 retiro sin costo.Retiros y consultas sin costo para cuentas de nómina aperturadas por el canal digital
C37: ***Para cuentas/Deposito Digitales sin costo
C38: ****Para cuentas/Depositos Digitales aplica cobro de retiro local
C40: TARIFAS PRODUCTOS Y SERVICIOS BANCARIOS | I40: A partir del 13 de Marzo de 2023 | J40: A partir del 01 de Diciembre de 2023 | M40: =+M3 -> A partir del 02 de Julio de 2024
C41: C | I41: TARIFA | J41: TARIFA | M41: TARIFA
B42: 102010 | C42: Talonarios Cuentas de Ahorros y Otras Transacciones en Oficinas | D42: 1 | E42: =+D42&$C$41 -> 1C | F42: Talonarios de Rentavillas Junior | I42: Sin costo | J42: Sin costo | L42: =#REF!=J42 ->  | M42: =+S42 -> Sin costo | P42: =+IF(VLOOKUP(F42,'[1]TOTAL Aumento'!$H$15:$X$504,16,FALSE)=0,"Sin costo",VLOOKUP(F42,'[1]TOTAL Aumento'!$H$15:$X$504,16,FALSE)) -> Sin costo | Q42: =+IF(VLOOKUP(F42,'[2]TOTAL Aumento'!$H$15:$AE$472,18,FALSE)=0,"Sin costo",VLOOKUP(F42,'[2]TOTAL Aumento'!$H$15:$Z$472,18,FALSE)) -> Sin costo | R42: =IF(Q42>P42,"Incremento",0) -> 0 | S42: =+IF(VLOOKUP(F42,'[3]tarifas 2024'!$H$15:$W$386,16,FALSE)=0,"Sin costo",VLOOKUP(F42,'[3]tarifas 2024'!$H$15:$W$386,16,FALSE)) -> Sin costo
D43: =+D42+1 -> 2 | E43: =+D43&$C$41 -> 2C | F43: Consulta de Saldos | I43: 4200 | J43: 4300 | L43: =#REF!=J43 ->  | M43: =+S43 -> 4750 | P43: =+IF(VLOOKUP(F43,'[1]TOTAL Aumento'!$H$15:$X$504,16,FALSE)=0,"Sin costo",VLOOKUP(F43,'[1]TOTAL Aumento'!$H$15:$X$504,16,FALSE)) -> 4200 | Q43: =+IF(VLOOKUP(F43,'[2]TOTAL Aumento'!$H$15:$AE$472,18,FALSE)=0,"Sin costo",VLOOKUP(F43,'[2]TOTAL Aumento'!$H$15:$Z$472,18,FALSE)) -> 4300 | R43: Incremento | S43: =+IF(VLOOKUP(F43,'[3]tarifas 2024'!$H$15:$W$386,16,FALSE)=0,"Sin costo",VLOOKUP(F43,'[3]tarifas 2024'!$H$15:$W$386,16,FALSE)) -> 4750
D44: 3 | E44: 3C | F44: Talonario Planaval | I44: 7300 | J44: 7450 | L44: =#REF!=J44 ->  | M44: 8200 | P44: =+IF(VLOOKUP(F44,'[1]TOTAL Aumento'!$H$15:$X$504,16,FALSE)=0,"Sin costo",VLOOKUP(F44,'[1]TOTAL Aumento'!$H$15:$X$504,16,FALSE)) -> 7300 | Q44: =+IF(VLOOKUP(F44,'[2]TOTAL Aumento'!$H$15:$AE$472,18,FALSE)=0,"Sin costo",VLOOKUP(F44,'[2]TOTAL Aumento'!$H$15:$Z$472,18,FALSE)) -> 7450 | R44: Incremento | S44: =+IF(VLOOKUP(F44,'[3]tarifas 2024'!$H$15:$W$386,16,FALSE)=0,"Sin costo",VLOOKUP(F44,'[3]tarifas 2024'!$H$15:$W$386,16,FALSE)) -> 8200
D45: 4 | E45: 4C | F45: Retiro con huella | I45: 7300 | J45: 7450 | L45: =#REF!=J45 ->  | M45: 8200 | P45: 7300 | Q45: 7450 | R45: Incremento | S45: 8200
D46: 5 | E46: 5C | F46: A todas las cuentas de ahorro activas con promedio mensual menor a $200.000, se cobrará una comisión por manejo de la cuenta, con excepción de las cuentas Planaval y AFC.5* | H46: 102005 | I46: 7900 | J46: 8050 | L46: =#REF!=J46 ->  | M46: 8950 | P46: =+IF(VLOOKUP(F46,'[1]TOTAL Aumento'!$H$15:$X$504,16,FALSE)=0,"Sin costo",VLOOKUP(F46,'[1]TOTAL Aumento'!$H$15:$X$504,16,FALSE)) ->  | Q46: =+IF(VLOOKUP(F46,'[2]TOTAL Aumento'!$H$15:$AE$472,18,FALSE)=0,"Sin costo",VLOOKUP(F46,'[2]TOTAL Aumento'!$H$15:$Z$472,18,FALSE)) ->  | S46: 8950
D47: 6 | E47: 6C | F47: Depósito local cuando excede 40 transacciones | I47: 10500 | J47: 10700 | L47: =#REF!=J47 ->  | M47: 11800 | P47: =+IF(VLOOKUP(F47,'[1]TOTAL Aumento'!$H$15:$X$504,16,FALSE)=0,"Sin costo",VLOOKUP(F47,'[1]TOTAL Aumento'!$H$15:$X$504,16,FALSE)) -> 10500 | Q47: =+IF(VLOOKUP(F47,'[2]TOTAL Aumento'!$H$15:$AE$472,18,FALSE)=0,"Sin costo",VLOOKUP(F47,'[2]TOTAL Aumento'!$H$15:$Z$472,18,FALSE)) -> 10700 | R47: Incremento | S47: =+IF(VLOOKUP(F47,'[3]tarifas 2024'!$H$15:$W$386,16,FALSE)=0,"Sin costo",VLOOKUP(F47,'[3]tarifas 2024'!$H$15:$W$386,16,FALSE)) -> 11800
D48: 7 | E48: 7C | F48: Transferencia Nacional ciudad diferente a radicación cuenta Origen y/o cuenta Destino. | I48: 12100 | J48: 12300 | L48: =#REF!=J48 ->  | M48: 13550 | P48: =+IF(VLOOKUP(F48,'[1]TOTAL Aumento'!$H$15:$X$504,16,FALSE)=0,"Sin costo",VLOOKUP(F48,'[1]TOTAL Aumento'!$H$15:$X$504,16,FALSE)) -> 12100 | Q48: =+IF(VLOOKUP(F48,'[2]TOTAL Aumento'!$H$15:$AE$472,18,FALSE)=0,"Sin costo",VLOOKUP(F48,'[2]TOTAL Aumento'!$H$15:$Z$472,18,FALSE)) -> 12300 | R48: Incremento | S48: =+IF(VLOOKUP(F48,'[3]tarifas 2024'!$H$15:$W$386,16,FALSE)=0,"Sin costo",VLOOKUP(F48,'[3]tarifas 2024'!$H$15:$W$386,16,FALSE)) -> 13550
D49: 8 | E49: 8C | F49: Depósito nacional con talonario o volante (ciudad diferente a radicación de la cuenta) | I49: 18000 | J49: 18290 | L49: =#REF!=J49 ->  | M49: 24990 | P49: =+IF(VLOOKUP(F49,'[1]TOTAL Aumento'!$H$15:$X$504,16,FALSE)=0,"Sin costo",VLOOKUP(F49,'[1]TOTAL Aumento'!$H$15:$X$504,16,FALSE)) -> 18000 | Q49: =+IF(VLOOKUP(F49,'[2]TOTAL Aumento'!$H$15:$AE$472,18,FALSE)=0,"Sin costo",VLOOKUP(F49,'[2]TOTAL Aumento'!$H$15:$Z$472,18,FALSE)) -> 18290 | R49: Incremento | S49: =+IF(VLOOKUP(F49,'[3]tarifas 2024'!$H$15:$W$386,16,FALSE)=0,"Sin costo",VLOOKUP(F49,'[3]tarifas 2024'!$H$15:$W$386,16,FALSE)) -> 24990
D50: 9 | E50: 9C | F50: Retiro nacional con talonario (ciudad diferente a radicación de la cuenta) | H50: 102020 | I50: 17000 | J50: 17300 | L50: =#REF!=J50 ->  | M50: 19050 | P50: =+IF(VLOOKUP(F50,'[1]TOTAL Aumento'!$H$15:$X$504,16,FALSE)=0,"Sin costo",VLOOKUP(F50,'[1]TOTAL Aumento'!$H$15:$X$504,16,FALSE)) -> 17000 | Q50: =+IF(VLOOKUP(F50,'[2]TOTAL Aumento'!$H$15:$AE$472,18,FALSE)=0,"Sin costo",VLOOKUP(F50,'[2]TOTAL Aumento'!$H$15:$Z$472,18,FALSE)) -> 17300 | R50: Incremento | S50: =+IF(VLOOKUP(F50,'[3]tarifas 2024'!$H$15:$W$386,16,FALSE)=0,"Sin costo",VLOOKUP(F50,'[3]tarifas 2024'!$H$15:$W$386,16,FALSE)) -> 19050
B51: 101050 | D51: 10 | E51: 10C | F51: Retiro en cheque de Gerencia. | H51: 101050 | I51: 33500 | J51: 34050 | L51: =#REF!=J51 ->  | M51: 37350 | P51: =+IF(VLOOKUP(F51,'[1]TOTAL Aumento'!$H$15:$X$504,16,FALSE)=0,"Sin costo",VLOOKUP(F51,'[1]TOTAL Aumento'!$H$15:$X$504,16,FALSE)) -> 33500 | Q51: =+IF(VLOOKUP(F51,'[2]TOTAL Aumento'!$H$15:$AE$472,18,FALSE)=0,"Sin costo",VLOOKUP(F51,'[2]TOTAL Aumento'!$H$15:$Z$472,18,FALSE)) -> 34050 | R51: Incremento | S51: =+IF(VLOOKUP(F51,'[3]tarifas 2024'!$H$15:$W$386,16,FALSE)=0,"Sin costo",VLOOKUP(F51,'[3]tarifas 2024'!$H$15:$W$386,16,FALSE)) -> 37350
D52: 11 | E52: 11C | F52: Talonario cuentas convenio nómina | I52: 84100 | J52: 85400 | L52: =#REF!=J52 ->  | M52: 93950 | P52: =+IF(VLOOKUP(F52,'[1]TOTAL Aumento'!$H$15:$X$504,16,FALSE)=0,"Sin costo",VLOOKUP(F52,'[1]TOTAL Aumento'!$H$15:$X$504,16,FALSE)) -> 84100 | Q52: =+IF(VLOOKUP(F52,'[2]TOTAL Aumento'!$H$15:$AE$472,18,FALSE)=0,"Sin costo",VLOOKUP(F52,'[2]TOTAL Aumento'!$H$15:$Z$472,18,FALSE)) -> 85400 | R52: Incremento | S52: =+IF(VLOOKUP(F52,'[3]tarifas 2024'!$H$15:$W$386,16,FALSE)=0,"Sin costo",VLOOKUP(F52,'[3]tarifas 2024'!$H$15:$W$386,16,FALSE)) -> 93950
D53: 12 | E53: 12C | F53: Talonario de 20 Cupones. Con tarjeta débito | I53: 98450 | J53: 99950 | L53: =#REF!=J53 ->  | M53: 109950 | P53: =+IF(VLOOKUP(F53,'[1]TOTAL Aumento'!$H$15:$X$504,16,FALSE)=0,"Sin costo",VLOOKUP(F53,'[1]TOTAL Aumento'!$H$15:$X$504,16,FALSE)) -> 98450 | Q53: =+IF(VLOOKUP(F53,'[2]TOTAL Aumento'!$H$15:$AE$472,18,FALSE)=0,"Sin costo",VLOOKUP(F53,'[2]TOTAL Aumento'!$H$15:$Z$472,18,FALSE)) -> 99950 | R53: Incremento | S53: =+IF(VLOOKUP(F53,'[3]tarifas 2024'!$H$15:$W$386,16,FALSE)=0,"Sin costo",VLOOKUP(F53,'[3]tarifas 2024'!$H$15:$W$386,16,FALSE)) -> 109950
D54: 13 | E54: 13C | F54: Talonario Cuenta CERTIVILLAS (a partir del segundo talonario dentro del trimestre) | I54: 100950 | J54: 102500 | L54: =#REF!=J54 ->  | M54: 112750 | P54: =+IF(VLOOKUP(F54,'[1]TOTAL Aumento'!$H$15:$X$504,16,FALSE)=0,"Sin costo",VLOOKUP(F54,'[1]TOTAL Aumento'!$H$15:$X$504,16,FALSE)) -> 100950 | Q54: =+IF(VLOOKUP(F54,'[2]TOTAL Aumento'!$H$15:$AE$472,18,FALSE)=0,"Sin costo",VLOOKUP(F54,'[2]TOTAL Aumento'!$H$15:$Z$472,18,FALSE)) -> 102500 | R54: Incremento | S54: =+IF(VLOOKUP(F54,'[3]tarifas 2024'!$H$15:$W$386,16,FALSE)=0,"Sin costo",VLOOKUP(F54,'[3]tarifas 2024'!$H$15:$W$386,16,FALSE)) -> 112750
B55: 102005 | D55: 14 | E55: 14C | F55: Talonario de 20 Cupones. Sin tarjeta débito | H55: 102010 | I55: 125950 | J55: 127850 | L55: =#REF!=J55 ->  | M55: 140650 | P55: =+IF(VLOOKUP(F55,'[1]TOTAL Aumento'!$H$15:$X$504,16,FALSE)=0,"Sin costo",VLOOKUP(F55,'[1]TOTAL Aumento'!$H$15:$X$504,16,FALSE)) -> 125950 | Q55: =+IF(VLOOKUP(F55,'[2]TOTAL Aumento'!$H$15:$AE$472,18,FALSE)=0,"Sin costo",VLOOKUP(F55,'[2]TOTAL Aumento'!$H$15:$Z$472,18,FALSE)) -> 127850 | R55: Incremento | S55: =+IF(VLOOKUP(F55,'[3]tarifas 2024'!$H$15:$W$386,16,FALSE)=0,"Sin costo",VLOOKUP(F55,'[3]tarifas 2024'!$H$15:$W$386,16,FALSE)) -> 140650
C56: 5 Por el pago de estas comisiones tendra acceso a las siguientes transacciones establecidas por la ley 2009 del 27 de Diciembre de 2019: • Retiro por ventanilla en una oficina diferente a la de radicación de la cuenta con talonario o libreta. • Copia de extracto en papel. • Expedición cheque de gerencia.
B57: 101095 | C57: Transacciones clientes Banco AV Villas en oficinas Grupo Aval | D57: 1 | E57: =+D57&C64 -> 1D | F57: Cambio de cheque local | I57: Sin costo | J57: Sin costo | L57: =#REF!=J57 ->  | M57: =+S57 -> Sin costo | P57: =+IF(VLOOKUP(F57,'[1]TOTAL Aumento'!$H$15:$X$504,16,FALSE)=0,"Sin costo",VLOOKUP(F57,'[1]TOTAL Aumento'!$H$15:$X$504,16,FALSE)) -> Sin costo | Q57: =+IF(VLOOKUP(F57,'[2]TOTAL Aumento'!$H$15:$AE$472,18,FALSE)=0,"Sin costo",VLOOKUP(F57,'[2]TOTAL Aumento'!$H$15:$Z$472,18,FALSE)) -> Sin costo | R57: 0 | S57: =+IF(VLOOKUP(F57,'[3]tarifas 2024'!$H$15:$W$386,16,FALSE)=0,"Sin costo",VLOOKUP(F57,'[3]tarifas 2024'!$H$15:$W$386,16,FALSE)) -> Sin costo
D58: =+D57+1 -> 2 | E58: =+D58&C65 -> 2 | F58: Depósito local cuando excede 40 transacciones | I58: 8800 | J58: 10700 | L58: =#REF!=J58 ->  | M58: =+S58 -> 11800 | P58: 8800 | Q58: =+IF(VLOOKUP(F58,'[2]TOTAL Aumento'!$H$15:$AE$472,18,FALSE)=0,"Sin costo",VLOOKUP(F58,'[2]TOTAL Aumento'!$H$15:$Z$472,18,FALSE)) -> 10700 | R58: Incremento | S58: =+IF(VLOOKUP(F58,'[3]tarifas 2024'!$H$15:$W$386,16,FALSE)=0,"Sin costo",VLOOKUP(F58,'[3]tarifas 2024'!$H$15:$W$386,16,FALSE)) -> 11800
D59: 3 | E59: 3 | F59: Depósito nacional (ciudad diferente a radicación de cuenta)* | H59: 101095 | I59: 16000 | J59: 16250 | L59: =#REF!=J59 ->  | M59: 17850 | P59: =+IF(VLOOKUP(F59,'[1]TOTAL Aumento'!$H$15:$X$504,16,FALSE)=0,"Sin costo",VLOOKUP(F59,'[1]TOTAL Aumento'!$H$15:$X$504,16,FALSE)) -> 16000 | Q59: =+IF(VLOOKUP(F59,'[2]TOTAL Aumento'!$H$15:$AE$472,18,FALSE)=0,"Sin costo",VLOOKUP(F59,'[2]TOTAL Aumento'!$H$15:$Z$472,18,FALSE)) -> 16250 | R59: Incremento | S59: =+IF(VLOOKUP(F59,'[3]tarifas 2024'!$H$15:$W$386,16,FALSE)=0,"Sin costo",VLOOKUP(F59,'[3]tarifas 2024'!$H$15:$W$386,16,FALSE)) -> 17850
D60: 4 | E60: 4 | F60: Cambio de cheque nacional (la tarifa se descuenta al cobrador del cheque) | I60: 16400 | J60: 16650 | L60: =#REF!=J60 ->  | M60: 18350 | P60: =+IF(VLOOKUP(F60,'[1]TOTAL Aumento'!$H$15:$X$504,16,FALSE)=0,"Sin costo",VLOOKUP(F60,'[1]TOTAL Aumento'!$H$15:$X$504,16,FALSE)) -> 16400 | Q60: =+IF(VLOOKUP(F60,'[2]TOTAL Aumento'!$H$15:$AE$472,18,FALSE)=0,"Sin costo",VLOOKUP(F60,'[2]TOTAL Aumento'!$H$15:$Z$472,18,FALSE)) -> 16650 | R60: Incremento | S60: =+IF(VLOOKUP(F60,'[3]tarifas 2024'!$H$15:$W$386,16,FALSE)=0,"Sin costo",VLOOKUP(F60,'[3]tarifas 2024'!$H$15:$W$386,16,FALSE)) -> 18350
D61: 5 | E61: 5 | F61: Retiro nacional (ciudad diferente a radicación de cuenta) | I61: 17000 | J61: 17300 | L61: =#REF!=J61 ->  | M61: 19500 | P61: =+IF(VLOOKUP(F61,'[1]TOTAL Aumento'!$H$15:$X$504,16,FALSE)=0,"Sin costo",VLOOKUP(F61,'[1]TOTAL Aumento'!$H$15:$X$504,16,FALSE)) -> 17000 | Q61: =+IF(VLOOKUP(F61,'[2]TOTAL Aumento'!$H$15:$AE$472,18,FALSE)=0,"Sin costo",VLOOKUP(F61,'[2]TOTAL Aumento'!$H$15:$Z$472,18,FALSE)) -> 17300 | R61: Incremento | S61: =+IF(VLOOKUP(F61,'[3]tarifas 2024'!$H$15:$W$386,16,FALSE)=0,"Sin costo",VLOOKUP(F61,'[3]tarifas 2024'!$H$15:$W$386,16,FALSE)) -> 19500
D62: 6 | E62: 6 | F62: Depósito local y nacional en efectivo en plazas con transporte aéreo del efectivo. | I62: 17000 | J62: 17300 | L62: =#REF!=J62 ->  | M62: 19050 | P62: =+IF(VLOOKUP(F62,'[1]TOTAL Aumento'!$H$15:$X$504,16,FALSE)=0,"Sin costo",VLOOKUP(F62,'[1]TOTAL Aumento'!$H$15:$X$504,16,FALSE)) -> 17000 | Q62: =+IF(VLOOKUP(F62,'[2]TOTAL Aumento'!$H$15:$AE$472,18,FALSE)=0,"Sin costo",VLOOKUP(F62,'[2]TOTAL Aumento'!$H$15:$Z$472,18,FALSE)) -> 17300 | R62: Incremento | S62: =+IF(VLOOKUP(F62,'[3]tarifas 2024'!$H$15:$W$386,16,FALSE)=0,"Sin costo",VLOOKUP(F62,'[3]tarifas 2024'!$H$15:$W$386,16,FALSE)) -> 19050
C63: *Para cuentas/depositos Digitales sin costo | L63: =#REF!=J63 ->  | R63: 0
B64: 120005 | C64: D | E64: 1E | F64: Consultas de saldo y últimos cinco movimientos | H64: 120005 | I64: Sin costo | J64: Sin costo | L64: =#REF!=J64 ->  | M64: =+Q64 -> Sin costo | P64: =+IF(VLOOKUP(F64,'[1]TOTAL Aumento'!$H$15:$X$504,16,FALSE)=0,"Sin costo",VLOOKUP(F64,'[1]TOTAL Aumento'!$H$15:$X$504,16,FALSE)) -> Sin costo | Q64: =+IF(VLOOKUP(F64,'[2]TOTAL Aumento'!$H$15:$AE$472,18,FALSE)=0,"Sin costo",VLOOKUP(F64,'[2]TOTAL Aumento'!$H$15:$Z$472,18,FALSE)) -> Sin costo | R64: 0
E65: 2E | F65: Consultas de tarjeta de crédito | I65: Sin costo | J65: Sin costo | L65: =#REF!=J65 ->  | M65: =+Q65 -> Sin costo | P65: =+IF(VLOOKUP(F65,'[1]TOTAL Aumento'!$H$15:$X$504,16,FALSE)=0,"Sin costo",VLOOKUP(F65,'[1]TOTAL Aumento'!$H$15:$X$504,16,FALSE)) -> Sin costo | Q65: =+IF(VLOOKUP(F65,'[2]TOTAL Aumento'!$H$15:$AE$472,18,FALSE)=0,"Sin costo",VLOOKUP(F65,'[2]TOTAL Aumento'!$H$15:$Z$472,18,FALSE)) -> Sin costo | R65: 0
B66: 120035 | E66: 3E | F66: Transferencia de fondos cuentas AV Villas | I66: Sin costo | J66: Sin costo | L66: =#REF!=J66 ->  | M66: Sin costo | P66: =+IF(VLOOKUP(F66,'[1]TOTAL Aumento'!$H$15:$X$504,16,FALSE)=0,"Sin costo",VLOOKUP(F66,'[1]TOTAL Aumento'!$H$15:$X$504,16,FALSE)) -> Sin costo | Q66: =+IF(VLOOKUP(F66,'[2]TOTAL Aumento'!$H$15:$AE$472,18,FALSE)=0,"Sin costo",VLOOKUP(F66,'[2]TOTAL Aumento'!$H$15:$Z$472,18,FALSE)) -> Sin costo | R66: 0
E67: 4E | F67: Pago de servicios públicos y tarjeta de crédito Aval | H67: 120035 | I67: 1900 | J67: 2350 | L67: =#REF!=J67 ->  | M67: 2350 | P67: =+IF(VLOOKUP(F67,'[1]TOTAL Aumento'!$H$15:$X$504,16,FALSE)=0,"Sin costo",VLOOKUP(F67,'[1]TOTAL Aumento'!$H$15:$X$504,16,FALSE)) -> 2300 | Q67: =+IF(VLOOKUP(F67,'[2]TOTAL Aumento'!$H$15:$AE$472,18,FALSE)=0,"Sin costo",VLOOKUP(F67,'[2]TOTAL Aumento'!$H$15:$Z$472,18,FALSE)) -> 2350 | R67: Incremento
E68: 5E | F68: Pago y Recarga de Celulares Comcel, Movistar y Tigo | I68: 1900 | J68: 2350 | L68: =#REF!=J68 ->  | M68: 2350 | P68: =+IF(VLOOKUP(F68,'[1]TOTAL Aumento'!$H$15:$X$504,16,FALSE)=0,"Sin costo",VLOOKUP(F68,'[1]TOTAL Aumento'!$H$15:$X$504,16,FALSE)) -> 2300 | Q68: =+IF(VLOOKUP(F68,'[2]TOTAL Aumento'!$H$15:$AE$472,18,FALSE)=0,"Sin costo",VLOOKUP(F68,'[2]TOTAL Aumento'!$H$15:$Z$472,18,FALSE)) -> 2350 | R68: Incremento
B69: 120020 | E69: 6E | F69: Transferencia de cuenta AV Villas a cuenta Aval | H69: 120020 | I69: 1900 | J69: 2350 | L69: =#REF!=J69 ->  | M69: 2350 | P69: =+IF(VLOOKUP(F69,'[1]TOTAL Aumento'!$H$15:$X$504,16,FALSE)=0,"Sin costo",VLOOKUP(F69,'[1]TOTAL Aumento'!$H$15:$X$504,16,FALSE)) -> 2300 | Q69: =+IF(VLOOKUP(F69,'[2]TOTAL Aumento'!$H$15:$AE$472,18,FALSE)=0,"Sin costo",VLOOKUP(F69,'[2]TOTAL Aumento'!$H$15:$Z$472,18,FALSE)) -> 2350 | R69: Incremento
B70: 120030 | E70: 7E | F70: Envío del movimiento de la cuenta vía fax. (Solo Bogotá) | I70: 4800 | J70: 5900 | L70: =#REF!=J70 ->  | M70: 5900 | P70: =+IF(VLOOKUP(F70,'[1]TOTAL Aumento'!$H$15:$X$504,16,FALSE)=0,"Sin costo",VLOOKUP(F70,'[1]TOTAL Aumento'!$H$15:$X$504,16,FALSE)) -> 5800 | Q70: =+IF(VLOOKUP(F70,'[2]TOTAL Aumento'!$H$15:$AE$472,18,FALSE)=0,"Sin costo",VLOOKUP(F70,'[2]TOTAL Aumento'!$H$15:$Z$472,18,FALSE)) -> 5900 | R70: Incremento
B71: F | E71: 8E | F71: Transferencias interbancarias ACH por Audiovillas | H71: 120030 | I71: 8900 | J71: 10850 | L71: =#REF!=J71 ->  | M71: 10850 | P71: =+IF(VLOOKUP(F71,'[1]TOTAL Aumento'!$H$15:$X$504,16,FALSE)=0,"Sin costo",VLOOKUP(F71,'[1]TOTAL Aumento'!$H$15:$X$504,16,FALSE)) -> 10650 | Q71: =+IF(VLOOKUP(F71,'[2]TOTAL Aumento'!$H$15:$AE$472,18,FALSE)=0,"Sin costo",VLOOKUP(F71,'[2]TOTAL Aumento'!$H$15:$Z$472,18,FALSE)) -> 10850 | R71: Incremento | S71: =+IF(VLOOKUP(F71,'[3]tarifas 2024'!$H$15:$W$386,16,FALSE)=0,"Sin costo",VLOOKUP(F71,'[3]tarifas 2024'!$H$15:$W$386,16,FALSE)) -> 11750
B72: 101015 | C72: Chequeras | D72: 1 | E72: =+D72&B$71 -> 1F | F72: Cheque especial sin Logo | I72: 4400 | J72: 4500 | L72: =#REF!=J72 ->  | M72: =+S72 -> 4950 | P72: =+IF(VLOOKUP(F72,'[1]TOTAL Aumento'!$H$15:$X$504,16,FALSE)=0,"Sin costo",VLOOKUP(F72,'[1]TOTAL Aumento'!$H$15:$X$504,16,FALSE)) -> 4400 | Q72: =+IF(VLOOKUP(F72,'[2]TOTAL Aumento'!$H$15:$AE$472,18,FALSE)=0,"Sin costo",VLOOKUP(F72,'[2]TOTAL Aumento'!$H$15:$Z$472,18,FALSE)) -> 4500 | R72: Incremento | S72: =+IF(VLOOKUP(F72,'[3]tarifas 2024'!$H$15:$W$386,16,FALSE)=0,"Sin costo",VLOOKUP(F72,'[3]tarifas 2024'!$H$15:$W$386,16,FALSE)) -> 4950
B73: 101030 | D73: =+D72+1 -> 2 | E73: =+D73&B$71 -> 2F | F73: Cheque especial con Logo | I73: 4900 | J73: 5000 | L73: =#REF!=J73 ->  | M73: =+S73 -> 5500 | P73: =+IF(VLOOKUP(F73,'[1]TOTAL Aumento'!$H$15:$X$504,16,FALSE)=0,"Sin costo",VLOOKUP(F73,'[1]TOTAL Aumento'!$H$15:$X$504,16,FALSE)) -> 4900 | Q73: =+IF(VLOOKUP(F73,'[2]TOTAL Aumento'!$H$15:$AE$472,18,FALSE)=0,"Sin costo",VLOOKUP(F73,'[2]TOTAL Aumento'!$H$15:$Z$472,18,FALSE)) -> 5000 | R73: Incremento | S73: =+IF(VLOOKUP(F73,'[3]tarifas 2024'!$H$15:$W$386,16,FALSE)=0,"Sin costo",VLOOKUP(F73,'[3]tarifas 2024'!$H$15:$W$386,16,FALSE)) -> 5500
B74: 101045 | D74: 3 | E74: 3F | F74: Chequera de 15 cheques persona natural | H74: 101015 | I74: 104750 | J74: 106350 | L74: =#REF!=J74 ->  | M74: 117000 | P74: =+IF(VLOOKUP(F74,'[1]TOTAL Aumento'!$H$15:$X$504,16,FALSE)=0,"Sin costo",VLOOKUP(F74,'[1]TOTAL Aumento'!$H$15:$X$504,16,FALSE)) -> 104750 | Q74: =+IF(VLOOKUP(F74,'[2]TOTAL Aumento'!$H$15:$AE$472,18,FALSE)=0,"Sin costo",VLOOKUP(F74,'[2]TOTAL Aumento'!$H$15:$Z$472,18,FALSE)) -> 106350 | R74: Incremento | S74: =+IF(VLOOKUP(F74,'[3]tarifas 2024'!$H$15:$W$386,16,FALSE)=0,"Sin costo",VLOOKUP(F74,'[3]tarifas 2024'!$H$15:$W$386,16,FALSE)) -> 117000
D75: 4 | E75: 4F | F75: Chequera de 30 cheques persona natural o jurídica | H75: 101030 | I75: 233600 | J75: 237150 | K75: 4 | L75: =#REF!=J75 ->  | M75: 260900 | P75: =+IF(VLOOKUP(F75,'[1]TOTAL Aumento'!$H$15:$X$504,16,FALSE)=0,"Sin costo",VLOOKUP(F75,'[1]TOTAL Aumento'!$H$15:$X$504,16,FALSE)) -> 233600 | Q75: =+IF(VLOOKUP(F75,'[2]TOTAL Aumento'!$H$15:$AE$472,18,FALSE)=0,"Sin costo",VLOOKUP(F75,'[2]TOTAL Aumento'!$H$15:$Z$472,18,FALSE)) -> 237150 | R75: Incremento | S75: =+IF(VLOOKUP(F75,'[3]tarifas 2024'!$H$15:$W$386,16,FALSE)=0,"Sin costo",VLOOKUP(F75,'[3]tarifas 2024'!$H$15:$W$386,16,FALSE)) -> 260900
D76: 5 | E76: 5F | F76: Chequera de 100 cheques persona natural o jurídica | H76: 101045 | I76: 712200 | J76: 722900 | K76: 5 | L76: =#REF!=J76 ->  | M76: 792100 | P76: =+IF(VLOOKUP(F76,'[1]TOTAL Aumento'!$H$15:$X$504,16,FALSE)=0,"Sin costo",VLOOKUP(F76,'[1]TOTAL Aumento'!$H$15:$X$504,16,FALSE)) -> 712200 | Q76: =+IF(VLOOKUP(F76,'[2]TOTAL Aumento'!$H$15:$AE$472,18,FALSE)=0,"Sin costo",VLOOKUP(F76,'[2]TOTAL Aumento'!$H$15:$Z$472,18,FALSE)) -> 722900 | R76: Incremento | S76: =+IF(VLOOKUP(F76,'[3]tarifas 2024'!$H$15:$W$386,16,FALSE)=0,"Sin costo",VLOOKUP(F76,'[3]tarifas 2024'!$H$15:$W$386,16,FALSE)) -> 792100
C77: TARIFAS PRODUCTOS Y SERVICIOS BANCARIOS | I77: A partir del 13 de Marzo de 2023 | J77: A partir del 01 de Diciembre de 2023 | M77: =+M40 -> A partir del 02 de Julio de 2024
C78: ENVIAR A TARJETA DE CRÉDITO | I78: TARIFA | J78: TARIFA | M78: TARIFA
B79: 103005 | C79: Tarjeta de Crédito (Cuota de Manejo)* 6* | D79: 1 | E79: =+D79&$C$78 -> 1ENVIAR A TARJETA DE CRÉDITO | F79: Cuota de manejo Tarjeta de Crédito Clásica (trimestre anticipado) | H79: 103005 | I79: 88500 | J79: 89850 | L79: =#REF!=J79 ->  | M79: 109990 | P79: =+IF(VLOOKUP(F79,'[1]TOTAL Aumento'!$H$15:$X$504,16,FALSE)=0,"Sin costo",VLOOKUP(F79,'[1]TOTAL Aumento'!$H$15:$X$504,16,FALSE)) -> 88500 | Q79: =+IF(VLOOKUP(F79,'[2]TOTAL Aumento'!$H$15:$AE$472,18,FALSE)=0,"Sin costo",VLOOKUP(F79,'[2]TOTAL Aumento'!$H$15:$Z$472,18,FALSE)) -> 89850 | R79: =IF(Q79>P79,"Incremento",0) -> Incremento | S79: =+IF(VLOOKUP(F79,'[3]tarifas 2024'!$H$15:$W$386,16,FALSE)=0,"Sin costo",VLOOKUP(F79,'[3]tarifas 2024'!$H$15:$W$386,16,FALSE)) -> 99500
B80: 104005 | D80: =+D79+1 -> 2 | E80: =+D80&$C$78 -> 2ENVIAR A TARJETA DE CRÉDITO | F80: Cuota de manejo Tarjeta de Crédito Gold y Empresarial (trimestre anticipado) | H80: 104005 | I80: 99500 | J80: 101000 | L80: =#REF!=J80 ->  | M80: 122900 | P80: =+IF(VLOOKUP(F80,'[1]TOTAL Aumento'!$H$15:$X$504,16,FALSE)=0,"Sin costo",VLOOKUP(F80,'[1]TOTAL Aumento'!$H$15:$X$504,16,FALSE)) -> 99500 | Q80: =+IF(VLOOKUP(F80,'[2]TOTAL Aumento'!$H$15:$AE$472,18,FALSE)=0,"Sin costo",VLOOKUP(F80,'[2]TOTAL Aumento'!$H$15:$Z$472,18,FALSE)) -> 101000 | R80: Incremento | S80: =+IF(VLOOKUP(F80,'[3]tarifas 2024'!$H$15:$W$386,16,FALSE)=0,"Sin costo",VLOOKUP(F80,'[3]tarifas 2024'!$H$15:$W$386,16,FALSE)) -> 110700
B81: 105005 | D81: 3 | E81: =+D81&$C$78 -> 3ENVIAR A TARJETA DE CRÉDITO | F81: Cuota de manejo Tarjeta de Crédito Platinum (trimestre anticipado) | H81: 105005 | I81: 109500 | J81: 111150 | L81: =#REF!=J81 ->  | M81: 134990 | P81: =+IF(VLOOKUP(F81,'[1]TOTAL Aumento'!$H$15:$X$504,16,FALSE)=0,"Sin costo",VLOOKUP(F81,'[1]TOTAL Aumento'!$H$15:$X$504,16,FALSE)) -> 109500 | Q81: =+IF(VLOOKUP(F81,'[2]TOTAL Aumento'!$H$15:$AE$472,18,FALSE)=0,"Sin costo",VLOOKUP(F81,'[2]TOTAL Aumento'!$H$15:$Z$472,18,FALSE)) -> 111150 | R81: Incremento | S81: =+IF(VLOOKUP(F81,'[3]tarifas 2024'!$H$15:$W$386,16,FALSE)=0,"Sin costo",VLOOKUP(F81,'[3]tarifas 2024'!$H$15:$W$386,16,FALSE)) -> 122300
D82: 4 | E82: 4ENVIAR A TARJETA DE CRÉDITO | F82: Cuota de manejo Tarjeta de Crédito Black (trimestre anticipado) | I82: 132000 | J82: 134000 | L82: =#REF!=J82 ->  | M82: 162990 | P82: =+IF(VLOOKUP(F82,'[1]TOTAL Aumento'!$H$15:$X$504,16,FALSE)=0,"Sin costo",VLOOKUP(F82,'[1]TOTAL Aumento'!$H$15:$X$504,16,FALSE)) -> 132000 | Q82: =+IF(VLOOKUP(F82,'[2]TOTAL Aumento'!$H$15:$AE$472,18,FALSE)=0,"Sin costo",VLOOKUP(F82,'[2]TOTAL Aumento'!$H$15:$Z$472,18,FALSE)) -> 134000 | R82: Incremento | S82: =+IF(VLOOKUP(F82,'[3]tarifas 2024'!$H$15:$W$386,16,FALSE)=0,"Sin costo",VLOOKUP(F82,'[3]tarifas 2024'!$H$15:$W$386,16,FALSE)) -> 147400
D83: 5 | E83: 5ENVIAR A TARJETA DE CRÉDITO | F83: Cuota de manejo Tarjeta amparada Clásica (trimestre anticipado) | H83: 103010 | I83: 43250 | J83: 43900 | L83: =#REF!=J83 ->  | M83: 52990 | P83: =+IF(VLOOKUP(F83,'[1]TOTAL Aumento'!$H$15:$X$504,16,FALSE)=0,"Sin costo",VLOOKUP(F83,'[1]TOTAL Aumento'!$H$15:$X$504,16,FALSE)) -> 43250 | Q83: =+IF(VLOOKUP(F83,'[2]TOTAL Aumento'!$H$15:$AE$472,18,FALSE)=0,"Sin costo",VLOOKUP(F83,'[2]TOTAL Aumento'!$H$15:$Z$472,18,FALSE)) -> 43900 | R83: Incremento | S83: =+IF(VLOOKUP(F83,'[3]tarifas 2024'!$H$15:$W$386,16,FALSE)=0,"Sin costo",VLOOKUP(F83,'[3]tarifas 2024'!$H$15:$W$386,16,FALSE)) -> 48300
D84: 6 | E84: 6ENVIAR A TARJETA DE CRÉDITO | F84: Cuota de manejo Tarjeta amparada Gold (trimestre anticipado) | H84: 104010 | I84: 50000 | J84: 50750 | L84: =#REF!=J84 ->  | M84: 61990 | P84: =+IF(VLOOKUP(F84,'[1]TOTAL Aumento'!$H$15:$X$504,16,FALSE)=0,"Sin costo",VLOOKUP(F84,'[1]TOTAL Aumento'!$H$15:$X$504,16,FALSE)) -> 50000 | Q84: =+IF(VLOOKUP(F84,'[2]TOTAL Aumento'!$H$15:$AE$472,18,FALSE)=0,"Sin costo",VLOOKUP(F84,'[2]TOTAL Aumento'!$H$15:$Z$472,18,FALSE)) -> 50750 | R84: Incremento | S84: =+IF(VLOOKUP(F84,'[3]tarifas 2024'!$H$15:$W$386,16,FALSE)=0,"Sin costo",VLOOKUP(F84,'[3]tarifas 2024'!$H$15:$W$386,16,FALSE)) -> 55850
D85: 7 | E85: 7ENVIAR A TARJETA DE CRÉDITO | F85: Cuota de manejo Tarjeta amparada Platinum (trimestre anticipado) | H85: 105010 | I85: 55850 | J85: 56700 | L85: =#REF!=J85 ->  | M85: 68990 | P85: =+IF(VLOOKUP(F85,'[1]TOTAL Aumento'!$H$15:$X$504,16,FALSE)=0,"Sin costo",VLOOKUP(F85,'[1]TOTAL Aumento'!$H$15:$X$504,16,FALSE)) -> 55850 | Q85: =+IF(VLOOKUP(F85,'[2]TOTAL Aumento'!$H$15:$AE$472,18,FALSE)=0,"Sin costo",VLOOKUP(F85,'[2]TOTAL Aumento'!$H$15:$Z$472,18,FALSE)) -> 56700 | R85: Incremento | S85: =+IF(VLOOKUP(F85,'[3]tarifas 2024'!$H$15:$W$386,16,FALSE)=0,"Sin costo",VLOOKUP(F85,'[3]tarifas 2024'!$H$15:$W$386,16,FALSE)) -> 62400
D86: 8 | E86: 8ENVIAR A TARJETA DE CRÉDITO | F86: Cuota de manejo Tarjeta amparada Black (trimestre anticipado) | I86: 59900 | J86: 60800 | L86: =#REF!=J86 ->  | M86: 73990 | P86: =+IF(VLOOKUP(F86,'[1]TOTAL Aumento'!$H$15:$X$504,16,FALSE)=0,"Sin costo",VLOOKUP(F86,'[1]TOTAL Aumento'!$H$15:$X$504,16,FALSE)) -> 59900 | Q86: =+IF(VLOOKUP(F86,'[2]TOTAL Aumento'!$H$15:$AE$472,18,FALSE)=0,"Sin costo",VLOOKUP(F86,'[2]TOTAL Aumento'!$H$15:$Z$472,18,FALSE)) -> 60800 | R86: Incremento | S86: =+IF(VLOOKUP(F86,'[3]tarifas 2024'!$H$15:$W$386,16,FALSE)=0,"Sin costo",VLOOKUP(F86,'[3]tarifas 2024'!$H$15:$W$386,16,FALSE)) -> 66900
D87: =+D86+1 -> 9 | E87: 9ENVIAR A TARJETA DE CRÉDITO | F87: Cuota de manejo Tarjeta Visa - Independientes (mes anticipado) | I87: 21800 | J87: 22100 | L87: =#REF!=J87 ->  | M87: =+S87 -> 24350 | P87: =+IF(VLOOKUP(F87,'[1]TOTAL Aumento'!$H$15:$X$504,16,FALSE)=0,"Sin costo",VLOOKUP(F87,'[1]TOTAL Aumento'!$H$15:$X$504,16,FALSE)) -> 21800 | Q87: =+IF(VLOOKUP(F87,'[2]TOTAL Aumento'!$H$15:$AE$472,18,FALSE)=0,"Sin costo",VLOOKUP(F87,'[2]TOTAL Aumento'!$H$15:$Z$472,18,FALSE)) -> 22100 | R87: Incremento | S87: =+IF(VLOOKUP(F87,'[3]tarifas 2024'!$H$15:$W$386,16,FALSE)=0,"Sin costo",VLOOKUP(F87,'[3]tarifas 2024'!$H$15:$W$386,16,FALSE)) -> 24350
D88: 10 | E88: 10ENVIAR A TARJETA DE CRÉDITO | F88: Cuota de manejo Tarjeta Crédito Clásica (mes vencido) | I88: 25990 | J88: 26900 | L88: =#REF!=J88 ->  | M88: 31990 | P88: =+IF(VLOOKUP(F88,'[1]TOTAL Aumento'!$H$15:$X$504,16,FALSE)=0,"Sin costo",VLOOKUP(F88,'[1]TOTAL Aumento'!$H$15:$X$504,16,FALSE)) -> 25990 | Q88: =+IF(VLOOKUP(F88,'[2]TOTAL Aumento'!$H$15:$AE$472,18,FALSE)=0,"Sin costo",VLOOKUP(F88,'[2]TOTAL Aumento'!$H$15:$Z$472,18,FALSE)) -> 26900 | R88: Incremento | S88: =+IF(VLOOKUP(F88,'[3]tarifas 2024'!$H$15:$W$386,16,FALSE)=0,"Sin costo",VLOOKUP(F88,'[3]tarifas 2024'!$H$15:$W$386,16,FALSE)) -> 29600
D89: 11 | E89: 11ENVIAR A TARJETA DE CRÉDITO | F89: Cuota de manejo Tarjeta Crédito Gold (mes vencido) | I89: 29990 | J89: 31000 | L89: =#REF!=J89 ->  | M89: 37990 | P89: =+IF(VLOOKUP(F89,'[1]TOTAL Aumento'!$H$15:$X$504,16,FALSE)=0,"Sin costo",VLOOKUP(F89,'[1]TOTAL Aumento'!$H$15:$X$504,16,FALSE)) -> 29990 | Q89: =+IF(VLOOKUP(F89,'[2]TOTAL Aumento'!$H$15:$AE$472,18,FALSE)=0,"Sin costo",VLOOKUP(F89,'[2]TOTAL Aumento'!$H$15:$Z$472,18,FALSE)) -> 31000 | R89: Incremento | S89: =+IF(VLOOKUP(F89,'[3]tarifas 2024'!$H$15:$W$386,16,FALSE)=0,"Sin costo",VLOOKUP(F89,'[3]tarifas 2024'!$H$15:$W$386,16,FALSE)) -> 34900
D90: 12 | E90: 12ENVIAR A TARJETA DE CRÉDITO | F90: Cuota de manejo Tarjeta Crédito Platinum (mes vencido) | I90: 21800 | J90: 22120 | L90: =#REF!=J90 ->  | M90: 28500 | P90: =+IF(VLOOKUP(F90,'[1]TOTAL Aumento'!$H$15:$X$504,16,FALSE)=0,"Sin costo",VLOOKUP(F90,'[1]TOTAL Aumento'!$H$15:$X$504,16,FALSE)) -> 21800 | Q90: =+IF(VLOOKUP(F90,'[2]TOTAL Aumento'!$H$15:$AE$472,18,FALSE)=0,"Sin costo",VLOOKUP(F90,'[2]TOTAL Aumento'!$H$15:$Z$472,18,FALSE)) -> 22120 | R90: Incremento | S90: =+IF(VLOOKUP(F90,'[3]tarifas 2024'!$H$15:$W$386,16,FALSE)=0,"Sin costo",VLOOKUP(F90,'[3]tarifas 2024'!$H$15:$W$386,16,FALSE)) -> 24350
D91: 13 | E91: 13ENVIAR A TARJETA DE CRÉDITO | F91: Cuota de manejo Tarjeta Crédito Black (mes vencido) | I91: 21800 | J91: 22120 | L91: =#REF!=J91 ->  | M91: 35000 | P91: =+IF(VLOOKUP(F91,'[1]TOTAL Aumento'!$H$15:$X$504,16,FALSE)=0,"Sin costo",VLOOKUP(F91,'[1]TOTAL Aumento'!$H$15:$X$504,16,FALSE)) -> 21800 | Q91: =+IF(VLOOKUP(F91,'[2]TOTAL Aumento'!$H$15:$AE$472,18,FALSE)=0,"Sin costo",VLOOKUP(F91,'[2]TOTAL Aumento'!$H$15:$Z$472,18,FALSE)) -> 22120 | R91: Incremento | S91: =+IF(VLOOKUP(F91,'[3]tarifas 2024'!$H$15:$W$386,16,FALSE)=0,"Sin costo",VLOOKUP(F91,'[3]tarifas 2024'!$H$15:$W$386,16,FALSE)) -> 30000
D92: 14 | E92: 14ENVIAR A TARJETA DE CRÉDITO | F92: Cuota de manejo Tarjeta Facilísima (mes vencido) | I92: 22800 | J92: 24000 | L92: =#REF!=J92 ->  | M92: 28990 | P92: =+IF(VLOOKUP(F92,'[1]TOTAL Aumento'!$H$15:$X$504,16,FALSE)=0,"Sin costo",VLOOKUP(F92,'[1]TOTAL Aumento'!$H$15:$X$504,16,FALSE)) -> 22800 | Q92: =+IF(VLOOKUP(F92,'[2]TOTAL Aumento'!$H$15:$AE$472,18,FALSE)=0,"Sin costo",VLOOKUP(F92,'[2]TOTAL Aumento'!$H$15:$Z$472,18,FALSE)) -> 24000 | R92: Incremento | S92: =+IF(VLOOKUP(F92,'[3]tarifas 2024'!$H$15:$W$386,16,FALSE)=0,"Sin costo",VLOOKUP(F92,'[3]tarifas 2024'!$H$15:$W$386,16,FALSE)) -> 26850
D93: 15 | E93: 15ENVIAR A TARJETA DE CRÉDITO | F93: Cuota de manejo Tarjeta amparada Crédito Clásica (mes vencido) | I93: 9750 | J93: 9900 | L93: =#REF!=J93 ->  | M93: 15990 | P93: =+IF(VLOOKUP(F93,'[1]TOTAL Aumento'!$H$15:$X$504,16,FALSE)=0,"Sin costo",VLOOKUP(F93,'[1]TOTAL Aumento'!$H$15:$X$504,16,FALSE)) -> 9750 | Q93: =+IF(VLOOKUP(F93,'[2]TOTAL Aumento'!$H$15:$AE$472,18,FALSE)=0,"Sin costo",VLOOKUP(F93,'[2]TOTAL Aumento'!$H$15:$Z$472,18,FALSE)) -> 9900 | R93: Incremento | S93: =+IF(VLOOKUP(F93,'[3]tarifas 2024'!$H$15:$W$386,16,FALSE)=0,"Sin costo",VLOOKUP(F93,'[3]tarifas 2024'!$H$15:$W$386,16,FALSE)) -> 10900
D94: 16 | E94: 16ENVIAR A TARJETA DE CRÉDITO | F94: Cuota de manejo Tarjeta amparada Crédito Gold (mes vencido) | I94: 11000 | J94: 11200 | L94: =#REF!=J94 ->  | M94: 18990 | P94: =+IF(VLOOKUP(F94,'[1]TOTAL Aumento'!$H$15:$X$504,16,FALSE)=0,"Sin costo",VLOOKUP(F94,'[1]TOTAL Aumento'!$H$15:$X$504,16,FALSE)) -> 11000 | Q94: =+IF(VLOOKUP(F94,'[2]TOTAL Aumento'!$H$15:$AE$472,18,FALSE)=0,"Sin costo",VLOOKUP(F94,'[2]TOTAL Aumento'!$H$15:$Z$472,18,FALSE)) -> 11200 | R94: Incremento | S94: =+IF(VLOOKUP(F94,'[3]tarifas 2024'!$H$15:$W$386,16,FALSE)=0,"Sin costo",VLOOKUP(F94,'[3]tarifas 2024'!$H$15:$W$386,16,FALSE)) -> 12350
D95: 17 | E95: 17ENVIAR A TARJETA DE CRÉDITO | F95: Cuota de manejo Tarjeta amparada Crédito Platinum (mes vencido) | I95: 11000 | J95: 11200 | L95: =#REF!=J95 ->  | M95: 14500 | P95: =+IF(VLOOKUP(F95,'[1]TOTAL Aumento'!$H$15:$X$504,16,FALSE)=0,"Sin costo",VLOOKUP(F95,'[1]TOTAL Aumento'!$H$15:$X$504,16,FALSE)) -> 11000 | Q95: =+IF(VLOOKUP(F95,'[2]TOTAL Aumento'!$H$15:$AE$472,18,FALSE)=0,"Sin costo",VLOOKUP(F95,'[2]TOTAL Aumento'!$H$15:$Z$472,18,FALSE)) -> 11200 | R95: Incremento | S95: =+IF(VLOOKUP(F95,'[3]tarifas 2024'!$H$15:$W$386,16,FALSE)=0,"Sin costo",VLOOKUP(F95,'[3]tarifas 2024'!$H$15:$W$386,16,FALSE)) -> 12350
D96: 18 | E96: 18ENVIAR A TARJETA DE CRÉDITO | F96: Cuota de manejo Tarjeta amparada Crédito Black (mes vencido) | I96: 11000 | J96: 11200 | L96: =#REF!=J96 ->  | M96: 14500 | P96: =+IF(VLOOKUP(F96,'[1]TOTAL Aumento'!$H$15:$X$504,16,FALSE)=0,"Sin costo",VLOOKUP(F96,'[1]TOTAL Aumento'!$H$15:$X$504,16,FALSE)) -> 11000 | Q96: =+IF(VLOOKUP(F96,'[2]TOTAL Aumento'!$H$15:$AE$472,18,FALSE)=0,"Sin costo",VLOOKUP(F96,'[2]TOTAL Aumento'!$H$15:$Z$472,18,FALSE)) -> 11200 | R96: Incremento | S96: =+IF(VLOOKUP(F96,'[3]tarifas 2024'!$H$15:$W$386,16,FALSE)=0,"Sin costo",VLOOKUP(F96,'[3]tarifas 2024'!$H$15:$W$386,16,FALSE)) -> 12350
D97: 19 | E97: 19ENVIAR A TARJETA DE CRÉDITO | F97: Cuota de manejo Tarjeta Visa - Easy (mes vencido) | I97: 21800 | J97: 22150 | L97: =#REF!=J97 ->  | M97: 26990 | P97: =+IF(VLOOKUP(F97,'[1]TOTAL Aumento'!$H$15:$X$504,16,FALSE)=0,"Sin costo",VLOOKUP(F97,'[1]TOTAL Aumento'!$H$15:$X$504,16,FALSE)) -> 21800 | Q97: =+IF(VLOOKUP(F97,'[2]TOTAL Aumento'!$H$15:$AE$472,18,FALSE)=0,"Sin costo",VLOOKUP(F97,'[2]TOTAL Aumento'!$H$15:$Z$472,18,FALSE)) -> 22150 | R97: Incremento | S97: =+IF(VLOOKUP(F97,'[3]tarifas 2024'!$H$15:$W$386,16,FALSE)=0,"Sin costo",VLOOKUP(F97,'[3]tarifas 2024'!$H$15:$W$386,16,FALSE)) -> 24400
D98: =+D97+1 -> 20 | E98: 20ENVIAR A TARJETA DE CRÉDITO | F98: Cuota de manejo Tarjeta de Crédito Club Vivamos El Tiempo - Clásica (mes vencido) | I98: 19200 | J98: 22000 | L98: =#REF!=J98 ->  | M98: 26990 | P98: =+IF(VLOOKUP(F98,'[1]TOTAL Aumento'!$H$15:$X$504,16,FALSE)=0,"Sin costo",VLOOKUP(F98,'[1]TOTAL Aumento'!$H$15:$X$504,16,FALSE)) -> 19200 | Q98: =+IF(VLOOKUP(F98,'[2]TOTAL Aumento'!$H$15:$AE$472,18,FALSE)=0,"Sin costo",VLOOKUP(F98,'[2]TOTAL Aumento'!$H$15:$Z$472,18,FALSE)) -> 22000 | R98: Incremento | S98: =+IF(VLOOKUP(F98,'[3]tarifas 2024'!$H$15:$W$386,16,FALSE)=0,"Sin costo",VLOOKUP(F98,'[3]tarifas 2024'!$H$15:$W$386,16,FALSE)) -> 24200
D99: 21 | E99: 21ENVIAR A TARJETA DE CRÉDITO | F99: Cuota de manejo Tarjeta de Crédito Club Vivamos El Tiempo - Gold (mes vencido) | I99: 19600 | J99: 23000 | L99: =#REF!=J99 ->  | M99: 27990 | P99: =+IF(VLOOKUP(F99,'[1]TOTAL Aumento'!$H$15:$X$504,16,FALSE)=0,"Sin costo",VLOOKUP(F99,'[1]TOTAL Aumento'!$H$15:$X$504,16,FALSE)) -> 19600 | Q99: =+IF(VLOOKUP(F99,'[2]TOTAL Aumento'!$H$15:$AE$472,18,FALSE)=0,"Sin costo",VLOOKUP(F99,'[2]TOTAL Aumento'!$H$15:$Z$472,18,FALSE)) -> 23000 | R99: Incremento | S99: =+IF(VLOOKUP(F99,'[3]tarifas 2024'!$H$15:$W$386,16,FALSE)=0,"Sin costo",VLOOKUP(F99,'[3]tarifas 2024'!$H$15:$W$386,16,FALSE)) -> 25300
B100: 103010 | D100: 22 | E100: 22ENVIAR A TARJETA DE CRÉDITO | F100: Cuota de manejo Tarjeta de Crédito Club Vivamos El Tiempo - Platinum (mes vencido) | I100: 22000 | J100: 24000 | L100: =#REF!=J100 ->  | M100: 28990 | P100: =+IF(VLOOKUP(F100,'[1]TOTAL Aumento'!$H$15:$X$504,16,FALSE)=0,"Sin costo",VLOOKUP(F100,'[1]TOTAL Aumento'!$H$15:$X$504,16,FALSE)) -> 22000 | Q100: =+IF(VLOOKUP(F100,'[2]TOTAL Aumento'!$H$15:$AE$472,18,FALSE)=0,"Sin costo",VLOOKUP(F100,'[2]TOTAL Aumento'!$H$15:$Z$472,18,FALSE)) -> 24000 | R100: Incremento | S100: =+IF(VLOOKUP(F100,'[3]tarifas 2024'!$H$15:$W$386,16,FALSE)=0,"Sin costo",VLOOKUP(F100,'[3]tarifas 2024'!$H$15:$W$386,16,FALSE)) -> 26400
B101: 104010 | D101: 23 | E101: 23ENVIAR A TARJETA DE CRÉDITO | F101: Cuota de manejo Tarjeta de Crédito Club Vivamos El Tiempo - Black (mes vencido) | I101: 27150 | J101: 28000 | L101: =#REF!=J101 ->  | M101: 32990 | P101: =+IF(VLOOKUP(F101,'[1]TOTAL Aumento'!$H$15:$X$504,16,FALSE)=0,"Sin costo",VLOOKUP(F101,'[1]TOTAL Aumento'!$H$15:$X$504,16,FALSE)) -> 27150 | Q101: =+IF(VLOOKUP(F101,'[2]TOTAL Aumento'!$H$15:$AE$472,18,FALSE)=0,"Sin costo",VLOOKUP(F101,'[2]TOTAL Aumento'!$H$15:$Z$472,18,FALSE)) -> 28000 | R101: Incremento | S101: =+IF(VLOOKUP(F101,'[3]tarifas 2024'!$H$15:$W$386,16,FALSE)=0,"Sin costo",VLOOKUP(F101,'[3]tarifas 2024'!$H$15:$W$386,16,FALSE)) -> 30800
B102: 105010 | D102: 24 | E102: 24ENVIAR A TARJETA DE CRÉDITO | F102: Cuota de manejo Tarjeta de Crédito Club Vivamos amparada El Tiempo - Clásica (mes vencido) | I102: 16300 | J102: 17000 | L102: =#REF!=J102 ->  | M102: 19990 | P102: =+IF(VLOOKUP(F102,'[1]TOTAL Aumento'!$H$15:$X$504,16,FALSE)=0,"Sin costo",VLOOKUP(F102,'[1]TOTAL Aumento'!$H$15:$X$504,16,FALSE)) -> 16300 | Q102: =+IF(VLOOKUP(F102,'[2]TOTAL Aumento'!$H$15:$AE$472,18,FALSE)=0,"Sin costo",VLOOKUP(F102,'[2]TOTAL Aumento'!$H$15:$Z$472,18,FALSE)) -> 17000 | R102: Incremento | S102: =+IF(VLOOKUP(F102,'[3]tarifas 2024'!$H$15:$W$386,16,FALSE)=0,"Sin costo",VLOOKUP(F102,'[3]tarifas 2024'!$H$15:$W$386,16,FALSE)) -> 18700
D103: 25 | E103: 25ENVIAR A TARJETA DE CRÉDITO | F103: Cuota de manejo Tarjeta de Crédito Club Vivamos amparada El Tiempo - Gold (mes vencido) | I103: 16800 | J103: 18000 | L103: =#REF!=J103 ->  | M103: 20990 | P103: =+IF(VLOOKUP(F103,'[1]TOTAL Aumento'!$H$15:$X$504,16,FALSE)=0,"Sin costo",VLOOKUP(F103,'[1]TOTAL Aumento'!$H$15:$X$504,16,FALSE)) -> 16800 | Q103: =+IF(VLOOKUP(F103,'[2]TOTAL Aumento'!$H$15:$AE$472,18,FALSE)=0,"Sin costo",VLOOKUP(F103,'[2]TOTAL Aumento'!$H$15:$Z$472,18,FALSE)) -> 18000 | R103: Incremento | S103: =+IF(VLOOKUP(F103,'[3]tarifas 2024'!$H$15:$W$386,16,FALSE)=0,"Sin costo",VLOOKUP(F103,'[3]tarifas 2024'!$H$15:$W$386,16,FALSE)) -> 19800
D104: 26 | E104: 26ENVIAR A TARJETA DE CRÉDITO | F104: Cuota de manejo Tarjeta de Crédito Club Vivamos amparada El Tiempo - Platinum (mes vencido) | I104: 18150 | J104: 19000 | L104: =#REF!=J104 ->  | M104: 21990 | P104: =+IF(VLOOKUP(F104,'[1]TOTAL Aumento'!$H$15:$X$504,16,FALSE)=0,"Sin costo",VLOOKUP(F104,'[1]TOTAL Aumento'!$H$15:$X$504,16,FALSE)) -> 18150 | Q104: =+IF(VLOOKUP(F104,'[2]TOTAL Aumento'!$H$15:$AE$472,18,FALSE)=0,"Sin costo",VLOOKUP(F104,'[2]TOTAL Aumento'!$H$15:$Z$472,18,FALSE)) -> 19000 | R104: Incremento | S104: =+IF(VLOOKUP(F104,'[3]tarifas 2024'!$H$15:$W$386,16,FALSE)=0,"Sin costo",VLOOKUP(F104,'[3]tarifas 2024'!$H$15:$W$386,16,FALSE)) -> 20900
D105: 27 | E105: 27ENVIAR A TARJETA DE CRÉDITO | F105: Cuota de manejo Tarjeta de Crédito Club Vivamos amparada El Tiempo - Black (mes vencido) | I105: 23150 | J105: 23500 | L105: =#REF!=J105 ->  | M105: 26990 | P105: =+IF(VLOOKUP(F105,'[1]TOTAL Aumento'!$H$15:$X$504,16,FALSE)=0,"Sin costo",VLOOKUP(F105,'[1]TOTAL Aumento'!$H$15:$X$504,16,FALSE)) -> 23150 | Q105: =+IF(VLOOKUP(F105,'[2]TOTAL Aumento'!$H$15:$AE$472,18,FALSE)=0,"Sin costo",VLOOKUP(F105,'[2]TOTAL Aumento'!$H$15:$Z$472,18,FALSE)) -> 23500 | R105: Incremento | S105: =+IF(VLOOKUP(F105,'[3]tarifas 2024'!$H$15:$W$386,16,FALSE)=0,"Sin costo",VLOOKUP(F105,'[3]tarifas 2024'!$H$15:$W$386,16,FALSE)) -> 25850
C106: TARIFAS PRODUCTOS Y SERVICIOS BANCARIOS | I106: A partir del 13 de Marzo de 2023 | J106: A partir del 01 de Diciembre de 2023 | M106: =+M77 -> A partir del 02 de Julio de 2024 | R106: 0
C107: ENVIAR A TARJETA DE CRÉDITO | I107: TARIFA | J107: TARIFA | M107: TARIFA | R107: 0
C108: Tarjeta de Crédito (Cuota de Manejo)* 6* | D108: 1 | E108: =+D108&$C$107 -> 1ENVIAR A TARJETA DE CRÉDITO | F108: Cuota de manejo Tarjeta de Crédito Experto | I108: 17700 | J108: 20000 | L108: =#REF!=J108 ->  | M108: 23990 | P108: =+IF(VLOOKUP(F108,'[1]TOTAL Aumento'!$H$15:$X$504,16,FALSE)=0,"Sin costo",VLOOKUP(F108,'[1]TOTAL Aumento'!$H$15:$X$504,16,FALSE)) -> 17700 | Q108: =+IF(VLOOKUP(F108,'[2]TOTAL Aumento'!$H$15:$AE$472,18,FALSE)=0,"Sin costo",VLOOKUP(F108,'[2]TOTAL Aumento'!$H$15:$Z$472,18,FALSE)) -> 20000 | R108: Incremento | S108: =+IF(VLOOKUP(F108,'[3]tarifas 2024'!$H$15:$W$386,16,FALSE)=0,"Sin costo",VLOOKUP(F108,'[3]tarifas 2024'!$H$15:$W$386,16,FALSE)) -> 22000
D109: =+D108+1 -> 2 | E109: 2ENVIAR A TARJETA DE CRÉDITO | F109: Cuota de manejo Tarjeta de Crédito amparada Experto. 7* | I109: 15000 | J109: 17000 | L109: =#REF!=J109 ->  | M109: 19990 | P109: 15000 | Q109: 17000 | R109: Incremento | S109: 18700
D110: 3 | E110: 3ENVIAR A TARJETA DE CRÉDITO | F110: Cuota de manejo Tarjeta de Crédito Portal 80 - Clásica (mes vencido) | I110: 19200 | J110: 22000 | L110: =#REF!=J110 ->  | M110: 26990 | P110: =+IF(VLOOKUP(F110,'[1]TOTAL Aumento'!$H$15:$X$504,16,FALSE)=0,"Sin costo",VLOOKUP(F110,'[1]TOTAL Aumento'!$H$15:$X$504,16,FALSE)) -> 19200 | Q110: =+IF(VLOOKUP(F110,'[2]TOTAL Aumento'!$H$15:$AE$472,18,FALSE)=0,"Sin costo",VLOOKUP(F110,'[2]TOTAL Aumento'!$H$15:$Z$472,18,FALSE)) -> 22000 | R110: Incremento | S110: =+IF(VLOOKUP(F110,'[3]tarifas 2024'!$H$15:$W$386,16,FALSE)=0,"Sin costo",VLOOKUP(F110,'[3]tarifas 2024'!$H$15:$W$386,16,FALSE)) -> 24200
D111: 4 | E111: 4ENVIAR A TARJETA DE CRÉDITO | F111: Cuota de manejo Tarjeta de Crédito Portal 80 - Gold (mes vencido) | I111: 19600 | J111: 23000 | L111: =#REF!=J111 ->  | M111: 27990 | P111: =+IF(VLOOKUP(F111,'[1]TOTAL Aumento'!$H$15:$X$504,16,FALSE)=0,"Sin costo",VLOOKUP(F111,'[1]TOTAL Aumento'!$H$15:$X$504,16,FALSE)) -> 19600 | Q111: =+IF(VLOOKUP(F111,'[2]TOTAL Aumento'!$H$15:$AE$472,18,FALSE)=0,"Sin costo",VLOOKUP(F111,'[2]TOTAL Aumento'!$H$15:$Z$472,18,FALSE)) -> 23000 | R111: Incremento | S111: =+IF(VLOOKUP(F111,'[3]tarifas 2024'!$H$15:$W$386,16,FALSE)=0,"Sin costo",VLOOKUP(F111,'[3]tarifas 2024'!$H$15:$W$386,16,FALSE)) -> 25300
D112: 5 | E112: 5ENVIAR A TARJETA DE CRÉDITO | F112: Cuota de manejo Tarjeta de Crédito amparada Portal 80 - Clásica (mes vencido) | I112: 16300 | J112: 17000 | L112: =#REF!=J112 ->  | M112: 19990 | P112: =+IF(VLOOKUP(F112,'[1]TOTAL Aumento'!$H$15:$X$504,16,FALSE)=0,"Sin costo",VLOOKUP(F112,'[1]TOTAL Aumento'!$H$15:$X$504,16,FALSE)) -> 16300 | Q112: =+IF(VLOOKUP(F112,'[2]TOTAL Aumento'!$H$15:$AE$472,18,FALSE)=0,"Sin costo",VLOOKUP(F112,'[2]TOTAL Aumento'!$H$15:$Z$472,18,FALSE)) -> 17000 | R112: Incremento | S112: =+IF(VLOOKUP(F112,'[3]tarifas 2024'!$H$15:$W$386,16,FALSE)=0,"Sin costo",VLOOKUP(F112,'[3]tarifas 2024'!$H$15:$W$386,16,FALSE)) -> 18700
D113: 6 | E113: 6ENVIAR A TARJETA DE CRÉDITO | F113: Cuota de manejo Tarjeta de Crédito amparada Portal 80 - Gold (mes vencido) | I113: 16800 | J113: 18000 | L113: =#REF!=J113 ->  | M113: 20990 | P113: =+IF(VLOOKUP(F113,'[1]TOTAL Aumento'!$H$15:$X$504,16,FALSE)=0,"Sin costo",VLOOKUP(F113,'[1]TOTAL Aumento'!$H$15:$X$504,16,FALSE)) -> 16800 | Q113: =+IF(VLOOKUP(F113,'[2]TOTAL Aumento'!$H$15:$AE$472,18,FALSE)=0,"Sin costo",VLOOKUP(F113,'[2]TOTAL Aumento'!$H$15:$Z$472,18,FALSE)) -> 18000 | R113: Incremento | S113: =+IF(VLOOKUP(F113,'[3]tarifas 2024'!$H$15:$W$386,16,FALSE)=0,"Sin costo",VLOOKUP(F113,'[3]tarifas 2024'!$H$15:$W$386,16,FALSE)) -> 19800
D114: 7 | E114: 7ENVIAR A TARJETA DE CRÉDITO | F114: Cuota de manejo Tarjeta de Crédito Auteco - Clásica (mes vencido) | I114: 19200 | J114: 22000 | L114: =#REF!=J114 ->  | M114: 26990 | P114: =+IF(VLOOKUP(F114,'[1]TOTAL Aumento'!$H$15:$X$504,16,FALSE)=0,"Sin costo",VLOOKUP(F114,'[1]TOTAL Aumento'!$H$15:$X$504,16,FALSE)) -> 19200 | Q114: =+IF(VLOOKUP(F114,'[2]TOTAL Aumento'!$H$15:$AE$472,18,FALSE)=0,"Sin costo",VLOOKUP(F114,'[2]TOTAL Aumento'!$H$15:$Z$472,18,FALSE)) -> 22000 | R114: Incremento | S114: =+IF(VLOOKUP(F114,'[3]tarifas 2024'!$H$15:$W$386,16,FALSE)=0,"Sin costo",VLOOKUP(F114,'[3]tarifas 2024'!$H$15:$W$386,16,FALSE)) -> 24200
D115: 8 | E115: 8ENVIAR A TARJETA DE CRÉDITO | F115: Cuota de manejo Tarjeta de Crédito Auteco - Gold (mes vencido) | I115: 19600 | J115: 23000 | L115: =#REF!=J115 ->  | M115: 27990 | P115: =+IF(VLOOKUP(F115,'[1]TOTAL Aumento'!$H$15:$X$504,16,FALSE)=0,"Sin costo",VLOOKUP(F115,'[1]TOTAL Aumento'!$H$15:$X$504,16,FALSE)) -> 19600 | Q115: =+IF(VLOOKUP(F115,'[2]TOTAL Aumento'!$H$15:$AE$472,18,FALSE)=0,"Sin costo",VLOOKUP(F115,'[2]TOTAL Aumento'!$H$15:$Z$472,18,FALSE)) -> 23000 | R115: Incremento | S115: =+IF(VLOOKUP(F115,'[3]tarifas 2024'!$H$15:$W$386,16,FALSE)=0,"Sin costo",VLOOKUP(F115,'[3]tarifas 2024'!$H$15:$W$386,16,FALSE)) -> 25300
D116: 9 | E116: 9ENVIAR A TARJETA DE CRÉDITO | F116: Cuota de manejo Tarjeta de Crédito amparada Auteco - Clásica (mes vencido) | I116: 16300 | J116: 17000 | L116: =#REF!=J116 ->  | M116: 19990 | P116: =+IF(VLOOKUP(F116,'[1]TOTAL Aumento'!$H$15:$X$504,16,FALSE)=0,"Sin costo",VLOOKUP(F116,'[1]TOTAL Aumento'!$H$15:$X$504,16,FALSE)) -> 16300 | Q116: =+IF(VLOOKUP(F116,'[2]TOTAL Aumento'!$H$15:$AE$472,18,FALSE)=0,"Sin costo",VLOOKUP(F116,'[2]TOTAL Aumento'!$H$15:$Z$472,18,FALSE)) -> 17000 | R116: Incremento | S116: =+IF(VLOOKUP(F116,'[3]tarifas 2024'!$H$15:$W$386,16,FALSE)=0,"Sin costo",VLOOKUP(F116,'[3]tarifas 2024'!$H$15:$W$386,16,FALSE)) -> 18700
D117: 10 | E117: 10ENVIAR A TARJETA DE CRÉDITO | F117: Cuota de manejo Tarjeta de Crédito amparada Auteco - Gold (mes vencido) | I117: 16800 | J117: 18000 | L117: =#REF!=J117 ->  | M117: 20990 | P117: =+IF(VLOOKUP(F117,'[1]TOTAL Aumento'!$H$15:$X$504,16,FALSE)=0,"Sin costo",VLOOKUP(F117,'[1]TOTAL Aumento'!$H$15:$X$504,16,FALSE)) -> 16800 | Q117: =+IF(VLOOKUP(F117,'[2]TOTAL Aumento'!$H$15:$AE$472,18,FALSE)=0,"Sin costo",VLOOKUP(F117,'[2]TOTAL Aumento'!$H$15:$Z$472,18,FALSE)) -> 18000 | R117: Incremento | S117: =+IF(VLOOKUP(F117,'[3]tarifas 2024'!$H$15:$W$386,16,FALSE)=0,"Sin costo",VLOOKUP(F117,'[3]tarifas 2024'!$H$15:$W$386,16,FALSE)) -> 19800
D118: 11 | E118: 11ENVIAR A TARJETA DE CRÉDITO | F118: Cuota de manejo Tarjeta de Crédito Plaza de las Américas - Clásica (mes vencido) | I118: 19200 | J118: 22000 | L118: =#REF!=J118 ->  | M118: 26990 | P118: =+IF(VLOOKUP(F118,'[1]TOTAL Aumento'!$H$15:$X$504,16,FALSE)=0,"Sin costo",VLOOKUP(F118,'[1]TOTAL Aumento'!$H$15:$X$504,16,FALSE)) -> 19200 | Q118: =+IF(VLOOKUP(F118,'[2]TOTAL Aumento'!$H$15:$AE$472,18,FALSE)=0,"Sin costo",VLOOKUP(F118,'[2]TOTAL Aumento'!$H$15:$Z$472,18,FALSE)) -> 22000 | R118: Incremento | S118: =+IF(VLOOKUP(F118,'[3]tarifas 2024'!$H$15:$W$386,16,FALSE)=0,"Sin costo",VLOOKUP(F118,'[3]tarifas 2024'!$H$15:$W$386,16,FALSE)) -> 24200
D119: 12 | E119: 12ENVIAR A TARJETA DE CRÉDITO | F119: Cuota de manejo Tarjeta de Crédito Plaza de las Américas - Gold (mes vencido) | I119: 19600 | J119: 23000 | L119: =#REF!=J119 ->  | M119: 27990 | P119: =+IF(VLOOKUP(F119,'[1]TOTAL Aumento'!$H$15:$X$504,16,FALSE)=0,"Sin costo",VLOOKUP(F119,'[1]TOTAL Aumento'!$H$15:$X$504,16,FALSE)) -> 19600 | Q119: =+IF(VLOOKUP(F119,'[2]TOTAL Aumento'!$H$15:$AE$472,18,FALSE)=0,"Sin costo",VLOOKUP(F119,'[2]TOTAL Aumento'!$H$15:$Z$472,18,FALSE)) -> 23000 | R119: Incremento | S119: =+IF(VLOOKUP(F119,'[3]tarifas 2024'!$H$15:$W$386,16,FALSE)=0,"Sin costo",VLOOKUP(F119,'[3]tarifas 2024'!$H$15:$W$386,16,FALSE)) -> 25300
D120: 13 | E120: 13ENVIAR A TARJETA DE CRÉDITO | F120: Cuota de manejo Tarjeta de Crédito Plaza de las Américas - Platinum (mes vencido) | I120: 21350 | J120: 24000 | L120: =#REF!=J120 ->  | M120: 28990 | P120: =+IF(VLOOKUP(F120,'[1]TOTAL Aumento'!$H$15:$X$504,16,FALSE)=0,"Sin costo",VLOOKUP(F120,'[1]TOTAL Aumento'!$H$15:$X$504,16,FALSE)) -> 21350 | Q120: =+IF(VLOOKUP(F120,'[2]TOTAL Aumento'!$H$15:$AE$472,18,FALSE)=0,"Sin costo",VLOOKUP(F120,'[2]TOTAL Aumento'!$H$15:$Z$472,18,FALSE)) -> 24000 | R120: Incremento | S120: =+IF(VLOOKUP(F120,'[3]tarifas 2024'!$H$15:$W$386,16,FALSE)=0,"Sin costo",VLOOKUP(F120,'[3]tarifas 2024'!$H$15:$W$386,16,FALSE)) -> 26400
D121: 14 | E121: 14ENVIAR A TARJETA DE CRÉDITO | F121: Cuota de manejo Tarjeta de Crédito amparada Plaza de las Américas - Clásica (mes vencido) | I121: 16300 | J121: 17000 | L121: =#REF!=J121 ->  | M121: 19990 | P121: =+IF(VLOOKUP(F121,'[1]TOTAL Aumento'!$H$15:$X$504,16,FALSE)=0,"Sin costo",VLOOKUP(F121,'[1]TOTAL Aumento'!$H$15:$X$504,16,FALSE)) -> 16300 | Q121: =+IF(VLOOKUP(F121,'[2]TOTAL Aumento'!$H$15:$AE$472,18,FALSE)=0,"Sin costo",VLOOKUP(F121,'[2]TOTAL Aumento'!$H$15:$Z$472,18,FALSE)) -> 17000 | R121: Incremento | S121: =+IF(VLOOKUP(F121,'[3]tarifas 2024'!$H$15:$W$386,16,FALSE)=0,"Sin costo",VLOOKUP(F121,'[3]tarifas 2024'!$H$15:$W$386,16,FALSE)) -> 18700
D122: 15 | E122: 15ENVIAR A TARJETA DE CRÉDITO | F122: Cuota de manejo Tarjeta de Crédito amparada Plaza de las Américas - Gold (mes vencido) | I122: 16800 | J122: 18000 | L122: =#REF!=J122 ->  | M122: 20990 | P122: =+IF(VLOOKUP(F122,'[1]TOTAL Aumento'!$H$15:$X$504,16,FALSE)=0,"Sin costo",VLOOKUP(F122,'[1]TOTAL Aumento'!$H$15:$X$504,16,FALSE)) -> 16800 | Q122: =+IF(VLOOKUP(F122,'[2]TOTAL Aumento'!$H$15:$AE$472,18,FALSE)=0,"Sin costo",VLOOKUP(F122,'[2]TOTAL Aumento'!$H$15:$Z$472,18,FALSE)) -> 18000 | R122: Incremento | S122: =+IF(VLOOKUP(F122,'[3]tarifas 2024'!$H$15:$W$386,16,FALSE)=0,"Sin costo",VLOOKUP(F122,'[3]tarifas 2024'!$H$15:$W$386,16,FALSE)) -> 19800
D123: 16 | E123: 16ENVIAR A TARJETA DE CRÉDITO | F123: Cuota de manejo Tarjeta de Crédito amparada Plaza de las Américas - Platinum (mes vencido) | I123: 18150 | J123: 19000 | L123: =#REF!=J123 ->  | M123: 21990 | P123: =+IF(VLOOKUP(F123,'[1]TOTAL Aumento'!$H$15:$X$504,16,FALSE)=0,"Sin costo",VLOOKUP(F123,'[1]TOTAL Aumento'!$H$15:$X$504,16,FALSE)) -> 18150 | Q123: =+IF(VLOOKUP(F123,'[2]TOTAL Aumento'!$H$15:$AE$472,18,FALSE)=0,"Sin costo",VLOOKUP(F123,'[2]TOTAL Aumento'!$H$15:$Z$472,18,FALSE)) -> 19000 | R123: Incremento | S123: =+IF(VLOOKUP(F123,'[3]tarifas 2024'!$H$15:$W$386,16,FALSE)=0,"Sin costo",VLOOKUP(F123,'[3]tarifas 2024'!$H$15:$W$386,16,FALSE)) -> 20900
D124: 17 | E124: 17ENVIAR A TARJETA DE CRÉDITO | F124: Cuota de manejo Tarjeta de Crédito Novus seguros - Clásica (mes vencido) | I124: 19200 | J124: 20000 | L124: =#REF!=J124 ->  | M124: 23990 | P124: =+IF(VLOOKUP(F124,'[1]TOTAL Aumento'!$H$15:$X$504,16,FALSE)=0,"Sin costo",VLOOKUP(F124,'[1]TOTAL Aumento'!$H$15:$X$504,16,FALSE)) -> 19200 | Q124: =+IF(VLOOKUP(F124,'[2]TOTAL Aumento'!$H$15:$AE$472,18,FALSE)=0,"Sin costo",VLOOKUP(F124,'[2]TOTAL Aumento'!$H$15:$Z$472,18,FALSE)) -> 20000 | R124: Incremento | S124: =+IF(VLOOKUP(F124,'[3]tarifas 2024'!$H$15:$W$386,16,FALSE)=0,"Sin costo",VLOOKUP(F124,'[3]tarifas 2024'!$H$15:$W$386,16,FALSE)) -> 22000
D125: 18 | E125: 18ENVIAR A TARJETA DE CRÉDITO | F125: Cuota de manejo Tarjeta de Crédito Novus seguros - Gold (mes vencido) | I125: 19600 | J125: 21000 | L125: =#REF!=J125 ->  | M125: 24990 | P125: =+IF(VLOOKUP(F125,'[1]TOTAL Aumento'!$H$15:$X$504,16,FALSE)=0,"Sin costo",VLOOKUP(F125,'[1]TOTAL Aumento'!$H$15:$X$504,16,FALSE)) -> 19600 | Q125: =+IF(VLOOKUP(F125,'[2]TOTAL Aumento'!$H$15:$AE$472,18,FALSE)=0,"Sin costo",VLOOKUP(F125,'[2]TOTAL Aumento'!$H$15:$Z$472,18,FALSE)) -> 21000 | R125: Incremento | S125: =+IF(VLOOKUP(F125,'[3]tarifas 2024'!$H$15:$W$386,16,FALSE)=0,"Sin costo",VLOOKUP(F125,'[3]tarifas 2024'!$H$15:$W$386,16,FALSE)) -> 22950
D126: 19 | E126: 19ENVIAR A TARJETA DE CRÉDITO | F126: Cuota de manejo Tarjeta de Crédito Novus seguros- Platinum (mes vencido) | I126: 21350 | J126: 23000 | L126: =#REF!=J126 ->  | M126: 27990 | P126: =+IF(VLOOKUP(F126,'[1]TOTAL Aumento'!$H$15:$X$504,16,FALSE)=0,"Sin costo",VLOOKUP(F126,'[1]TOTAL Aumento'!$H$15:$X$504,16,FALSE)) -> 21350 | Q126: =+IF(VLOOKUP(F126,'[2]TOTAL Aumento'!$H$15:$AE$472,18,FALSE)=0,"Sin costo",VLOOKUP(F126,'[2]TOTAL Aumento'!$H$15:$Z$472,18,FALSE)) -> 23000 | R126: Incremento | S126: =+IF(VLOOKUP(F126,'[3]tarifas 2024'!$H$15:$W$386,16,FALSE)=0,"Sin costo",VLOOKUP(F126,'[3]tarifas 2024'!$H$15:$W$386,16,FALSE)) -> 25500
D127: 20 | E127: 20ENVIAR A TARJETA DE CRÉDITO | F127: Cuota de manejo Tarjeta de Crédito Novus seguros- Black (mes vencido) | I127: 27150 | J127: 27500 | L127: =#REF!=J127 ->  | M127: 31990 | P127: =+IF(VLOOKUP(F127,'[1]TOTAL Aumento'!$H$15:$X$504,16,FALSE)=0,"Sin costo",VLOOKUP(F127,'[1]TOTAL Aumento'!$H$15:$X$504,16,FALSE)) -> 27150 | Q127: =+IF(VLOOKUP(F127,'[2]TOTAL Aumento'!$H$15:$AE$472,18,FALSE)=0,"Sin costo",VLOOKUP(F127,'[2]TOTAL Aumento'!$H$15:$Z$472,18,FALSE)) -> 27500 | R127: Incremento | S127: =+IF(VLOOKUP(F127,'[3]tarifas 2024'!$H$15:$W$386,16,FALSE)=0,"Sin costo",VLOOKUP(F127,'[3]tarifas 2024'!$H$15:$W$386,16,FALSE)) -> 29950
D128: 21 | E128: 21ENVIAR A TARJETA DE CRÉDITO | F128: Cuota de manejo Tarjeta de Crédito amparada Novus seguros - Clásica (mes vencido) | I128: 16300 | J128: 17000 | L128: =#REF!=J128 ->  | M128: 19990 | P128: =+IF(VLOOKUP(F128,'[1]TOTAL Aumento'!$H$15:$X$504,16,FALSE)=0,"Sin costo",VLOOKUP(F128,'[1]TOTAL Aumento'!$H$15:$X$504,16,FALSE)) -> 16300 | Q128: =+IF(VLOOKUP(F128,'[2]TOTAL Aumento'!$H$15:$AE$472,18,FALSE)=0,"Sin costo",VLOOKUP(F128,'[2]TOTAL Aumento'!$H$15:$Z$472,18,FALSE)) -> 17000 | R128: Incremento | S128: =+IF(VLOOKUP(F128,'[3]tarifas 2024'!$H$15:$W$386,16,FALSE)=0,"Sin costo",VLOOKUP(F128,'[3]tarifas 2024'!$H$15:$W$386,16,FALSE)) -> 18700
D129: 22 | E129: 22ENVIAR A TARJETA DE CRÉDITO | F129: Cuota de manejo Tarjeta de Crédito amparada Novus seguros - Gold (mes vencido) | I129: 16800 | J129: 18000 | L129: =#REF!=J129 ->  | M129: 20990 | P129: =+IF(VLOOKUP(F129,'[1]TOTAL Aumento'!$H$15:$X$504,16,FALSE)=0,"Sin costo",VLOOKUP(F129,'[1]TOTAL Aumento'!$H$15:$X$504,16,FALSE)) -> 16800 | Q129: =+IF(VLOOKUP(F129,'[2]TOTAL Aumento'!$H$15:$AE$472,18,FALSE)=0,"Sin costo",VLOOKUP(F129,'[2]TOTAL Aumento'!$H$15:$Z$472,18,FALSE)) -> 18000 | R129: Incremento | S129: =+IF(VLOOKUP(F129,'[3]tarifas 2024'!$H$15:$W$386,16,FALSE)=0,"Sin costo",VLOOKUP(F129,'[3]tarifas 2024'!$H$15:$W$386,16,FALSE)) -> 19800
D130: 23 | E130: 23ENVIAR A TARJETA DE CRÉDITO | F130: Cuota de manejo Tarjeta de Crédito amparada Novus seguros- Platinum (mes vencido) | I130: 18150 | J130: 19000 | L130: =#REF!=J130 ->  | M130: 21990 | P130: =+IF(VLOOKUP(F130,'[1]TOTAL Aumento'!$H$15:$X$504,16,FALSE)=0,"Sin costo",VLOOKUP(F130,'[1]TOTAL Aumento'!$H$15:$X$504,16,FALSE)) -> 18150 | Q130: =+IF(VLOOKUP(F130,'[2]TOTAL Aumento'!$H$15:$AE$472,18,FALSE)=0,"Sin costo",VLOOKUP(F130,'[2]TOTAL Aumento'!$H$15:$Z$472,18,FALSE)) -> 19000 | R130: Incremento | S130: =+IF(VLOOKUP(F130,'[3]tarifas 2024'!$H$15:$W$386,16,FALSE)=0,"Sin costo",VLOOKUP(F130,'[3]tarifas 2024'!$H$15:$W$386,16,FALSE)) -> 20900
D131: 24 | E131: 24ENVIAR A TARJETA DE CRÉDITO | F131: Cuota de manejo Tarjeta de Crédito amparada Novus seguros- Balck (mes vencido) | I131: 23150 | J131: 23500 | L131: =#REF!=J131 ->  | M131: 26990 | P131: =+IF(VLOOKUP(F131,'[1]TOTAL Aumento'!$H$15:$X$504,16,FALSE)=0,"Sin costo",VLOOKUP(F131,'[1]TOTAL Aumento'!$H$15:$X$504,16,FALSE)) -> 23150 | Q131: =+IF(VLOOKUP(F131,'[2]TOTAL Aumento'!$H$15:$AE$472,18,FALSE)=0,"Sin costo",VLOOKUP(F131,'[2]TOTAL Aumento'!$H$15:$Z$472,18,FALSE)) -> 23500 | R131: Incremento | S131: =+IF(VLOOKUP(F131,'[3]tarifas 2024'!$H$15:$W$386,16,FALSE)=0,"Sin costo",VLOOKUP(F131,'[3]tarifas 2024'!$H$15:$W$386,16,FALSE)) -> 25850
D132: 25 | E132: 25ENVIAR A TARJETA DE CRÉDITO | F132: Cuota de manejo Tarjeta de Crédito Millonarios F.C. - Clásica (mes vencido) | I132: 19200 | J132: 22000 | L132: =#REF!=J132 ->  | M132: 26990 | P132: =+IF(VLOOKUP(F132,'[1]TOTAL Aumento'!$H$15:$X$504,16,FALSE)=0,"Sin costo",VLOOKUP(F132,'[1]TOTAL Aumento'!$H$15:$X$504,16,FALSE)) -> 19200 | Q132: =+IF(VLOOKUP(F132,'[2]TOTAL Aumento'!$H$15:$AE$472,18,FALSE)=0,"Sin costo",VLOOKUP(F132,'[2]TOTAL Aumento'!$H$15:$Z$472,18,FALSE)) -> 22000 | R132: Incremento | S132: =+IF(VLOOKUP(F132,'[3]tarifas 2024'!$H$15:$W$386,16,FALSE)=0,"Sin costo",VLOOKUP(F132,'[3]tarifas 2024'!$H$15:$W$386,16,FALSE)) -> 24200
D133: 26 | E133: 26ENVIAR A TARJETA DE CRÉDITO | F133: Cuota de manejo Tarjeta de Crédito Millonarios F.C. - Gold (mes vencido) | I133: 19600 | J133: 23000 | L133: =#REF!=J133 ->  | M133: 27990 | P133: =+IF(VLOOKUP(F133,'[1]TOTAL Aumento'!$H$15:$X$504,16,FALSE)=0,"Sin costo",VLOOKUP(F133,'[1]TOTAL Aumento'!$H$15:$X$504,16,FALSE)) -> 19600 | Q133: =+IF(VLOOKUP(F133,'[2]TOTAL Aumento'!$H$15:$AE$472,18,FALSE)=0,"Sin costo",VLOOKUP(F133,'[2]TOTAL Aumento'!$H$15:$Z$472,18,FALSE)) -> 23000 | R133: Incremento | S133: =+IF(VLOOKUP(F133,'[3]tarifas 2024'!$H$15:$W$386,16,FALSE)=0,"Sin costo",VLOOKUP(F133,'[3]tarifas 2024'!$H$15:$W$386,16,FALSE)) -> 25300
D134: 27 | E134: 27ENVIAR A TARJETA DE CRÉDITO | F134: Cuota de manejo Tarjeta de Crédito Millonarios F.C. - Platinum (mes vencido) | I134: 21350 | J134: 24000 | L134: =#REF!=J134 ->  | M134: 28990 | P134: =+IF(VLOOKUP(F134,'[1]TOTAL Aumento'!$H$15:$X$504,16,FALSE)=0,"Sin costo",VLOOKUP(F134,'[1]TOTAL Aumento'!$H$15:$X$504,16,FALSE)) -> 21350 | Q134: =+IF(VLOOKUP(F134,'[2]TOTAL Aumento'!$H$15:$AE$472,18,FALSE)=0,"Sin costo",VLOOKUP(F134,'[2]TOTAL Aumento'!$H$15:$Z$472,18,FALSE)) -> 24000 | R134: Incremento | S134: =+IF(VLOOKUP(F134,'[3]tarifas 2024'!$H$15:$W$386,16,FALSE)=0,"Sin costo",VLOOKUP(F134,'[3]tarifas 2024'!$H$15:$W$386,16,FALSE)) -> 26400
D135: 28 | E135: 28ENVIAR A TARJETA DE CRÉDITO | F135: Cuota de manejo Tarjeta de Crédito Millonarios F.C. - Clásica amparada (mes vencido) | I135: 16300 | J135: 17000 | L135: =#REF!=J135 ->  | M135: 19990 | P135: =+IF(VLOOKUP(F135,'[1]TOTAL Aumento'!$H$15:$X$504,16,FALSE)=0,"Sin costo",VLOOKUP(F135,'[1]TOTAL Aumento'!$H$15:$X$504,16,FALSE)) -> 16300 | Q135: =+IF(VLOOKUP(F135,'[2]TOTAL Aumento'!$H$15:$AE$472,18,FALSE)=0,"Sin costo",VLOOKUP(F135,'[2]TOTAL Aumento'!$H$15:$Z$472,18,FALSE)) -> 17000 | R135: Incremento | S135: =+IF(VLOOKUP(F135,'[3]tarifas 2024'!$H$15:$W$386,16,FALSE)=0,"Sin costo",VLOOKUP(F135,'[3]tarifas 2024'!$H$15:$W$386,16,FALSE)) -> 18700
D136: 29 | E136: 29ENVIAR A TARJETA DE CRÉDITO | F136: Cuota de manejo Tarjeta de Crédito Millonarios F.C. - Gold amparada (mes vencido) | I136: 16800 | J136: 18000 | L136: =#REF!=J136 ->  | M136: 20990 | P136: =+IF(VLOOKUP(F136,'[1]TOTAL Aumento'!$H$15:$X$504,16,FALSE)=0,"Sin costo",VLOOKUP(F136,'[1]TOTAL Aumento'!$H$15:$X$504,16,FALSE)) -> 16800 | Q136: =+IF(VLOOKUP(F136,'[2]TOTAL Aumento'!$H$15:$AE$472,18,FALSE)=0,"Sin costo",VLOOKUP(F136,'[2]TOTAL Aumento'!$H$15:$Z$472,18,FALSE)) -> 18000 | R136: Incremento | S136: =+IF(VLOOKUP(F136,'[3]tarifas 2024'!$H$15:$W$386,16,FALSE)=0,"Sin costo",VLOOKUP(F136,'[3]tarifas 2024'!$H$15:$W$386,16,FALSE)) -> 19800
C137: TARIFAS PRODUCTOS Y SERVICIOS BANCARIOS | I137: A partir del 13 de Marzo de 2023 | J137: A partir del 01 de Diciembre de 2023 | M137: =+M106 -> A partir del 02 de Julio de 2024 | R137: 0
C138: ENVIAR A TARJETA DE CRÉDITO | I138: TARIFA | J138: TARIFA | M138: TARIFA | R138: 0
C139: Tarjeta de Crédito (Cuota de Manejo)* 6* | D139: 1 | E139: =+D139&$C$107 -> 1ENVIAR A TARJETA DE CRÉDITO | F139: Cuota de manejo Tarjeta de Crédito Millonarios F.C. - Platinum amparada (mes vencido) | I139: 18150 | J139: 19000 | L139: =#REF!=J139 ->  | M139: 21990 | P139: =+IF(VLOOKUP(F139,'[1]TOTAL Aumento'!$H$15:$X$504,16,FALSE)=0,"Sin costo",VLOOKUP(F139,'[1]TOTAL Aumento'!$H$15:$X$504,16,FALSE)) -> 18150 | Q139: =+IF(VLOOKUP(F139,'[2]TOTAL Aumento'!$H$15:$AE$472,18,FALSE)=0,"Sin costo",VLOOKUP(F139,'[2]TOTAL Aumento'!$H$15:$Z$472,18,FALSE)) -> 19000 | R139: Incremento | S139: =+IF(VLOOKUP(F139,'[3]tarifas 2024'!$H$15:$W$386,16,FALSE)=0,"Sin costo",VLOOKUP(F139,'[3]tarifas 2024'!$H$15:$W$386,16,FALSE)) -> 20900
D140: =1+D139 -> 2 | E140: =+D140&$C$138 -> 2ENVIAR A TARJETA DE CRÉDITO | F140: Cuota de manejo Tarjeta de Crédito Ventura Plaza - Clásica (mes vencido) | I140: 19200 | J140: 22000 | L140: =#REF!=J140 ->  | M140: 26990 | P140: =+IF(VLOOKUP(F140,'[1]TOTAL Aumento'!$H$15:$X$504,16,FALSE)=0,"Sin costo",VLOOKUP(F140,'[1]TOTAL Aumento'!$H$15:$X$504,16,FALSE)) -> 19200 | Q140: =+IF(VLOOKUP(F140,'[2]TOTAL Aumento'!$H$15:$AE$472,18,FALSE)=0,"Sin costo",VLOOKUP(F140,'[2]TOTAL Aumento'!$H$15:$Z$472,18,FALSE)) -> 22000 | R140: Incremento | S140: =+IF(VLOOKUP(F140,'[3]tarifas 2024'!$H$15:$W$386,16,FALSE)=0,"Sin costo",VLOOKUP(F140,'[3]tarifas 2024'!$H$15:$W$386,16,FALSE)) -> 24200
D141: =+D140+1 -> 3 | E141: 3ENVIAR A TARJETA DE CRÉDITO | F141: Cuota de manejo Tarjeta de Crédito Ventura Plaza - Gold (mes vencido) | I141: 19600 | J141: 23000 | L141: =#REF!=J141 ->  | M141: 27990 | P141: =+IF(VLOOKUP(F141,'[1]TOTAL Aumento'!$H$15:$X$504,16,FALSE)=0,"Sin costo",VLOOKUP(F141,'[1]TOTAL Aumento'!$H$15:$X$504,16,FALSE)) -> 19600 | Q141: =+IF(VLOOKUP(F141,'[2]TOTAL Aumento'!$H$15:$AE$472,18,FALSE)=0,"Sin costo",VLOOKUP(F141,'[2]TOTAL Aumento'!$H$15:$Z$472,18,FALSE)) -> 23000 | R141: Incremento | S141: =+IF(VLOOKUP(F141,'[3]tarifas 2024'!$H$15:$W$386,16,FALSE)=0,"Sin costo",VLOOKUP(F141,'[3]tarifas 2024'!$H$15:$W$386,16,FALSE)) -> 25300
D142: 4 | E142: 4ENVIAR A TARJETA DE CRÉDITO | F142: Cuota de manejo Tarjeta de Crédito Ventura Plaza - Clásica Amparada (mes vencido) | I142: 16300 | J142: 17000 | L142: =#REF!=J142 ->  | M142: 19990 | P142: =+IF(VLOOKUP(F142,'[1]TOTAL Aumento'!$H$15:$X$504,16,FALSE)=0,"Sin costo",VLOOKUP(F142,'[1]TOTAL Aumento'!$H$15:$X$504,16,FALSE)) -> 16300 | Q142: =+IF(VLOOKUP(F142,'[2]TOTAL Aumento'!$H$15:$AE$472,18,FALSE)=0,"Sin costo",VLOOKUP(F142,'[2]TOTAL Aumento'!$H$15:$Z$472,18,FALSE)) -> 17000 | R142: Incremento | S142: =+IF(VLOOKUP(F142,'[3]tarifas 2024'!$H$15:$W$386,16,FALSE)=0,"Sin costo",VLOOKUP(F142,'[3]tarifas 2024'!$H$15:$W$386,16,FALSE)) -> 18700
D143: 5 | E143: 5ENVIAR A TARJETA DE CRÉDITO | F143: Cuota de manejo Tarjeta de Crédito Ventura Plaza - Gold Amparada (mes vencido) | I143: 16800 | J143: 18000 | L143: =#REF!=J143 ->  | M143: 20990 | P143: =+IF(VLOOKUP(F143,'[1]TOTAL Aumento'!$H$15:$X$504,16,FALSE)=0,"Sin costo",VLOOKUP(F143,'[1]TOTAL Aumento'!$H$15:$X$504,16,FALSE)) -> 16800 | Q143: =+IF(VLOOKUP(F143,'[2]TOTAL Aumento'!$H$15:$AE$472,18,FALSE)=0,"Sin costo",VLOOKUP(F143,'[2]TOTAL Aumento'!$H$15:$Z$472,18,FALSE)) -> 18000 | R143: =IF(Q143>P143,"Incremento",0) -> Incremento | S143: =+IF(VLOOKUP(F143,'[3]tarifas 2024'!$H$15:$W$386,16,FALSE)=0,"Sin costo",VLOOKUP(F143,'[3]tarifas 2024'!$H$15:$W$386,16,FALSE)) -> 19800
D144: 6 | E144: 6ENVIAR A TARJETA DE CRÉDITO | F144: Cuota de manejo Tarjeta de Crédito Roott + Co. - Gold (mes vencido) | I144: 19600 | J144: 22000 | L144: =#REF!=J144 ->  | M144: 26990 | P144: =+IF(VLOOKUP(F144,'[1]TOTAL Aumento'!$H$15:$X$504,16,FALSE)=0,"Sin costo",VLOOKUP(F144,'[1]TOTAL Aumento'!$H$15:$X$504,16,FALSE)) ->  | Q144: =+IF(VLOOKUP(F144,'[2]TOTAL Aumento'!$H$15:$AE$472,18,FALSE)=0,"Sin costo",VLOOKUP(F144,'[2]TOTAL Aumento'!$H$15:$Z$472,18,FALSE)) ->  | S144: =+IF(VLOOKUP(F144,'[3]tarifas 2024'!$H$15:$W$386,16,FALSE)=0,"Sin costo",VLOOKUP(F144,'[3]tarifas 2024'!$H$15:$W$386,16,FALSE)) -> 24200
D145: 7 | E145: 7ENVIAR A TARJETA DE CRÉDITO | F145: Cuota de manejo Tarjeta de Crédito Roott + Co. - Gold Amparada (mes vencido) | I145: 16800 | J145: 19000 | L145: =#REF!=J145 ->  | M145: 20990 | P145: =+IF(VLOOKUP(F145,'[1]TOTAL Aumento'!$H$15:$X$504,16,FALSE)=0,"Sin costo",VLOOKUP(F145,'[1]TOTAL Aumento'!$H$15:$X$504,16,FALSE)) ->  | Q145: =+IF(VLOOKUP(F145,'[2]TOTAL Aumento'!$H$15:$AE$472,18,FALSE)=0,"Sin costo",VLOOKUP(F145,'[2]TOTAL Aumento'!$H$15:$Z$472,18,FALSE)) ->  | S145: =+IF(VLOOKUP(F145,'[3]tarifas 2024'!$H$15:$W$386,16,FALSE)=0,"Sin costo",VLOOKUP(F145,'[3]tarifas 2024'!$H$15:$W$386,16,FALSE)) -> 20900
D146: 8 | E146: 8ENVIAR A TARJETA DE CRÉDITO | F146: Cuota de manejo Tarjeta de Crédito Ferretería Samir Oro (mes vencido) | I146: 21350 | J146: 24000 | L146: =#REF!=J146 ->  | M146: 27990 | P146: =+IF(VLOOKUP(F146,'[1]TOTAL Aumento'!$H$15:$X$504,16,FALSE)=0,"Sin costo",VLOOKUP(F146,'[1]TOTAL Aumento'!$H$15:$X$504,16,FALSE)) -> 21350 | Q146: =+IF(VLOOKUP(F146,'[2]TOTAL Aumento'!$H$15:$AE$472,18,FALSE)=0,"Sin costo",VLOOKUP(F146,'[2]TOTAL Aumento'!$H$15:$Z$472,18,FALSE)) -> 24000 | R146: Incremento | S146: =+IF(VLOOKUP(F146,'[3]tarifas 2024'!$H$15:$W$386,16,FALSE)=0,"Sin costo",VLOOKUP(F146,'[3]tarifas 2024'!$H$15:$W$386,16,FALSE)) -> 26400
D147: 9 | E147: 9ENVIAR A TARJETA DE CRÉDITO | F147: Cuota de manejo Tarjeta de Crédito Ferretería Samir Amparada Oro (mes vencido) | I147: 18150 | J147: 19000 | L147: =#REF!=J147 ->  | M147: 20990 | P147: =+IF(VLOOKUP(F147,'[1]TOTAL Aumento'!$H$15:$X$504,16,FALSE)=0,"Sin costo",VLOOKUP(F147,'[1]TOTAL Aumento'!$H$15:$X$504,16,FALSE)) -> 18150 | Q147: =+IF(VLOOKUP(F147,'[2]TOTAL Aumento'!$H$15:$AE$472,18,FALSE)=0,"Sin costo",VLOOKUP(F147,'[2]TOTAL Aumento'!$H$15:$Z$472,18,FALSE)) -> 19000 | R147: Incremento | S147: =+IF(VLOOKUP(F147,'[3]tarifas 2024'!$H$15:$W$386,16,FALSE)=0,"Sin costo",VLOOKUP(F147,'[3]tarifas 2024'!$H$15:$W$386,16,FALSE)) -> 20900
C148: TARIFAS PRODUCTOS Y SERVICIOS BANCARIOS | I148: A partir del 13 de Marzo de 2023 | J148: A partir del 01 de Diciembre de 2023 | M148: =+M137 -> A partir del 02 de Julio de 2024 | R148: 0
C149: ENVIAR A TARJETA DE CRÉDITO | I149: TARIFA | J149: TARIFA | L149: =#REF!=J149 ->  | M149: TARIFA | R149: 0
C150: Tarjeta de Crédito (Cuota de Manejo)* 6* | D150: 1 | E150: =+D150&$C$149 -> 1ENVIAR A TARJETA DE CRÉDITO | F150: Cuota de manejo Tarjeta de Crédito LifeMiles Oro (mes vencido) | I150: 18400 | J150: 18700 | M150: 23990 | P150: =+IF(VLOOKUP(F150,'[1]TOTAL Aumento'!$H$15:$X$504,16,FALSE)=0,"Sin costo",VLOOKUP(F150,'[1]TOTAL Aumento'!$H$15:$X$504,16,FALSE)) -> 18400 | Q150: =+IF(VLOOKUP(F150,'[2]TOTAL Aumento'!$H$15:$AE$472,18,FALSE)=0,"Sin costo",VLOOKUP(F150,'[2]TOTAL Aumento'!$H$15:$Z$472,18,FALSE)) -> 18700 | R150: Incremento | S150: =+IF(VLOOKUP(F150,'[3]tarifas 2024'!$H$15:$W$386,16,FALSE)=0,"Sin costo",VLOOKUP(F150,'[3]tarifas 2024'!$H$15:$W$386,16,FALSE)) -> 22000
D151: =+D150+1 -> 2 | E151: 2ENVIAR A TARJETA DE CRÉDITO | F151: Cuota de manejo Tarjeta de Crédito LifeMiles Platinum (mes vencido) | I151: 20000 | J151: 20300 | M151: 27990 | P151: =+IF(VLOOKUP(F151,'[1]TOTAL Aumento'!$H$15:$X$504,16,FALSE)=0,"Sin costo",VLOOKUP(F151,'[1]TOTAL Aumento'!$H$15:$X$504,16,FALSE)) -> 20000 | Q151: =+IF(VLOOKUP(F151,'[2]TOTAL Aumento'!$H$15:$AE$472,18,FALSE)=0,"Sin costo",VLOOKUP(F151,'[2]TOTAL Aumento'!$H$15:$Z$472,18,FALSE)) -> 20300 | R151: Incremento | S151: =+IF(VLOOKUP(F151,'[3]tarifas 2024'!$H$15:$W$386,16,FALSE)=0,"Sin costo",VLOOKUP(F151,'[3]tarifas 2024'!$H$15:$W$386,16,FALSE)) -> 25000
D152: 3 | E152: 3ENVIAR A TARJETA DE CRÉDITO | F152: Cuota de manejo Tarjeta de Crédito LifeMilesSignature (mes vencido) | I152: 25500 | J152: 25900 | M152: 32990 | P152: 25500 | Q152: =+IF(VLOOKUP(F152,'[2]TOTAL Aumento'!$H$15:$AE$472,18,FALSE)=0,"Sin costo",VLOOKUP(F152,'[2]TOTAL Aumento'!$H$15:$Z$472,18,FALSE)) ->  | S152: =+IF(VLOOKUP(F152,'[3]tarifas 2024'!$H$15:$W$386,16,FALSE)=0,"Sin costo",VLOOKUP(F152,'[3]tarifas 2024'!$H$15:$W$386,16,FALSE)) -> 29500
D153: 4 | E153: 4ENVIAR A TARJETA DE CRÉDITO | F153: Cuota de manejo Tarjeta de Crédito LifeMiles Amparada Oro (mes vencido) | I153: 15600 | J153: 15850 | M153: 18990 | P153: =+IF(VLOOKUP(F153,'[1]TOTAL Aumento'!$H$15:$X$504,16,FALSE)=0,"Sin costo",VLOOKUP(F153,'[1]TOTAL Aumento'!$H$15:$X$504,16,FALSE)) -> 15600 | Q153: =+IF(VLOOKUP(F153,'[2]TOTAL Aumento'!$H$15:$AE$472,18,FALSE)=0,"Sin costo",VLOOKUP(F153,'[2]TOTAL Aumento'!$H$15:$Z$472,18,FALSE)) -> 15850 | R153: Incremento | S153: =+IF(VLOOKUP(F153,'[3]tarifas 2024'!$H$15:$W$386,16,FALSE)=0,"Sin costo",VLOOKUP(F153,'[3]tarifas 2024'!$H$15:$W$386,16,FALSE)) -> 17450
D154: 5 | E154: 5ENVIAR A TARJETA DE CRÉDITO | F154: Cuota de manejo Tarjeta de Crédito LifeMiles Amparada Platinum (mes vencido) | I154: 17000 | J154: 17300 | M154: 20990 | P154: =+IF(VLOOKUP(F154,'[1]TOTAL Aumento'!$H$15:$X$504,16,FALSE)=0,"Sin costo",VLOOKUP(F154,'[1]TOTAL Aumento'!$H$15:$X$504,16,FALSE)) -> 17000 | Q154: =+IF(VLOOKUP(F154,'[2]TOTAL Aumento'!$H$15:$AE$472,18,FALSE)=0,"Sin costo",VLOOKUP(F154,'[2]TOTAL Aumento'!$H$15:$Z$472,18,FALSE)) -> 17300 | R154: Incremento | S154: =+IF(VLOOKUP(F154,'[3]tarifas 2024'!$H$15:$W$386,16,FALSE)=0,"Sin costo",VLOOKUP(F154,'[3]tarifas 2024'!$H$15:$W$386,16,FALSE)) -> 19050
D155: 6 | E155: 6ENVIAR A TARJETA DE CRÉDITO | F155: Cuota de manejo Tarjeta de Crédito LifeMiles Amparada Signature(mes vencido) | I155: 21650 | J155: 22000 | L155: =#REF!=J155 ->  | M155: 26990 | P155: 21650 | Q155: =+IF(VLOOKUP(F155,'[2]TOTAL Aumento'!$H$15:$AE$472,18,FALSE)=0,"Sin costo",VLOOKUP(F155,'[2]TOTAL Aumento'!$H$15:$Z$472,18,FALSE)) ->  | S155: =+IF(VLOOKUP(F155,'[3]tarifas 2024'!$H$15:$W$386,16,FALSE)=0,"Sin costo",VLOOKUP(F155,'[3]tarifas 2024'!$H$15:$W$386,16,FALSE)) -> 24200
D156: 7 | E156: 7ENVIAR A TARJETA DE CRÉDITO | F156: Cuota de manejo Tarjeta de Crédito Laika - Clásica (mes vencido)** | I156: 19200 | J156: 19500 | M156: 23990 | P156: =+IF(VLOOKUP(F156,'[1]TOTAL Aumento'!$H$15:$X$504,16,FALSE)=0,"Sin costo",VLOOKUP(F156,'[1]TOTAL Aumento'!$H$15:$X$504,16,FALSE)) -> 19200 | Q156: =+IF(VLOOKUP(F156,'[2]TOTAL Aumento'!$H$15:$AE$472,18,FALSE)=0,"Sin costo",VLOOKUP(F156,'[2]TOTAL Aumento'!$H$15:$Z$472,18,FALSE)) -> 19500 | R156: Incremento | S156: =+IF(VLOOKUP(F156,'[3]tarifas 2024'!$H$15:$W$386,16,FALSE)=0,"Sin costo",VLOOKUP(F156,'[3]tarifas 2024'!$H$15:$W$386,16,FALSE)) -> 21450
D157: 8 | E157: 8ENVIAR A TARJETA DE CRÉDITO | F157: Cuota de manejo Tarjeta de Crédito Laika - Gold (mes vencido)** | I157: 19600 | J157: 19900 | M157: 24990 | P157: =+IF(VLOOKUP(F157,'[1]TOTAL Aumento'!$H$15:$X$504,16,FALSE)=0,"Sin costo",VLOOKUP(F157,'[1]TOTAL Aumento'!$H$15:$X$504,16,FALSE)) -> 19600 | Q157: =+IF(VLOOKUP(F157,'[2]TOTAL Aumento'!$H$15:$AE$472,18,FALSE)=0,"Sin costo",VLOOKUP(F157,'[2]TOTAL Aumento'!$H$15:$Z$472,18,FALSE)) -> 19900 | R157: Incremento | S157: =+IF(VLOOKUP(F157,'[3]tarifas 2024'!$H$15:$W$386,16,FALSE)=0,"Sin costo",VLOOKUP(F157,'[3]tarifas 2024'!$H$15:$W$386,16,FALSE)) -> 21900
D158: 9 | E158: 9ENVIAR A TARJETA DE CRÉDITO | F158: Cuota de manejo Tarjeta de Crédito Laika - Platinum (mes vencido)** | I158: 21350 | J158: 21700 | M158: 25990 | P158: =+IF(VLOOKUP(F158,'[1]TOTAL Aumento'!$H$15:$X$504,16,FALSE)=0,"Sin costo",VLOOKUP(F158,'[1]TOTAL Aumento'!$H$15:$X$504,16,FALSE)) -> 21350 | Q158: =+IF(VLOOKUP(F158,'[2]TOTAL Aumento'!$H$15:$AE$472,18,FALSE)=0,"Sin costo",VLOOKUP(F158,'[2]TOTAL Aumento'!$H$15:$Z$472,18,FALSE)) -> 21700 | R158: Incremento | S158: =+IF(VLOOKUP(F158,'[3]tarifas 2024'!$H$15:$W$386,16,FALSE)=0,"Sin costo",VLOOKUP(F158,'[3]tarifas 2024'!$H$15:$W$386,16,FALSE)) -> 23900
D159: 10 | E159: 10ENVIAR A TARJETA DE CRÉDITO | F159: Cuota de manejo Tarjeta de Crédito Payvalida - Clásica (mes vencido) | I159: 22450 | M159: =+S159 -> 24700 | Q159: =+#REF! ->  | S159: =+IF(VLOOKUP(F159,'[3]tarifas 2024'!$H$15:$W$386,16,FALSE)=0,"Sin costo",VLOOKUP(F159,'[3]tarifas 2024'!$H$15:$W$386,16,FALSE)) -> 24700
D160: 11 | E160: 11ENVIAR A TARJETA DE CRÉDITO | F160: Cuota de manejo Tarjeta de Crédito amparada Payvalida - Clásica (mes vencido) | I160: 19000 | M160: 20900 | Q160: =+#REF! ->  | S160: =+IF(VLOOKUP(F160,'[3]tarifas 2024'!$H$15:$W$386,16,FALSE)=0,"Sin costo",VLOOKUP(F160,'[3]tarifas 2024'!$H$15:$W$386,16,FALSE)) -> 20900
D161: 12 | E161: 12ENVIAR A TARJETA DE CRÉDITO | F161: Cuota de manejo Tarjeta de Crédito amparada Laika - Clásica (mes vencido)** | I161: 16300 | J161: 16550 | M161: 19990 | P161: =+IF(VLOOKUP(F161,'[1]TOTAL Aumento'!$H$15:$X$504,16,FALSE)=0,"Sin costo",VLOOKUP(F161,'[1]TOTAL Aumento'!$H$15:$X$504,16,FALSE)) -> 16300 | Q161: =+IF(VLOOKUP(F161,'[2]TOTAL Aumento'!$H$15:$AE$472,18,FALSE)=0,"Sin costo",VLOOKUP(F161,'[2]TOTAL Aumento'!$H$15:$Z$472,18,FALSE)) -> 16550 | R161: Incremento | S161: =+IF(VLOOKUP(F161,'[3]tarifas 2024'!$H$15:$W$386,16,FALSE)=0,"Sin costo",VLOOKUP(F161,'[3]tarifas 2024'!$H$15:$W$386,16,FALSE)) -> 17950
D162: 13 | E162: 13ENVIAR A TARJETA DE CRÉDITO | F162: Cuota de manejo Tarjeta de Crédito amparada Laika - Gold (mes vencido)** | I162: 16800 | J162: 17100 | M162: 20990 | P162: =+IF(VLOOKUP(F162,'[1]TOTAL Aumento'!$H$15:$X$504,16,FALSE)=0,"Sin costo",VLOOKUP(F162,'[1]TOTAL Aumento'!$H$15:$X$504,16,FALSE)) -> 16800 | Q162: =+IF(VLOOKUP(F162,'[2]TOTAL Aumento'!$H$15:$AE$472,18,FALSE)=0,"Sin costo",VLOOKUP(F162,'[2]TOTAL Aumento'!$H$15:$Z$472,18,FALSE)) -> 17100 | R162: Incremento | S162: =+IF(VLOOKUP(F162,'[3]tarifas 2024'!$H$15:$W$386,16,FALSE)=0,"Sin costo",VLOOKUP(F162,'[3]tarifas 2024'!$H$15:$W$386,16,FALSE)) -> 18500
D163: =+D160+1 -> 12 | E163: 12ENVIAR A TARJETA DE CRÉDITO | F163: Cuota de manejo Tarjeta de Crédito amparada Laika - Platinum (mes vencido)** | I163: 18150 | J163: 18450 | M163: 21990 | P163: =+IF(VLOOKUP(F163,'[1]TOTAL Aumento'!$H$15:$X$504,16,FALSE)=0,"Sin costo",VLOOKUP(F163,'[1]TOTAL Aumento'!$H$15:$X$504,16,FALSE)) -> 18150 | Q163: =+IF(VLOOKUP(F163,'[2]TOTAL Aumento'!$H$15:$AE$472,18,FALSE)=0,"Sin costo",VLOOKUP(F163,'[2]TOTAL Aumento'!$H$15:$Z$472,18,FALSE)) -> 18450 | R163: Incremento | S163: =+IF(VLOOKUP(F163,'[3]tarifas 2024'!$H$15:$W$386,16,FALSE)=0,"Sin costo",VLOOKUP(F163,'[3]tarifas 2024'!$H$15:$W$386,16,FALSE)) -> 20000
F164: Cuota de manejo Tarjeta de Crédito Boomerang - Clásica (mes vencido)** | M164: 24200
D165: =+D162+1 -> 14 | E165: 14ENVIAR A TARJETA DE CRÉDITO | F165: Cuota de manejo Tarjeta de Crédito Boomerang - Platinum (mes vencido)** | I165: 18150 | J165: 18450 | M165: 26400 | P165: =+IF(VLOOKUP(F165,'[1]TOTAL Aumento'!$H$15:$X$504,16,FALSE)=0,"Sin costo",VLOOKUP(F165,'[1]TOTAL Aumento'!$H$15:$X$504,16,FALSE)) ->  | Q165: =+IF(VLOOKUP(F165,'[2]TOTAL Aumento'!$H$15:$AE$472,18,FALSE)=0,"Sin costo",VLOOKUP(F165,'[2]TOTAL Aumento'!$H$15:$Z$472,18,FALSE)) ->  | S165: =+IF(VLOOKUP(F165,'[3]tarifas 2024'!$H$15:$W$386,16,FALSE)=0,"Sin costo",VLOOKUP(F165,'[3]tarifas 2024'!$H$15:$W$386,16,FALSE)) -> 
C166: * El cobro de cuota de manejo aplica solo si la usa durante el mes y/o tiene saldo de cartera al corte, aplican sólo para tarjetas que se haya acordado en la campaña de lealtad del Banco o tarjetas de origen convenios de nómina matriculados a partir del 02 de noviembre de 2016. | L166: =#REF!=J166 -> 
C167: ** Las tarjetas de crédito gold y clásica asociadas a un convenio de oferta de valor de nómina tendrán una exoneración de cobro de cuota de manejo los primeros 6 meses desde su activación. Una vez se superen los 6 meses de exoneración, se cobrará cuota de manejo únicamente si la tarjeta de crédito presenta saldo en el momento en que se realiza el corte mensual. | L167: =#REF!=J167 -> 
C168: (6)Sólo si la usa durante el mes y/o tiene saldo de cartera al corte. Aplican sólo para tarjetas radicadas a partir del 1 de agosto del 2016. Por el pago de estas comisiones tendra acceso a las siguientes transacciones establecidas por la ley 2009 del 27 de Diciembre de 2019: • Avance en oficina. • Consulta de saldo en cajero de la misma entidad. • Reposición por deterioro. | L168: =#REF!=J168 -> 
C169: (7) Exoneración de cuota de manejo por el primer año a partir del segundo año genera cobro.
C170: TARIFAS PRODUCTOS Y SERVICIOS BANCARIOS | I170: A partir del 13 de Marzo de 2023 | J170: A partir del 01 de Diciembre de 2023 | M170: =+M148 -> A partir del 02 de Julio de 2024
I171: TARIFA | J171: TARIFA | M171: TARIFA
C172: Tarjeta de Crédito* | D172: 1 | E172: T1ENVIAR A TARJETA DE CRÉDITO | F172: Consulta de cupo y transacciones en datafonos de establecimientos comerciales P.O.S. | I172: 5700 | J172: 5800 | L172: =#REF!=J172 ->  | M172: =+S172 -> 6400 | P172: 5700 | Q172: 5800 | R172: =IF(Q172>P172,"Incremento",0) -> Incremento | S172: =+IF(VLOOKUP(F172,'[3]tarifas 2024'!$H$15:$W$386,16,FALSE)=0,"Sin costo",VLOOKUP(F172,'[3]tarifas 2024'!$H$15:$W$386,16,FALSE)) -> 6400
D173: =+D172+1 -> 2 | E173: T2ENVIAR A TARJETA DE CRÉDITO | F173: Avances en Cajeros Automáticos Otras Redes | H173: 116020 | I173: 6180 | J173: 6484.866 | L173: =#REF!=J173 ->  | M173: =+S173 -> 7150 | P173: =+IF(VLOOKUP(F173,'[1]TOTAL Aumento'!$H$15:$X$504,16,FALSE)=0,"Sin costo",VLOOKUP(F173,'[1]TOTAL Aumento'!$H$15:$X$504,16,FALSE)) -> 6180 | Q173: =+IF(VLOOKUP(F173,'[2]TOTAL Aumento'!$H$15:$AE$472,18,FALSE)=0,"Sin costo",VLOOKUP(F173,'[2]TOTAL Aumento'!$H$15:$Z$472,18,FALSE)) -> 6484.866 | R173: Incremento | S173: 7150
D174: 3 | E174: T3ENVIAR A TARJETA DE CRÉDITO | F174: Consulta de cupo en Cajeros Automáticos Red Aval | I174: 6650 | J174: 6750 | L174: =#REF!=J174 ->  | M174: 7450 | P174: =+IF(VLOOKUP(F174,'[1]TOTAL Aumento'!$H$15:$X$504,16,FALSE)=0,"Sin costo",VLOOKUP(F174,'[1]TOTAL Aumento'!$H$15:$X$504,16,FALSE)) -> 6650 | Q174: =+IF(VLOOKUP(F174,'[2]TOTAL Aumento'!$H$15:$AE$472,18,FALSE)=0,"Sin costo",VLOOKUP(F174,'[2]TOTAL Aumento'!$H$15:$Z$472,18,FALSE)) -> 6750 | R174: Incremento | S174: =+IF(VLOOKUP(F174,'[3]tarifas 2024'!$H$15:$W$386,16,FALSE)=0,"Sin costo",VLOOKUP(F174,'[3]tarifas 2024'!$H$15:$W$386,16,FALSE)) -> 7450
D175: 4 | E175: T4ENVIAR A TARJETA DE CRÉDITO | F175: Avances por Internet a cuentas AVAL | H175: 118045 | I175: 6250 | J175: 6350 | L175: =#REF!=J175 ->  | M175: 7000 | P175: =+IF(VLOOKUP(F175,'[1]TOTAL Aumento'!$H$15:$X$504,16,FALSE)=0,"Sin costo",VLOOKUP(F175,'[1]TOTAL Aumento'!$H$15:$X$504,16,FALSE)) -> 6250 | Q175: =+IF(VLOOKUP(F175,'[2]TOTAL Aumento'!$H$15:$AE$472,18,FALSE)=0,"Sin costo",VLOOKUP(F175,'[2]TOTAL Aumento'!$H$15:$Z$472,18,FALSE)) -> 6350 | R175: Incremento | S175: =+IF(VLOOKUP(F175,'[3]tarifas 2024'!$H$15:$W$386,16,FALSE)=0,"Sin costo",VLOOKUP(F175,'[3]tarifas 2024'!$H$15:$W$386,16,FALSE)) -> 7000
D176: 5 | E176: T5ENVIAR A TARJETA DE CRÉDITO | F176: Avances por Audiovillas a cuentas propias | H176: 120055 | I176: 6900 | J176: 7050 | L176: =#REF!=J176 ->  | M176: 7800 | P176: =+IF(VLOOKUP(F176,'[1]TOTAL Aumento'!$H$15:$X$504,16,FALSE)=0,"Sin costo",VLOOKUP(F176,'[1]TOTAL Aumento'!$H$15:$X$504,16,FALSE)) -> 6900 | Q176: =+IF(VLOOKUP(F176,'[2]TOTAL Aumento'!$H$15:$AE$472,18,FALSE)=0,"Sin costo",VLOOKUP(F176,'[2]TOTAL Aumento'!$H$15:$Z$472,18,FALSE)) -> 7050 | R176: Incremento | S176: =+IF(VLOOKUP(F176,'[3]tarifas 2024'!$H$15:$W$386,16,FALSE)=0,"Sin costo",VLOOKUP(F176,'[3]tarifas 2024'!$H$15:$W$386,16,FALSE)) -> 7800
D177: 6 | E177: T6ENVIAR A TARJETA DE CRÉDITO | F177: Consulta de cupo en Pin Pad Oficina | I177: 9150 | J177: 9300 | K177: 7 | L177: =#REF!=J177 ->  | M177: 10250 | P177: =+IF(VLOOKUP(F177,'[1]TOTAL Aumento'!$H$15:$X$504,16,FALSE)=0,"Sin costo",VLOOKUP(F177,'[1]TOTAL Aumento'!$H$15:$X$504,16,FALSE)) -> 9150 | Q177: =+IF(VLOOKUP(F177,'[2]TOTAL Aumento'!$H$15:$AE$472,18,FALSE)=0,"Sin costo",VLOOKUP(F177,'[2]TOTAL Aumento'!$H$15:$Z$472,18,FALSE)) -> 9300 | R177: Incremento | S177: =+IF(VLOOKUP(F177,'[3]tarifas 2024'!$H$15:$W$386,16,FALSE)=0,"Sin costo",VLOOKUP(F177,'[3]tarifas 2024'!$H$15:$W$386,16,FALSE)) -> 10250
D178: 7 | E178: T7ENVIAR A TARJETA DE CRÉDITO | F178: Avance sin Tarjeta (OTP) | I178: 10900 | J178: 11100 | L178: =#REF!=J178 ->  | M178: 12250 | P178: =+IF(VLOOKUP(F178,'[1]TOTAL Aumento'!$H$15:$X$504,16,FALSE)=0,"Sin costo",VLOOKUP(F178,'[1]TOTAL Aumento'!$H$15:$X$504,16,FALSE)) -> 10900 | Q178: =+IF(VLOOKUP(F178,'[2]TOTAL Aumento'!$H$15:$AE$472,18,FALSE)=0,"Sin costo",VLOOKUP(F178,'[2]TOTAL Aumento'!$H$15:$Z$472,18,FALSE)) -> 11100 | R178: Incremento | S178: =+IF(VLOOKUP(F178,'[3]tarifas 2024'!$H$15:$W$386,16,FALSE)=0,"Sin costo",VLOOKUP(F178,'[3]tarifas 2024'!$H$15:$W$386,16,FALSE)) -> 12250
D179: 8 | E179: T8ENVIAR A TARJETA DE CRÉDITO | F179: Consulta de cupo y otras transacciones Cajeros Automáticos Otras Redes | I179: 11700 | J179: 11900 | L179: =#REF!=J179 ->  | M179: 13100 | P179: =+IF(VLOOKUP(F179,'[1]TOTAL Aumento'!$H$15:$X$504,16,FALSE)=0,"Sin costo",VLOOKUP(F179,'[1]TOTAL Aumento'!$H$15:$X$504,16,FALSE)) -> 11700 | Q179: =+IF(VLOOKUP(F179,'[2]TOTAL Aumento'!$H$15:$AE$472,18,FALSE)=0,"Sin costo",VLOOKUP(F179,'[2]TOTAL Aumento'!$H$15:$Z$472,18,FALSE)) -> 11900 | R179: Incremento | S179: =+IF(VLOOKUP(F179,'[3]tarifas 2024'!$H$15:$W$386,16,FALSE)=0,"Sin costo",VLOOKUP(F179,'[3]tarifas 2024'!$H$15:$W$386,16,FALSE)) -> 13100
D180: 9 | E180: T9ENVIAR A TARJETA DE CRÉDITO | F180: Avances Cajeros Automáticos Red Aval | H180: 115030 | I180: 12750 | J180: 12950 | K180: 7 | L180: =#REF!=J180 ->  | M180: 14900 | P180: =+IF(VLOOKUP(F180,'[1]TOTAL Aumento'!$H$15:$X$504,16,FALSE)=0,"Sin costo",VLOOKUP(F180,'[1]TOTAL Aumento'!$H$15:$X$504,16,FALSE)) -> 12750 | Q180: =+IF(VLOOKUP(F180,'[2]TOTAL Aumento'!$H$15:$AE$472,18,FALSE)=0,"Sin costo",VLOOKUP(F180,'[2]TOTAL Aumento'!$H$15:$Z$472,18,FALSE)) -> 12950 | R180: Incremento | S180: 14900
D181: 10 | E181: T10ENVIAR A TARJETA DE CRÉDITO | F181: Avances en Pin Pad Oficina | H181: 113005 | I181: 17000 | J181: 17300 | L181: =#REF!=J181 ->  | M181: 19900 | P181: =+IF(VLOOKUP(F181,'[1]TOTAL Aumento'!$H$15:$X$504,16,FALSE)=0,"Sin costo",VLOOKUP(F181,'[1]TOTAL Aumento'!$H$15:$X$504,16,FALSE)) -> 17000 | Q181: =+IF(VLOOKUP(F181,'[2]TOTAL Aumento'!$H$15:$AE$472,18,FALSE)=0,"Sin costo",VLOOKUP(F181,'[2]TOTAL Aumento'!$H$15:$Z$472,18,FALSE)) -> 17300 | R181: Incremento | S181: 19900
D182: 11 | E182: T11ENVIAR A TARJETA DE CRÉDITO | F182: Consulta de cupo y otras transacciones Internacionales (cajeros Cirrus y P.O.S.) | H182: 117010 | I182: 23350 | J182: 23750 | L182: =#REF!=J182 ->  | M182: 26150 | P182: =+IF(VLOOKUP(F182,'[1]TOTAL Aumento'!$H$15:$X$504,16,FALSE)=0,"Sin costo",VLOOKUP(F182,'[1]TOTAL Aumento'!$H$15:$X$504,16,FALSE)) -> 23350 | Q182: =+IF(VLOOKUP(F182,'[2]TOTAL Aumento'!$H$15:$AE$472,18,FALSE)=0,"Sin costo",VLOOKUP(F182,'[2]TOTAL Aumento'!$H$15:$Z$472,18,FALSE)) -> 23750 | R182: Incremento | S182: =+IF(VLOOKUP(F182,'[3]tarifas 2024'!$H$15:$W$386,16,FALSE)=0,"Sin costo",VLOOKUP(F182,'[3]tarifas 2024'!$H$15:$W$386,16,FALSE)) -> 26150
D183: 12 | E183: T12ENVIAR A TARJETA DE CRÉDITO | F183: Reposición de tarjeta por deterioro y pérdida | H183: 103015 | I183: 31000 | J183: 31500 | L183: =#REF!=J183 ->  | M183: 37500 | P183: =+IF(VLOOKUP(F183,'[1]TOTAL Aumento'!$H$15:$X$504,16,FALSE)=0,"Sin costo",VLOOKUP(F183,'[1]TOTAL Aumento'!$H$15:$X$504,16,FALSE)) -> 31000 | Q183: =+IF(VLOOKUP(F183,'[2]TOTAL Aumento'!$H$15:$AE$472,18,FALSE)=0,"Sin costo",VLOOKUP(F183,'[2]TOTAL Aumento'!$H$15:$Z$472,18,FALSE)) -> 31500 | R183: Incremento | S183: =+IF(VLOOKUP(F183,'[3]tarifas 2024'!$H$15:$W$386,16,FALSE)=0,"Sin costo",VLOOKUP(F183,'[3]tarifas 2024'!$H$15:$W$386,16,FALSE)) -> 37500
D184: 13 | E184: T13ENVIAR A TARJETA DE CRÉDITO | F184: Avances (cajeros Cirrus y P.O.S.) | H184: 117020 | I184: 31450 | J184: 31950 | L184: =#REF!=J184 ->  | M184: 35150 | P184: =+IF(VLOOKUP(F184,'[1]TOTAL Aumento'!$H$15:$X$504,16,FALSE)=0,"Sin costo",VLOOKUP(F184,'[1]TOTAL Aumento'!$H$15:$X$504,16,FALSE)) -> 31450 | Q184: =+IF(VLOOKUP(F184,'[2]TOTAL Aumento'!$H$15:$AE$472,18,FALSE)=0,"Sin costo",VLOOKUP(F184,'[2]TOTAL Aumento'!$H$15:$Z$472,18,FALSE)) -> 31950 | R184: Incremento | S184: =+IF(VLOOKUP(F184,'[3]tarifas 2024'!$H$15:$W$386,16,FALSE)=0,"Sin costo",VLOOKUP(F184,'[3]tarifas 2024'!$H$15:$W$386,16,FALSE)) -> 35150
D185: 14 | E185: T14ENVIAR A TARJETA DE CRÉDITO | F185: Consultas de la tarjeta por internet | I185: Sin costo | J185: Sin costo | L185: =#REF!=J185 ->  | M185: Sin costo | P185: =+IF(VLOOKUP(F185,'[1]TOTAL Aumento'!$H$15:$X$504,16,FALSE)=0,"Sin costo",VLOOKUP(F185,'[1]TOTAL Aumento'!$H$15:$X$504,16,FALSE)) -> Sin costo | Q185: =+IF(VLOOKUP(F185,'[2]TOTAL Aumento'!$H$15:$AE$472,18,FALSE)=0,"Sin costo",VLOOKUP(F185,'[2]TOTAL Aumento'!$H$15:$Z$472,18,FALSE)) -> Sin costo | R185: 0 | S185: =+IF(VLOOKUP(F185,'[3]tarifas 2024'!$H$15:$W$386,16,FALSE)=0,"Sin costo",VLOOKUP(F185,'[3]tarifas 2024'!$H$15:$W$386,16,FALSE)) -> Sin costo
B186: G | C186: * Comisión del 2,90% aplicada sobre las compras internacionales | L186: =#REF!=J186 -> 
C187: Remesas al Cobro - plazas con oficina AV Villas | D187: 1 | E187: =+D187&B$186 -> 1G | F187: Mínima | H187: 123015 | I187: 19150 | J187: 19450 | L187: =#REF!=J187 ->  | M187: =+S187 -> 21400 | P187: =+IF(VLOOKUP(F187,'[1]TOTAL Aumento'!$H$15:$X$504,16,FALSE)=0,"Sin costo",VLOOKUP(F187,'[1]TOTAL Aumento'!$H$15:$X$504,16,FALSE)) -> 19150 | Q187: =+IF(VLOOKUP(F187,'[2]TOTAL Aumento'!$H$15:$AE$472,18,FALSE)=0,"Sin costo",VLOOKUP(F187,'[2]TOTAL Aumento'!$H$15:$Z$472,18,FALSE)) -> 19450 | R187: Incremento | S187: =+IF(VLOOKUP(F187,'[3]tarifas 2024'!$H$15:$W$386,16,FALSE)=0,"Sin costo",VLOOKUP(F187,'[3]tarifas 2024'!$H$15:$W$386,16,FALSE)) -> 21400
D188: =+D187+1 -> 2 | E188: =+D188&B$186 -> 2G | F188: Cualquier monto | I188: 0.017 | J188: 0.017 | L188: =#REF!=J188 ->  | M188: =+S188 -> 0.017 | P188: =+IF(VLOOKUP(F188,'[1]TOTAL Aumento'!$H$15:$X$504,16,FALSE)=0,"Sin costo",VLOOKUP(F188,'[1]TOTAL Aumento'!$H$15:$X$504,16,FALSE)) -> 0.017 | Q188: =+IF(VLOOKUP(F188,'[2]TOTAL Aumento'!$H$15:$AE$472,18,FALSE)=0,"Sin costo",VLOOKUP(F188,'[2]TOTAL Aumento'!$H$15:$Z$472,18,FALSE)) -> 0.017 | R188: 0 | S188: =+IF(VLOOKUP(F188,'[3]tarifas 2024'!$H$15:$W$386,16,FALSE)=0,"Sin costo",VLOOKUP(F188,'[3]tarifas 2024'!$H$15:$W$386,16,FALSE)) -> 0.017
D189: 3 | E189: 3G | F189: Devuelta | I189: 19150 | J189: 19450 | L189: =#REF!=J189 ->  | M189: 21400 | P189: =+IF(VLOOKUP(F189,'[1]TOTAL Aumento'!$H$15:$X$504,16,FALSE)=0,"Sin costo",VLOOKUP(F189,'[1]TOTAL Aumento'!$H$15:$X$504,16,FALSE)) -> 19150 | Q189: =+IF(VLOOKUP(F189,'[2]TOTAL Aumento'!$H$15:$AE$472,18,FALSE)=0,"Sin costo",VLOOKUP(F189,'[2]TOTAL Aumento'!$H$15:$Z$472,18,FALSE)) -> 19450 | R189: Incremento | S189: =+IF(VLOOKUP(F189,'[3]tarifas 2024'!$H$15:$W$386,16,FALSE)=0,"Sin costo",VLOOKUP(F189,'[3]tarifas 2024'!$H$15:$W$386,16,FALSE)) -> 21400
C190: Remesas al Cobro - plazas sin oficina AV Villas | D190: 4 | E190: 4G | F190: Mínima | I190: 19150 | J190: 19450 | L190: =#REF!=J190 ->  | M190: 21400 | P190: =+IF(VLOOKUP(F190,'[1]TOTAL Aumento'!$H$15:$X$504,16,FALSE)=0,"Sin costo",VLOOKUP(F190,'[1]TOTAL Aumento'!$H$15:$X$504,16,FALSE)) -> 19150 | Q190: =+IF(VLOOKUP(F190,'[2]TOTAL Aumento'!$H$15:$AE$472,18,FALSE)=0,"Sin costo",VLOOKUP(F190,'[2]TOTAL Aumento'!$H$15:$Z$472,18,FALSE)) -> 19450 | R190: Incremento | S190: =+IF(VLOOKUP(F190,'[3]tarifas 2024'!$H$15:$W$386,16,FALSE)=0,"Sin costo",VLOOKUP(F190,'[3]tarifas 2024'!$H$15:$W$386,16,FALSE)) -> 21400
D191: 5 | E191: 5G | F191: Cualquier monto | I191: 0.017 | J191: 0.017 | L191: =#REF!=J191 ->  | M191: 0.017 | P191: =+IF(VLOOKUP(F191,'[1]TOTAL Aumento'!$H$15:$X$504,16,FALSE)=0,"Sin costo",VLOOKUP(F191,'[1]TOTAL Aumento'!$H$15:$X$504,16,FALSE)) -> 0.017 | Q191: =+IF(VLOOKUP(F191,'[2]TOTAL Aumento'!$H$15:$AE$472,18,FALSE)=0,"Sin costo",VLOOKUP(F191,'[2]TOTAL Aumento'!$H$15:$Z$472,18,FALSE)) -> 0.017 | R191: 0 | S191: =+IF(VLOOKUP(F191,'[3]tarifas 2024'!$H$15:$W$386,16,FALSE)=0,"Sin costo",VLOOKUP(F191,'[3]tarifas 2024'!$H$15:$W$386,16,FALSE)) -> 0.017
D192: 6 | E192: 6G | F192: Devuelta | I192: 19150 | J192: 19450 | L192: =#REF!=J192 ->  | M192: 21400 | P192: =+IF(VLOOKUP(F192,'[1]TOTAL Aumento'!$H$15:$X$504,16,FALSE)=0,"Sin costo",VLOOKUP(F192,'[1]TOTAL Aumento'!$H$15:$X$504,16,FALSE)) -> 19150 | Q192: =+IF(VLOOKUP(F192,'[2]TOTAL Aumento'!$H$15:$AE$472,18,FALSE)=0,"Sin costo",VLOOKUP(F192,'[2]TOTAL Aumento'!$H$15:$Z$472,18,FALSE)) -> 19450 | R192: Incremento | S192: =+IF(VLOOKUP(F192,'[3]tarifas 2024'!$H$15:$W$386,16,FALSE)=0,"Sin costo",VLOOKUP(F192,'[3]tarifas 2024'!$H$15:$W$386,16,FALSE)) -> 21400
C193: Remesas Negociadas - Cualquier plaza | D193: 7 | E193: 7G | F193: Mínima | H193: 122015 | I193: 19450 | J193: 19750 | L193: =#REF!=J193 ->  | M193: 21400 | P193: =+IF(VLOOKUP(F193,'[1]TOTAL Aumento'!$H$15:$X$504,16,FALSE)=0,"Sin costo",VLOOKUP(F193,'[1]TOTAL Aumento'!$H$15:$X$504,16,FALSE)) -> 19150 | Q193: 19750 | R193: Incremento | S193: =+IF(VLOOKUP(F193,'[3]tarifas 2024'!$H$15:$W$386,16,FALSE)=0,"Sin costo",VLOOKUP(F193,'[3]tarifas 2024'!$H$15:$W$386,16,FALSE)) -> 21400
D194: 8 | E194: 8G | F194: Cualquier monto | I194: 0.017 | J194: 0.032 | L194: =#REF!=J194 ->  | M194: 0.032 | P194: =+IF(VLOOKUP(F194,'[1]TOTAL Aumento'!$H$15:$X$504,16,FALSE)=0,"Sin costo",VLOOKUP(F194,'[1]TOTAL Aumento'!$H$15:$X$504,16,FALSE)) -> 0.017 | Q194: =+'[2]TOTAL Aumento'!$Y$214 -> 0.032 | R194: Incremento | S194: 0.032
D195: 9 | E195: 9G | F195: Devuelta | I195: 19450 | J195: 19750 | L195: =#REF!=J195 ->  | M195: 21400 | P195: =+IF(VLOOKUP(F195,'[1]TOTAL Aumento'!$H$15:$X$504,16,FALSE)=0,"Sin costo",VLOOKUP(F195,'[1]TOTAL Aumento'!$H$15:$X$504,16,FALSE)) -> 19150 | Q195: 19750 | R195: Incremento | S195: =+IF(VLOOKUP(F195,'[3]tarifas 2024'!$H$15:$W$386,16,FALSE)=0,"Sin costo",VLOOKUP(F195,'[3]tarifas 2024'!$H$15:$W$386,16,FALSE)) -> 21400
C196: TARIFAS PRODUCTOS Y SERVICIOS BANCARIOS | I196: A partir del 13 de Marzo de 2023 | J196: A partir del 01 de Diciembre de 2023 | M196: =+M170 -> A partir del 02 de Julio de 2024
I197: TARIFA | M197: TARIFA
A198: H | C198: Otros Servicios | D198: 1 | E198: =+D198&$A$198 -> 1H | F198: Transferencias Utilización Dinero Extra a cuentas AVAL por internet | I198: Sin costo | J198: Sin costo | L198: =#REF!=J198 ->  | M198: =+S198 -> Sin costo | P198: =+IF(VLOOKUP(F198,'[1]TOTAL Aumento'!$H$15:$X$504,16,FALSE)=0,"Sin costo",VLOOKUP(F198,'[1]TOTAL Aumento'!$H$15:$X$504,16,FALSE)) -> Sin costo | Q198: =+IF(VLOOKUP(F198,'[2]TOTAL Aumento'!$H$15:$AE$472,18,FALSE)=0,"Sin costo",VLOOKUP(F198,'[2]TOTAL Aumento'!$H$15:$Z$472,18,FALSE)) -> Sin costo | R198: =IF(Q198>P198,"Incremento",0) -> 0 | S198: =+IF(VLOOKUP(F198,'[3]tarifas 2024'!$H$15:$W$386,16,FALSE)=0,"Sin costo",VLOOKUP(F198,'[3]tarifas 2024'!$H$15:$W$386,16,FALSE)) -> Sin costo
D199: =+D198+1 -> 2 | E199: =+D199&$A$198 -> 2H | F199: Generación de clave temporal para retiro sin tarjeta débito en internet 9* | I199: Sin costo | J199: Sin costo | L199: =#REF!=J199 ->  | M199: =+S199 -> Sin costo | P199: Sin costo | Q199: Sin costo | R199: 0 | S199: Sin costo
D200: 3 | E200: =+D200&$A$198 -> 3H | F200: Lounge Key - Acceso adicional a Salas VIP en Aeropuertos 11 | I200: USD$27 | J200: USD28 | L200: =#REF!=J200 ->  | M200: USD35 | P200: USD$27 | Q200: USD28 | R200: Incremento | S200: USD35
D201: 4 | E201: 4H | F201: Transferencias interbancarias ACH Recibidas Persona Natural 10 | I201: 1250 | J201: 1300 | L201: =#REF!=J201 ->  | M201: 1950 | P201: 1250 | Q201: 1300 | R201: Incremento | S201: 1950
D202: 5 | E202: 5H | F202: Servicio de Notificaciones y Alertas a celular (Cuota mensual)* | I202: 1350 | J202: 1400 | L202: =#REF!=J202 ->  | M202: 3950 | P202: =+IF(VLOOKUP(F202,'[1]TOTAL Aumento'!$H$15:$X$504,16,FALSE)=0,"Sin costo",VLOOKUP(F202,'[1]TOTAL Aumento'!$H$15:$X$504,16,FALSE)) -> 1350 | Q202: =+IF(VLOOKUP(F202,'[2]TOTAL Aumento'!$H$15:$AE$472,18,FALSE)=0,"Sin costo",VLOOKUP(F202,'[2]TOTAL Aumento'!$H$15:$Z$472,18,FALSE)) -> 1400 | R202: Incremento | S202: 3950
D203: 6 | E203: 6H | F203: Generación de clave temporal para retiro sin tarjeta débito en internet* | I203: 3200 | J203: Sin costo | L203: =#REF!=J203 ->  | M203: Sin costo | P203: 3200 | Q203: =+IF(VLOOKUP(F203,'[2]TOTAL Aumento'!$H$15:$AE$472,18,FALSE)=0,"Sin costo",VLOOKUP(F203,'[2]TOTAL Aumento'!$H$15:$Z$472,18,FALSE)) -> Sin costo | R203: Incremento | S203: =+IF(VLOOKUP(F203,'[3]tarifas 2024'!$H$15:$W$386,16,FALSE)=0,"Sin costo",VLOOKUP(F203,'[3]tarifas 2024'!$H$15:$W$386,16,FALSE)) -> Sin costo
... 169 more rows

Sheet seguros (hidden)
A3: LINEA DE CRÉDITO | B3: ASOCIACIÓN DE GARANTÍA HIPOTECARIA | C3: TIPO DE SEGURO | D3: ASEGURADORA | E3: NIT | F3: VIGENCIA DE LOS FACTORES | H3: VALOR ASEGURADO (BASE DE LIQUIDACIÓN) | I3: CONDICIONES DE COBRO | J3: TASA MENSUAL EN % POR RANGOS DE EDAD PARA COBRO DE SEGURO DE VIDA
F4: DESDE | G4: HASTA | J4: De 18 a 50 años | K4: De 51 a 60 años | L4: De 61 a 70 años | M4: De 71 a 75 años | N4: De 76 a 80 años | O4: Desde 81 años
A5: Hipotecario largo plazo | B5: CON garantía hipotecaria | C5: Vida deudores | D5: Axa Colpatria Seguros de Vida | E5: 860002183-9 | F5: 2023-11-01 | G5: 2025-11-01 | H5: Saldo de deuda | I5: Créditos nuevos y antiguos hasta con una mora máxima de 5 cuotas | J5: 0.041 | K5: 0.041 | L5: 0.041 | M5: 0.041 | N5: 0.041 | O5: 0.041
A6: Empresarial y comercial | B6: CON garantía hipotecaria | C6: Vida deudores | D6: Axa Colpatria Seguros de Vida | E6: 860002183-9 | F6: 2023-11-01 | G6: 2025-11-01 | H6: Saldo de deuda | I6: Créditos nuevos y antiguos hasta con una mora máxima de 2 cuotas | J6: 0.041 | K6: 0.041 | L6: 0.041 | M6: 0.041 | N6: 0.041 | O6: 0.041
A7: Consumo con garantía hipotecaria | B7: CON garantía hipotecaria | C7: Vida deudores | D7: Axa Colpatria Seguros de Vida | E7: 860002183-9 | F7: 2023-11-01 | G7: 2025-11-01 | H7: Monto del desembolso | I7: Créditos radicados desde la fecha de inicio de vigencia hasta con una mora máxima de 2 cuotas. Los créditos radicados con anterioridad, conservan el factor con el cual se realizó el desembolso | J7: 0.041 | K7: 0.041 | L7: 0.041 | M7: 0.041 | N7: 0.041 | O7: 0.041
A8: Hipotecario largo plazo | B8: SIN garantía hipotecaria | C8: Vida deudores | D8: Seguros de Vida Alfa | E8: 860503617-3 | F8: 2023-05-01 | G8: 2024-05-01 | H8: Saldo de deuda | I8: Créditos nuevos y antiguos hasta con una mora máxima de 5 cuotas | J8: 0.0695 | K8: 0.0899 | L8: 0.0928 | M8: 0.2714 | N8: 0.6518 | O8: 1.0725
A9: Empresarial y comercial | B9: SIN garantía hipotecaria | C9: Vida deudores | D9: Seguros de Vida Alfa | E9: 860503617-3 | F9: 2023-05-01 | G9: 2024-05-01 | H9: Saldo de deuda | I9: Créditos nuevos y antiguos hasta con una mora máxima de 2 cuotas | J9: 0.0695 | K9: 0.0899 | L9: 0.0928 | M9: 0.2714 | N9: 0.6518 | O9: 1.0725
A10: Consumo | B10: SIN garantía hipotecaria | C10: Vida deudores | D10: Seguros de Vida Alfa | E10: 860503617-3 | F10: 2023-05-01 | G10: 2024-05-01 | H10: Monto del desembolso | I10: Créditos radicados desde la fecha de inicio de vigencia hasta con una mora máxima de 2 cuotas. Los créditos radicados con anterioridad, conservan el factor con el cual se realizó el desembolso | J10: 0.0695 | K10: 0.0899 | L10: 0.0928 | M10: 0.2714 | N10: 0.6518 | O10: 1.0725 | P10: =+AVERAGE(J10:O10)/100 -> 0.0037465
A11: Libranza | B11: SIN garantía hipotecaria | C11: Vida deudores | D11: Seguros de Vida Alfa | E11: 860503617-3 | F11: 2023-05-01 | G11: 2024-05-01 | H11: Monto del desembolso | I11: Créditos radicados desde la fecha de inicio de vigencia hasta con una mora máxima de 2 cuotas. Los créditos radicados con anterioridad, conservan el factor con el cual se realizó el desembolso | J11: 0.0695 | K11: 0.0899 | L11: 0.0928 | M11: 0.2714 | N11: 0.6518 | O11: 1.0725
A13: LINEA DE CRÉDITO | B13: ASOCIACIÓN DE GARANTÍA HIPOTECARIA | C13: TIPO DE SEGURO | D13: ASEGURADORA | E13: NIT | F13: VIGENCIA DE LOS FACTORES | H13: VALOR ASEGURADO | I13: CONDICIONES DE COBRO | J13: TASA MENSUAL EN % PARA COBRO DE SEGURO DE INCENDIO Y TERREMOTO
F14: DESDE | G14: HASTA
A15: Todas las líneas | B15: CON garantía hipotecaria | C15: Incendio | D15: Seguros Alfa S.A. | E15: 860031979-8 | F15: 2023-11-01 | G15: 2025-11-01 | H15: Valor destructible del inmueble | I15: Créditos nuevos y antiguos con cualquier altura de mora | J15: 0.00065 | P15: =+J15/100 -> 6.5e-06
A16: Todas las líneas | B16: CON garantía hipotecaria | C16: Terremoto | D16: Seguros Alfa S.A. | E16: 860031979-8 | F16: 2023-11-01 | G16: 2025-11-01 | H16: Valor destructible del inmueble | I16: Créditos nuevos y antiguos con cualquier altura de mora | J16: 0.01235 | P16: =+J16/100 -> 0.0001235
P17: =SUM(P15:P16) -> 0.00013
A18: TIPO DE TARJETA | B18: ASOCIACIÓN DE GARANTÍA HIPOTECARIA | C18: TIPO DE SEGURO | D18: ASEGURADORA | E18: NIT | F18: VIGENCIA DE LOS FACTORES | H18: VALOR ASEGURADO | I18: CONDICIONES DE COBRO | J18: FACTOR FIJO EN PESOS PARA COBRO DE SEGURO DE VIDA
F19: DESDE | G19: HASTA
A20: facilisima | B20: SIN garantía hipotecaria | C20: Vida deudores | D20: Seguros de Vida Alfa | E20: 860503617-3 | F20: 2023-11-01 | G20: 2024-11-01 | H20: Saldo de deuda | I20: Titular de la tarjeta (no cubre amparados) Saldo de deuda mayor a $10.000 | J20: 3699
A21: clasica | B21: SIN garantía hipotecaria | C21: Vida deudores | D21: Seguros de Vida Alfa | E21: 860503617-3 | F21: 2023-11-01 | G21: 2024-11-01 | H21: Saldo de deuda | I21: Titular de la tarjeta (no cubre amparados) Saldo de deuda mayor a $10.000 | J21: 4680
A22: oro | B22: SIN garantía hipotecaria | C22: Vida deudores | D22: Seguros de Vida Alfa | E22: 860503617-3 | F22: 2023-11-01 | G22: 2024-11-01 | H22: Saldo de deuda | I22: Titular de la tarjeta (no cubre amparados) Saldo de deuda mayor a $10.000 | J22: 4786
A23: platinum | B23: SIN garantía hipotecaria | C23: Vida deudores | D23: Seguros de Vida Alfa | E23: 860503617-3 | F23: 2023-11-01 | G23: 2024-11-01 | H23: Saldo de deuda | I23: Titular de la tarjeta (no cubre amparados) Saldo de deuda mayor a $100.000 | J23: 4920
A24: black | B24: SIN garantía hipotecaria | C24: Vida deudores | D24: Seguros de Vida Alfa | E24: 860503617-3 | F24: 2023-11-01 | G24: 2024-11-01 | H24: Saldo de deuda | I24: Sin cobro. Están exonerados | J24: 0.0695
A25: dinero extra | B25: SIN garantía hipotecaria | C25: Vida deudores | D25: Seguros de Vida Alfa | E25: 860503617-3 | F25: 2023-11-01 | G25: 2024-11-01 | H25: Saldo de deuda | I25: Saldo de deuda mayor a $100.000 | J25: 8250
